Service Delivery Area(T),Service Delivery Team(T),CostC,ExpenditureGroup(T),Account(T),Supplier Name(T),Trans Date,Amount
"Business, Development & Employment","AD - Development, Business & Housing",WCAN,Capital Expenditure,Payments to Contractor,SIGNS EXPRESS (TELFORD),08/06/2016,625.75
"Business, Development & Employment","AD - Development, Business & Housing",WDSW,Capital Expenditure,Payments to Contractor,Lovell Partnerships Limited,09/06/2016,5856.23
"Business, Development & Employment","AD - Development, Business & Housing",WDSW,Capital Expenditure,Payments to Contractor,Lovell Partnerships Limited,09/06/2016,47254.5
"Business, Development & Employment","AD - Development, Business & Housing",WDSW,Capital Expenditure,Payments to Contractor,SHROPSHIRE WILDLIFE SURVEYS,09/06/2016,290
"Business, Development & Employment",Development Management & Planning Policy,DDAC,Supplies & Services,Advertising,THE MIDLAND NEWS ASSOCIATION LTD,16/06/2016,268.2
"Business, Development & Employment",Development Management & Planning Policy,DDAC,Supplies & Services,Advertising,THE MIDLAND NEWS ASSOCIATION LTD,30/06/2016,241.38
"Business, Development & Employment",Development Management & Planning Policy,DDAC,Supplies & Services,Advertising,THE MIDLAND NEWS ASSOCIATION LTD,23/06/2016,241.38
"Business, Development & Employment",Development Management & Planning Policy,DDAC,Supplies & Services,Advertising,THE MIDLAND NEWS ASSOCIATION LTD,06/06/2016,214.56
"Business, Development & Employment",Development Management & Planning Policy,DDAC,Supplies & Services,Advertising,THE MIDLAND NEWS ASSOCIATION LTD,14/06/2016,134.1
"Business, Development & Employment",Development Management & Planning Policy,DDAD,Supplies & Services,Other Expenses,TAMESIDE MBC,28/06/2016,166.66
"Business, Development & Employment",Development Management & Planning Policy,DDAG,Employees,Professional Subs,ICSA,20/06/2016,303
"Business, Development & Employment",Development Management & Planning Policy,DDBD,Supplies & Services,Consultants Fees,AECOM LTD,10/06/2016,1992.34
"Business, Development & Employment",Development Management & Planning Policy,DDBD,Supplies & Services,Other Services,GROUND INVESTIGATION & PILING LTD,13/06/2016,9118.38
"Business, Development & Employment",Development Management & Planning Policy,EHAA,Supplies & Services,Consultancy,Bovis Homes Limited,14/06/2016,3884
"Business, Development & Employment",Development Management & Planning Policy,EWAJ,Employees,Professional Subs,HQN LTD,14/06/2016,820
"Business, Development & Employment",Development Management & Planning Policy,EWAJ,Employees,Professional Subs,HQN LTD,15/06/2016,1095
"Business, Development & Employment",Development Management & Planning Policy,EWAJ,Supplies & Services,Stationery,STANFORD MARSH FINANCE LTD,09/06/2016,147.3
"Business, Development & Employment",Development Management & Planning Policy,EWAJ,Supplies & Services,Research Surveys,COMMUNITY FOREST TRUST,17/06/2016,1400
"Business, Development & Employment",Development Management & Planning Policy,EWAJ,Supplies & Services,Conference Expenses,Minerals Products Association Ltd,09/06/2016,300
"Business, Development & Employment",Development Management & Planning Policy,EWAJ,Supplies & Services,Conference Expenses,Waterfront Conference Company Ltd,09/06/2016,199
"Business, Development & Employment",Development Management & Planning Policy,EWAJ,Supplies & Services,Advertising,THE MIDLAND NEWS ASSOCIATION LTD,27/06/2016,187.74
"Business, Development & Employment",Development Management & Planning Policy,EWAN,Supplies & Services,Research Surveys,Enfusion Limited,09/06/2016,4385
"Business, Development & Employment",Estates & Investment,CBAU,Supplies & Services,Registration / Licence Fees,EQUIFAX PLC,15/06/2016,144.08
"Business, Development & Employment",Estates & Investment,CEAE,Premises-Related Expenditure,R&M -Building Other,JONES & HAMPTON LTD,30/06/2016,238.5
"Business, Development & Employment",Estates & Investment,CEAE,Premises-Related Expenditure,R&M -Building Other,JONES & HAMPTON LTD,30/06/2016,120.98
"Business, Development & Employment",Estates & Investment,CEAE,Premises-Related Expenditure,R&M -Building Other,George Birchall Limited,07/06/2016,197.91
"Business, Development & Employment",Estates & Investment,CEAE,Premises-Related Expenditure,R&M -Building Other,WINDOW & DOOR CONTRACT SERVICES,07/06/2016,165.6
"Business, Development & Employment",Estates & Investment,CEAE,Premises-Related Expenditure,Electricity,West Mercia Energy (WME),22/06/2016,217.37
"Business, Development & Employment",Estates & Investment,CEAE,Premises-Related Expenditure,Electricity,West Mercia Energy (WME),22/06/2016,311.25
"Business, Development & Employment",Estates & Investment,CEAE,Premises-Related Expenditure,Electricity,West Mercia Energy (WME),10/06/2016,238.45
"Business, Development & Employment",Estates & Investment,CEAE,Premises-Related Expenditure,Electricity,West Mercia Energy (WME),10/06/2016,388.38
"Business, Development & Employment",Estates & Investment,CEAE,Premises-Related Expenditure,Gas,West Mercia Energy (WME),01/06/2016,614.75
"Business, Development & Employment",Estates & Investment,CEAE,Premises-Related Expenditure,Gas,West Mercia Energy (WME),01/06/2016,195.68
"Business, Development & Employment",Estates & Investment,CEAE,Premises-Related Expenditure,Gas,West Mercia Energy (WME),22/06/2016,416.96
"Business, Development & Employment",Estates & Investment,CEAE,Premises-Related Expenditure,Water Rates,SEVERN TRENT WATER LTD,23/06/2016,1239.61
"Business, Development & Employment",Estates & Investment,CEAE,Supplies & Services,Security Services,BUSINESS WATCH GUARDING LIMITED,15/06/2016,2944.98
"Business, Development & Employment",Estates & Investment,CEAH,Premises-Related Expenditure,Dilapidations,JCE & SONS LTD,30/06/2016,2800
"Business, Development & Employment",Estates & Investment,CEAH,Premises-Related Expenditure,Dilapidations,JONES & HAMPTON LTD,22/06/2016,240.35
"Business, Development & Employment",Estates & Investment,CEAH,Premises-Related Expenditure,Dilapidations,DOOR LOADING SERVICES UK LTD,23/06/2016,2900
"Business, Development & Employment",Estates & Investment,CEAH,Premises-Related Expenditure,Dilapidations,George Birchall Limited,24/06/2016,760.62
"Business, Development & Employment",Estates & Investment,CEAH,Premises-Related Expenditure,R&M -Building Other,KRM CONTRACTORS LTD,01/06/2016,590
"Business, Development & Employment",Estates & Investment,CEAH,Premises-Related Expenditure,R&M -Building Other,George Birchall Limited,20/06/2016,428.65
"Business, Development & Employment",Estates & Investment,CEAH,Premises-Related Expenditure,R&M -Building Other,LOCSAFE SECURITY SYSTEMS,27/06/2016,124.45
"Business, Development & Employment",Estates & Investment,CEAH,Premises-Related Expenditure,R&M -Building Other,George Birchall Limited,15/06/2016,223.15
"Business, Development & Employment",Estates & Investment,CEAH,Premises-Related Expenditure,R&M -Building Other,WREKIN DRAIN SERVICES LTD,30/06/2016,680
"Business, Development & Employment",Estates & Investment,CEAH,Premises-Related Expenditure,R&M -Building Other,WREKIN DRAIN SERVICES LTD,30/06/2016,693
"Business, Development & Employment",Estates & Investment,CEAH,Premises-Related Expenditure,R&M -Building Other,JONES & HAMPTON LTD,23/06/2016,387.92
"Business, Development & Employment",Estates & Investment,CEAH,Premises-Related Expenditure,R&M -Building Other,WREKIN DRAIN SERVICES LTD,23/06/2016,240
"Business, Development & Employment",Estates & Investment,CEAH,Premises-Related Expenditure,R&M -Building Other,George Birchall Limited,24/06/2016,148.2
"Business, Development & Employment",Estates & Investment,CEAH,Premises-Related Expenditure,R&M -Building Other,DOOR LOADING SERVICES UK LTD,27/06/2016,700
"Business, Development & Employment",Estates & Investment,CEAH,Premises-Related Expenditure,Electricity,BRITISH GAS BUSINESS ,20/06/2016,110.52
"Business, Development & Employment",Estates & Investment,CEAH,Premises-Related Expenditure,Electricity,West Mercia Energy (WME),29/06/2016,525.78
"Business, Development & Employment",Estates & Investment,CEAH,Premises-Related Expenditure,Electricity,West Mercia Energy (WME),29/06/2016,559.38
"Business, Development & Employment",Estates & Investment,CEAH,Premises-Related Expenditure,Gas,NPOWER GAS,27/06/2016,218.47
"Business, Development & Employment",Estates & Investment,CEAH,Premises-Related Expenditure,Gas,NPOWER GAS,27/06/2016,109.82
"Business, Development & Employment",Estates & Investment,CEAH,Premises-Related Expenditure,Grounds Maintenance - L&CS,FCC Recycling (UK) Ltd,29/06/2016,1129.44
"Business, Development & Employment",Estates & Investment,CEAH,Premises-Related Expenditure,Insurance Loss Over 250,WREKIN DRAIN SERVICES LTD,13/06/2016,340
"Business, Development & Employment",Estates & Investment,CEAH,Supplies & Services,Advertising,3S PRINT & DISPLAY LIMITED,21/06/2016,425
"Business, Development & Employment",Estates & Investment,CEAH,Supplies & Services,Advertising,3S PRINT & DISPLAY LIMITED,21/06/2016,325
"Business, Development & Employment",Estates & Investment,CEAH,Supplies & Services,Payment Of Income Collected,HSBC EQUIPMENT FINANCE (UK) LIMITED,07/06/2016,12462.51
"Business, Development & Employment",Estates & Investment,CEAH,Supplies & Services,Payment Of Income Collected,HSBC EQUIPMENT FINANCE (UK) LIMITED,08/06/2016,1500
"Business, Development & Employment",Estates & Investment,CEAH,Supplies & Services,Payment Of Income Collected,HSBC EQUIPMENT FINANCE (UK) LIMITED,13/06/2016,5668.87
"Business, Development & Employment",Estates & Investment,CEAH,Supplies & Services,Payment Of Income Collected,HSBC EQUIPMENT FINANCE (UK) LIMITED,15/06/2016,33572.67
"Business, Development & Employment",Estates & Investment,CEAH,Supplies & Services,Other Expenses,3S PRINT & DISPLAY LIMITED,30/06/2016,167.4
"Business, Development & Employment",Estates & Investment,CEAJ,Third Party Payments,Voluntary Bodies,SEVERN GORGE COUNTRYSIDE TRUST,20/06/2016,74066.98
"Business, Development & Employment",Estates & Investment,CEAN,Premises-Related Expenditure,R&M -Buildings DLO Charge,SECURITY WISE LTD,30/06/2016,180
"Business, Development & Employment",Estates & Investment,CEAN,Premises-Related Expenditure,R&M -Buildings DLO Charge,HYDRO-TECH ENVIRONMENTAL LLP,13/06/2016,150
"Business, Development & Employment",Estates & Investment,CEAN,Premises-Related Expenditure,R&M -Buildings DLO Charge,Churches Fire Security Ltd,15/06/2016,104.78
"Business, Development & Employment",Estates & Investment,CEAN,Premises-Related Expenditure,R&M -Buildings DLO Charge,PP ELECTRICAL SERVICES (Shropshire) Ltd,15/06/2016,105
"Business, Development & Employment",Estates & Investment,CEAN,Premises-Related Expenditure,R&M -Buildings DLO Charge,HYDRO-TECH ENVIRONMENTAL LLP,13/06/2016,150
"Business, Development & Employment",Estates & Investment,CEAN,Premises-Related Expenditure,Service Contracts,Bulleys,15/06/2016,2280.75
"Business, Development & Employment",Estates & Investment,CEAN,Premises-Related Expenditure,Fire Alarms & Emergency Light,SECURITY WISE LTD,30/06/2016,190
"Business, Development & Employment",Estates & Investment,CEAN,Premises-Related Expenditure,Fire Alarms & Emergency Light,SECURITY WISE LTD,30/06/2016,190
"Business, Development & Employment",Estates & Investment,CEAN,Premises-Related Expenditure,Fire Alarms & Emergency Light,SECURITY WISE LTD,23/06/2016,233
"Business, Development & Employment",Estates & Investment,CEAN,Premises-Related Expenditure,Fire Alarms & Emergency Light,SECURITY WISE LTD,27/06/2016,120
"Business, Development & Employment",Estates & Investment,CEAN,Premises-Related Expenditure,R&M -SCC Planned,A HAND SERVICES (Dyno Rod) LTD,24/06/2016,180
"Business, Development & Employment",Estates & Investment,CEAN,Premises-Related Expenditure,R&M -SCC Planned,ELITE PUMPING SERVICES LIMITED,13/06/2016,360
"Business, Development & Employment",Estates & Investment,CEAN,Premises-Related Expenditure,R&M WC Planned,RMF LANDSCAPING LTD,10/06/2016,174
"Business, Development & Employment",Estates & Investment,CEAN,Premises-Related Expenditure,R&M WC Planned,PTSG ACCESS AND SAFETY LTD,13/06/2016,195
"Business, Development & Employment",Estates & Investment,CEAN,Premises-Related Expenditure,R&M -Building Other,AGS AUTOMATIC DOORS LTD,14/06/2016,129
"Business, Development & Employment",Estates & Investment,CEAN,Premises-Related Expenditure,R&M -Building Other,HYDRO-TECH ENVIRONMENTAL LLP,13/06/2016,150
"Business, Development & Employment",Estates & Investment,CEAN,Premises-Related Expenditure,R&M -Building Other,BRITISH GAS SERVICES LTD   (CIS ONLY),02/06/2016,234.5
"Business, Development & Employment",Estates & Investment,CEAN,Premises-Related Expenditure,R&M -Building Other,APT CONTROLS LTD,30/06/2016,1445.72
"Business, Development & Employment",Estates & Investment,CEAN,Premises-Related Expenditure,R&M -Building Other,JONES & HAMPTON LTD,27/06/2016,115.4
"Business, Development & Employment",Estates & Investment,CEAN,Premises-Related Expenditure,R&M -Building Other,PP ELECTRICAL SERVICES (Shropshire) Ltd,07/06/2016,236.29
"Business, Development & Employment",Estates & Investment,CEAN,Premises-Related Expenditure,Electricity,TOTAL GAS & POWER LIMITED,14/06/2016,-926.04
"Business, Development & Employment",Estates & Investment,CEAN,Premises-Related Expenditure,Electricity,West Mercia Energy (WME),10/06/2016,178.94
"Business, Development & Employment",Estates & Investment,CEAN,Premises-Related Expenditure,Electricity,West Mercia Energy (WME),22/06/2016,116.41
"Business, Development & Employment",Estates & Investment,CEAN,Premises-Related Expenditure,Electricity,West Mercia Energy (WME),22/06/2016,257.07
"Business, Development & Employment",Estates & Investment,CEAN,Premises-Related Expenditure,Electricity,West Mercia Energy (WME),22/06/2016,167.65
"Business, Development & Employment",Estates & Investment,CEAN,Premises-Related Expenditure,Electricity,BRITISH GAS BUSINESS ELEC ,15/06/2016,4803.78
"Business, Development & Employment",Estates & Investment,CEAN,Premises-Related Expenditure,Electricity,West Mercia Energy (WME),14/06/2016,143.01
"Business, Development & Employment",Estates & Investment,CEAN,Premises-Related Expenditure,Gas,OPUS ENERGY LTD (electricity),23/06/2016,148.18
"Business, Development & Employment",Estates & Investment,CEAN,Premises-Related Expenditure,Gas,E.ON ,27/06/2016,1800.92
"Business, Development & Employment",Estates & Investment,CEAN,Premises-Related Expenditure,Water Rates,SEVERN TRENT WATER LTD,10/06/2016,622.38
"Business, Development & Employment",Estates & Investment,CEAN,Premises-Related Expenditure,Window Cleaning,BUSY BEE CLEANING,13/06/2016,240
"Business, Development & Employment",Estates & Investment,CEAN,Premises-Related Expenditure,Contract Cleaning,FCC Recycling (UK) Ltd ,14/06/2016,294
"Business, Development & Employment",Estates & Investment,CEAN,Premises-Related Expenditure,Contract Cleaning,BUSY BEE CLEANING,13/06/2016,287.43
"Business, Development & Employment",Estates & Investment,CEAN,Premises-Related Expenditure,Contract Cleaning,BUSY BEE CLEANING,13/06/2016,220
"Business, Development & Employment",Estates & Investment,CEAN,Premises-Related Expenditure,Grounds Maintenance - L&CS,PP ELECTRICAL SERVICES (Shropshire) Ltd,20/06/2016,210
"Business, Development & Employment",Estates & Investment,CEAN,Premises-Related Expenditure,Grounds Maintenance - L&CS,CHP Management Limited,21/06/2016,830.96
"Business, Development & Employment",Estates & Investment,CEAN,Premises-Related Expenditure,Grounds Maintenance - L&CS,MITIE LANDSCAPES LTD,30/06/2016,172.34
"Business, Development & Employment",Estates & Investment,CEAN,Premises-Related Expenditure,Grounds Maintenance - L&CS,MITIE LANDSCAPES LTD,30/06/2016,172.34
"Business, Development & Employment",Estates & Investment,CEAN,Premises-Related Expenditure,Grounds Maintenance - L&CS,MITIE LANDSCAPES LTD,29/06/2016,177.51
"Business, Development & Employment",Estates & Investment,CEAN,Premises-Related Expenditure,Grounds Maintenance - L&CS,RMF LANDSCAPING LTD,13/06/2016,392.62
"Business, Development & Employment",Estates & Investment,CEAN,Premises-Related Expenditure,Grounds Maintenance - L&CS,St Modwen Developments Ltd ,13/06/2016,276.4
"Business, Development & Employment",Estates & Investment,CEAN,Premises-Related Expenditure,Grounds Maintenance - L&CS,St Modwen Developments Ltd ,13/06/2016,474.39
"Business, Development & Employment",Estates & Investment,CEAN,Premises-Related Expenditure,Grounds Maintenance - L&CS,MAINSTAY PAYMENTS LTD,13/06/2016,3775.48
"Business, Development & Employment",Estates & Investment,CEAN,Premises-Related Expenditure,Grounds Maintenance - L&CS,PP ELECTRICAL SERVICES (Shropshire) Ltd,13/06/2016,3066.5
"Business, Development & Employment",Estates & Investment,CEAN,Premises-Related Expenditure,Grounds Maintenance - L&CS,BUSY BEE CLEANING,13/06/2016,150
"Business, Development & Employment",Estates & Investment,CEAN,Premises-Related Expenditure,Grounds Maintenance - L&CS,RMF LANDSCAPING LTD,13/06/2016,258.6
"Business, Development & Employment",Estates & Investment,CEAN,Premises-Related Expenditure,Grounds Maintenance - L&CS,St Modwen Developments Ltd ,09/06/2016,-1380.23
"Business, Development & Employment",Estates & Investment,CEAN,Premises-Related Expenditure,Grounds Maintenance - L&CS,St Modwen Developments Ltd ,09/06/2016,-678.42
"Business, Development & Employment",Estates & Investment,CEAN,Premises-Related Expenditure,Grounds Maintenance - L&CS,FCC Environment Services (UK) Ltd ,09/06/2016,8423.67
"Business, Development & Employment",Estates & Investment,CEAN,Premises-Related Expenditure,Grounds Maintenance - L&CS,CHP Management Limited,13/06/2016,2001.61
"Business, Development & Employment",Estates & Investment,CEAN,Premises-Related Expenditure,Grounds Maintenance - L&CS,St Modwen Developments Ltd,13/06/2016,311.84
"Business, Development & Employment",Estates & Investment,CEAN,Premises-Related Expenditure,Grounds Maintenance - L&CS,St Modwen Developments Ltd,13/06/2016,474.39
"Business, Development & Employment",Estates & Investment,CEAN,Supplies & Services,Security Services,FCC Environment Services (UK) Ltd ,09/06/2016,7764.25
"Business, Development & Employment",Estates & Investment,CEAN,Supplies & Services,Security Services,BUSINESS WATCH GUARDING LIMITED,14/06/2016,349.81
"Business, Development & Employment",Estates & Investment,CEAV,Premises-Related Expenditure,Fire Alarms & Emergency Light,SECURITY WISE LTD,30/06/2016,185
"Business, Development & Employment",Estates & Investment,CEAV,Premises-Related Expenditure,R&M -Building Other,Churches Fire Security Ltd,30/06/2016,153.9
"Business, Development & Employment",Estates & Investment,CEAV,Premises-Related Expenditure,Electricity,West Mercia Energy (WME),17/06/2016,2806.91
"Business, Development & Employment",Estates & Investment,CEAV,Premises-Related Expenditure,Electricity,West Mercia Energy (WME),14/06/2016,2884.34
"Business, Development & Employment",Estates & Investment,CEAV,Supplies & Services,Other Services,CreditCall Limited,30/06/2016,244.5
"Business, Development & Employment",Estates & Investment,CEAV,Supplies & Services,Other Services,CreditCall Limited,08/06/2016,263.28
"Business, Development & Employment",Estates & Investment,WCAJ,Capital Expenditure,Payments to Contractor,Design Development Partnership,29/06/2016,60000
"Business, Development & Employment",Estates & Investment,WCAJ,Capital Expenditure,Payments to Contractor,A HAND SERVICES (Dyno Rod) LTD,30/06/2016,186
"Business, Development & Employment",Estates & Investment,WCAJ,Capital Expenditure,Payments to Contractor,Geldards LLP,07/06/2016,717
"Business, Development & Employment",Estates & Investment,WCAJ,Capital Expenditure,Payments to Contractor,RammSanderson Ecology Consultancy Ltd,09/06/2016,940
"Business, Development & Employment",Estates & Investment,WCAJ,Capital Expenditure,Payments to Contractor,Hinton Properties,09/06/2016,27666.66
"Business, Development & Employment",Estates & Investment,WCAJ,Capital Expenditure,Payments to Contractor,WELLINGTON INSULATION CO. LTD,15/06/2016,1970
"Business, Development & Employment",Estates & Investment,WCCA,Capital Expenditure,Payments to Contractor,Morgan Sindall plc,10/06/2016,115000
"Business, Development & Employment",Estates & Investment,WCSP,Capital Expenditure,Engineers Fees,ATKINS LIMITED,01/06/2016,2400
"Business, Development & Employment",Estates & Investment,WCSP,Capital Expenditure,Building Payments - Excluding Fees,BRITISH GAS BUSINESS ,20/06/2016,171.12
"Business, Development & Employment",Estates & Investment,WCSP,Capital Expenditure,Building Payments - Excluding Fees,SEVERN TRENT WATER LTD,23/06/2016,101.26
"Business, Development & Employment",Estates & Investment,WCSP,Capital Expenditure,Building Payments - Excluding Fees,VPS (UK) LTD,08/06/2016,105.7
"Business, Development & Employment",Estates & Investment,WCSP,Capital Expenditure,Payments to Contractor,TAYLORS MECHANICAL H & P SERVICES LTD,08/06/2016,8000
"Business, Development & Employment",Estates & Investment,WCSP,Capital Expenditure,Payments to Contractor,TAYLORS MECHANICAL H & P SERVICES LTD,08/06/2016,12000
"Business, Development & Employment",Estates & Investment,WGNE,Capital Expenditure,Payments to Contractor,RODGERS LEASK ENVIRONMENTAL LTD,20/06/2016,875
"Business, Development & Employment",Estates & Investment,WGNE,Capital Expenditure,External Professional Fees,ENVIRONMENT AGENCY,20/06/2016,282.15
"Business, Development & Employment",Estates & Investment,WHCA,Capital Expenditure,Site Investigation,Trust Ecology,20/06/2016,2427
"Business, Development & Employment",Estates & Investment,WHCA,Capital Expenditure,Engineers Fees,ATKINS LIMITED,07/06/2016,1000
"Business, Development & Employment",Estates & Investment,WHCA,Capital Expenditure,Engineers Fees,ATKINS LIMITED,07/06/2016,1000
"Business, Development & Employment",Estates & Investment,WHCA,Capital Expenditure,Engineers Fees,ATKINS LIMITED,07/06/2016,1000
"Business, Development & Employment",Estates & Investment,WPDR,Capital Expenditure,Payments to Contractor,WPD MIDLANDS NETWORKS SERVICES LTD,10/06/2016,469.06
"Business, Development & Employment",Inward Investment & Business Support,AEAB,Supplies & Services,Contribution from Balances,Fran Raybould Associates,02/06/2016,2000
"Business, Development & Employment",Inward Investment & Business Support,AEAB,Supplies & Services,Contribution from Balances,Fran Raybould Associates,02/06/2016,2500
"Business, Development & Employment",Inward Investment & Business Support,AEAB,Supplies & Services,Contribution from Balances,Fran Raybould Associates,02/06/2016,500
"Business, Development & Employment",Inward Investment & Business Support,AEAD,Supplies & Services,Web Services,Interdirect Limited,22/06/2016,1650
"Business, Development & Employment",Inward Investment & Business Support,AEAD,Supplies & Services,Comp Software (Purch / Hire),PHOENIX SOFTWARE LTD,28/06/2016,491.4
"Business, Development & Employment",Inward Investment & Business Support,AHAF,Supplies & Services,Other Grants (Expenses),Good2Great Ltd,17/06/2016,6607.56
"Business, Development & Employment",Inward Investment & Business Support,DHBD,Employees,Staff Training,PUBLIC POLICY EXCHANGE LIMITED,10/06/2016,295
"Business, Development & Employment",Inward Investment & Business Support,WDST,Capital Expenditure,Payments to Contractor,PAVE AWAYS LTD,21/06/2016,41665.41
"Business, Development & Employment",Inward Investment & Business Support,WDSX,Capital Expenditure,Payments to Contractor,BT PLC ,24/06/2016,129786.02
"Business, Development & Employment",Skills,ALAA,Supplies & Services,Sub Contractors,WORKERS EDUCATIONAL ASSOCIATION,09/06/2016,9000
"Business, Development & Employment",Skills,ALAA,Supplies & Services,Sub Contractors,WORKERS EDUCATIONAL ASSOCIATION,13/06/2016,10800
"Business, Development & Employment",Skills,ALAA,Supplies & Services,Sub Contractors,WORKERS EDUCATIONAL ASSOCIATION,13/06/2016,1800
"Business, Development & Employment",Skills,ALAA,Supplies & Services,Exam Fees,CITY & GUILDS,01/06/2016,200
"Business, Development & Employment",Skills,ALAA,Third Party Payments,Childminders,CHILDCARE SOS,17/06/2016,835.7
"Business, Development & Employment",Skills,ALAA,Third Party Payments,Childminders,CHILDCARE SOS,17/06/2016,286.7
"Business, Development & Employment",Skills,ALAA,Third Party Payments,Childminders,CHILDCARE SOS,17/06/2016,793
"Business, Development & Employment",Skills,ALAA,Third Party Payments,Childminders,CHILDCARE SOS,17/06/2016,237.9
"Business, Development & Employment",Skills,ALAB,Supplies & Services,Sub Contractors,RELATE SHROPSHIRE & HEREFORDSHIRE LTD,01/06/2016,1350
"Business, Development & Employment",Skills,ALAB,Supplies & Services,Sub Contractors,WORKERS EDUCATIONAL ASSOCIATION,13/06/2016,1320
"Business, Development & Employment",Skills,ALAB,Supplies & Services,Sub Contractors,WORKERS EDUCATIONAL ASSOCIATION,13/06/2016,4440
"Business, Development & Employment",Skills,ALAC,Premises-Related Expenditure,Hire Of Rooms,WROCKWARDINE WOOD & TRENCH PC ,06/06/2016,120
"Business, Development & Employment",Skills,ALAF,Premises-Related Expenditure,Hire Of Rooms,MEETING POINT TRUST LTD,09/06/2016,203.2
"Business, Development & Employment",Skills,ALAF,Premises-Related Expenditure,Hire Of Rooms,MEETING POINT TRUST LTD,13/06/2016,207.4
"Business, Development & Employment",Skills,ALAG,Supplies & Services,Consultants Fees,J2PROFIT,01/06/2016,3500
"Business, Development & Employment",Skills,ALAR,Employees,Professional Subs,Tin Smart Social Ltd,09/06/2016,4200
"Business, Development & Employment",Skills,ALAR,Employees,Professional Subs,Tin Smart Social Ltd,09/06/2016,4200
"Business, Development & Employment",Skills,ALAR,Employees,Training Expenses,PLT Training Ltd,24/06/2016,375
"Business, Development & Employment",Skills,ALAR,Employees,Staff Training,HARPER ADAMS UNIVERSITY COLLEGE,13/06/2016,350
"Business, Development & Employment",Skills,ALAT,Employees,Training Expenses,Shropshire Events,21/06/2016,950
"Business, Development & Employment",Skills,KSAW,Third Party Payments,Agency Services,TELFORD COLLEGE OF ARTS & TECHNOLOGY,08/06/2016,1908
"Business, Development & Employment",Skills,KSAX,Third Party Payments,Agency Services,WE ARE THE CARE COMPANY LTD,16/06/2016,1227.45
"Business, Development & Employment",Skills,KSAX,Third Party Payments,Agency Services,WE ARE THE CARE COMPANY LTD,16/06/2016,784
"Business, Development & Employment",Skills,KSAX,Third Party Payments,Agency Services,TELFORD COLLEGE OF ARTS & TECHNOLOGY,10/06/2016,55733.33
Children's Safeguarding,Child Protection & Assessment,JMAB,Employees,Staff Training,E-voice Speech Recognition Ltd,27/06/2016,750
Children's Safeguarding,Child Protection & Family Support,JBAB,Supplies & Services,Other Services,Keys Group (Malvern Achievement Services Ltd),29/06/2016,10008.35
Children's Safeguarding,Child Protection & Family Support,JBAB,Third Party Payments,Childminders,OLD PARK PRIMARY SCHOOL NURSERY,29/06/2016,217.7
Children's Safeguarding,Child Protection & Family Support,JBAB,Third Party Payments,Childminders,OLD PARK PRIMARY SCHOOL NURSERY,29/06/2016,151.5
Children's Safeguarding,Child Protection & Family Support,JBAB,Third Party Payments,Childminders,OLD PARK PRIMARY SCHOOL NURSERY,29/06/2016,119
Children's Safeguarding,Child Protection & Family Support,JBAC,Supplies & Services,Legal Expenses,Bryan and Armstrong Solicitors,17/06/2016,396.43
Children's Safeguarding,Child Protection & Family Support,JBAE,Third Party Payments,Interpreters Fees,WORD 360 T/AEXPRESS INTERPRETING & TRANSLATION,22/06/2016,139.7
Children's Safeguarding,Child Protection & Family Support,JBAF,Third Party Payments,Childminders,CLUB 0-5 LTD ,29/06/2016,210
Children's Safeguarding,Child Protection & Family Support,JBAF,Third Party Payments,Childminders,Church Street Day Nursery,30/06/2016,160
Children's Safeguarding,Child Protection & Family Support,JBAF,Transport-Related Expenditure,Taxi Costs,Wrixon Care Escorts and Outreach,29/06/2016,1284.94
Children's Safeguarding,Child Protection & Family Support,JBAG,Third Party Payments,Childminders,HONEYBUNS NURSERIES,07/06/2016,190.8
Children's Safeguarding,Child Protection & Family Support,JMAA,Supplies & Services,Legal,REDACTED PERSONAL INFORMATION,07/06/2016,750
Children's Safeguarding,Child Protection & Family Support,JMAE,Supplies & Services,Other Services,DMR Services Ltd,07/06/2016,880
Children's Safeguarding,Child Protection & Family Support,JMAE,Supplies & Services,Other Services,Right Mediation,07/06/2016,800
Children's Safeguarding,Child Protection & Family Support,JMAE,Supplies & Services,Other Services,Serendipity (Devon) Ltd,22/06/2016,11835.5
Children's Safeguarding,Child Protection & Family Support,JMAE,Supplies & Services,Other Services,ALPHA BIOLABORATORIES LIMITED,03/06/2016,162.25
Children's Safeguarding,Child Protection & Family Support,JMAE,Supplies & Services,Other Services,LIVING SPRINGS FAMILY CENTRE,22/06/2016,7273.57
Children's Safeguarding,Child Protection & Family Support,JMAE,Supplies & Services,Other Services,Serendipity (Devon) Ltd,22/06/2016,11731.4
Children's Safeguarding,Child Protection & Family Support,JMAE,Supplies & Services,Other Services,J.A. FOULKES LTD,22/06/2016,396.55
Children's Safeguarding,Child Protection & Family Support,JMAE,Supplies & Services,Other Services,CARTER BROWN LIMITED,03/06/2016,1050
Children's Safeguarding,Child Protection & Family Support,JMAE,Supplies & Services,Other Services,ALPHA BIOLABORATORIES LIMITED,03/06/2016,108
Children's Safeguarding,Child Protection & Family Support,JMAE,Supplies & Services,Other Services,ALPHA BIOLABORATORIES LIMITED,03/06/2016,790
Children's Safeguarding,Child Protection & Family Support,JMAE,Supplies & Services,Other Services,ALPHA BIOLABORATORIES LIMITED,03/06/2016,150
Children's Safeguarding,Child Protection & Family Support,JMAE,Supplies & Services,Other Services,ALPHA BIOLABORATORIES LIMITED,03/06/2016,505
Children's Safeguarding,Child Protection & Family Support,JMAE,Supplies & Services,Other Services,ALPHA BIOLABORATORIES LIMITED,03/06/2016,495
Children's Safeguarding,Child Protection & Family Support,JMAE,Supplies & Services,Other Services,The Child Psychology Service CIC,17/06/2016,597.6
Children's Safeguarding,Child Protection & Family Support,JMAE,Supplies & Services,Other Services,Westbury Health Limited,17/06/2016,119.9
Children's Safeguarding,Child Protection & Family Support,JMAE,Supplies & Services,Other Services,Keys Group (Malvern Achievement Services Ltd),17/06/2016,7565.65
Children's Safeguarding,Child Protection & Family Support,JMAE,Supplies & Services,Other Services,ELMHURST PSYCHOLOGY LTD,03/06/2016,608
Children's Safeguarding,Child Protection & Family Support,JMAE,Supplies & Services,Other Services,FORENSIC PSYCHOLOGY PRACTICE,03/06/2016,1805
Children's Safeguarding,Child Protection & Family Support,JMAE,Supplies & Services,Other Services,CARTER BROWN LIMITED,17/06/2016,2100
Children's Safeguarding,Child Protection & Family Support,JMAE,Supplies & Services,Other Services,CARTER BROWN LIMITED,17/06/2016,2100
Children's Safeguarding,Child Protection & Family Support,JMAE,Supplies & Services,Other Services,NEWSTART NETWORKS CIC,17/06/2016,1330
Children's Safeguarding,Child Protection & Family Support,JMAE,Supplies & Services,Other Services,NEWSTART NETWORKS CIC,17/06/2016,920
Children's Safeguarding,Child Protection & Family Support,JMAE,Supplies & Services,Other Services,CARTER BROWN LIMITED,17/06/2016,300
Children's Safeguarding,Child Protection & Family Support,JMAE,Supplies & Services,Other Services,NEWSTART NETWORKS CIC,17/06/2016,880
Children's Safeguarding,Child Protection & Family Support,JMAE,Supplies & Services,Other Services,Gateway Psychology,17/06/2016,540
Children's Safeguarding,Child Protection & Family Support,JPAA,Third Party Payments,Joint Financing,SHROPSHIRE COUNCIL ,03/06/2016,13105
Children's Safeguarding,Child Protection & Family Support,JPAA,Third Party Payments,Joint Financing,SHROPSHIRE COUNCIL ,08/06/2016,379229
Children's Safeguarding,Child Protection & Family Support,JPAA,Third Party Payments,Joint Financing,SHROPSHIRE COUNCIL ,08/06/2016,94426
Children's Safeguarding,Child Protection & Family Support,JPAH,Supplies & Services,Other Services,SHROPSHIRE COUNCIL ,07/06/2016,2017
Children's Safeguarding,Child Protection & Family Support,JPAH,Supplies & Services,Other Services,SHROPSHIRE COUNCIL ,03/06/2016,8064
Children's Safeguarding,Children Specialist Services,HDAA,Supplies & Services,Stationery,XEROX FINANCE,09/06/2016,106.33
Children's Safeguarding,Children Specialist Services,HDAC,Third Party Payments,Agency Services,NESTOR PRIMECARE SERVICES LTD T/A ALLIED HEALTHCARE,03/06/2016,481.76
Children's Safeguarding,Children Specialist Services,HDAC,Third Party Payments,Agency Services,NESTOR PRIMECARE SERVICES LTD T/A ALLIED HEALTHCARE,24/06/2016,504.76
Children's Safeguarding,Children Specialist Services,HDAG,Supplies & Services,Aids & Appliances,M A Smith Associates,07/06/2016,340
Children's Safeguarding,Children Specialist Services,HDAG,Supplies & Services,Aids & Appliances,G & S SMIRTHWAITE LTD,09/06/2016,469
Children's Safeguarding,Children Specialist Services,HDAG,Supplies & Services,Aids & Appliances,OSPREY HEALTHCARE LTD,10/06/2016,3452
Children's Safeguarding,Children Specialist Services,HDAG,Supplies & Services,Aids & Appliances,JENX LIMITED,27/06/2016,405.1
Children's Safeguarding,Children Specialist Services,HDAG,Supplies & Services,Aids & Appliances,G & S SMIRTHWAITE LTD,30/06/2016,279
Children's Safeguarding,Children Specialist Services,HDAG,Supplies & Services,Aids & Appliances,JENX LIMITED,06/06/2016,155
Children's Safeguarding,Children Specialist Services,HDAG,Supplies & Services,Aids & Appliances,JCM SEATING SOLUTIONS,08/06/2016,1397.7
Children's Safeguarding,Children Specialist Services,HDAJ,Third Party Payments,Agency Services,NESTOR PRIMECARE SERVICES LTD T/A ALLIED HEALTHCARE,09/06/2016,277.5
Children's Safeguarding,Children Specialist Services,HDAJ,Third Party Payments,Agency Services,NESTOR PRIMECARE SERVICES LTD T/A ALLIED HEALTHCARE,09/06/2016,160.76
Children's Safeguarding,Children Specialist Services,HDAJ,Third Party Payments,Agency Services,NESTOR PRIMECARE SERVICES LTD T/A ALLIED HEALTHCARE,09/06/2016,264.28
Children's Safeguarding,Children Specialist Services,HDAJ,Third Party Payments,Agency Services,NESTOR PRIMECARE SERVICES LTD T/A ALLIED HEALTHCARE,08/06/2016,110.8
Children's Safeguarding,Children Specialist Services,HDAJ,Third Party Payments,Agency Services,NESTOR PRIMECARE SERVICES LTD T/A ALLIED HEALTHCARE,09/06/2016,400.86
Children's Safeguarding,Children Specialist Services,HDAJ,Third Party Payments,Agency Services,NESTOR PRIMECARE SERVICES LTD T/A ALLIED HEALTHCARE,09/06/2016,125.85
Children's Safeguarding,Children Specialist Services,HDAJ,Third Party Payments,Agency Services,NESTOR PRIMECARE SERVICES LTD T/A ALLIED HEALTHCARE,08/06/2016,114.4
Children's Safeguarding,Children Specialist Services,HDAJ,Third Party Payments,Agency Services,Direct Health Homecare Limited,10/06/2016,123.2
Children's Safeguarding,Children Specialist Services,HDAJ,Third Party Payments,Agency Services,Direct Health Homecare Limited,28/06/2016,214.5
Children's Safeguarding,Children Specialist Services,HDAJ,Third Party Payments,Agency Services,Direct Health Homecare Limited,28/06/2016,136.5
Children's Safeguarding,Children Specialist Services,HDAJ,Third Party Payments,Agency Services,Direct Health Homecare Limited,28/06/2016,131.33
Children's Safeguarding,Children Specialist Services,HDAJ,Third Party Payments,Agency Services,Direct Health Homecare Limited,28/06/2016,214.06
Children's Safeguarding,Children Specialist Services,HDAJ,Third Party Payments,Agency Services,NESTOR PRIMECARE SERVICES LTD T/A ALLIED HEALTHCARE,24/06/2016,154.02
Children's Safeguarding,Children Specialist Services,HDAJ,Third Party Payments,Agency Services,WE ARE THE CARE COMPANY LTD,24/06/2016,169.44
Children's Safeguarding,Children Specialist Services,HDAJ,Third Party Payments,Agency Services,WE ARE THE CARE COMPANY LTD,24/06/2016,177
Children's Safeguarding,Children Specialist Services,HDAJ,Third Party Payments,Agency Services,WE ARE THE CARE COMPANY LTD,24/06/2016,227.27
Children's Safeguarding,Children Specialist Services,HDAJ,Third Party Payments,Agency Services,NESTOR PRIMECARE SERVICES LTD T/A ALLIED HEALTHCARE,28/06/2016,119.07
Children's Safeguarding,Children Specialist Services,HDAJ,Third Party Payments,Agency Services,Direct Health Homecare Limited,17/06/2016,180.93
Children's Safeguarding,Children Specialist Services,HDAJ,Third Party Payments,Agency Services,Direct Health Homecare Limited,17/06/2016,270.86
Children's Safeguarding,Children Specialist Services,HDAJ,Third Party Payments,Agency Services,Direct Health Homecare Limited,17/06/2016,118.24
Children's Safeguarding,Children Specialist Services,HDAJ,Third Party Payments,Agency Services,Direct Health Homecare Limited,17/06/2016,150.18
Children's Safeguarding,Children Specialist Services,HDAJ,Third Party Payments,Agency Services,Direct Health Homecare Limited,30/06/2016,107.8
Children's Safeguarding,Children Specialist Services,HDAJ,Third Party Payments,Agency Services,WE ARE THE CARE COMPANY LTD,24/06/2016,139.32
Children's Safeguarding,Children Specialist Services,HDAJ,Third Party Payments,Agency Services,Direct Health Homecare Limited,17/06/2016,118.24
Children's Safeguarding,Children Specialist Services,HDAK,Supplies & Services,Other Services,PROGRESS CHILDREN'S SERVICES LTD,14/06/2016,590
Children's Safeguarding,Children Specialist Services,HDAK,Third Party Payments,Agency Services,NESTOR PRIMECARE SERVICES LTD T/A ALLIED HEALTHCARE,09/06/2016,187.31
Children's Safeguarding,Children Specialist Services,HDAK,Third Party Payments,Agency Services,NESTOR PRIMECARE SERVICES LTD T/A ALLIED HEALTHCARE,09/06/2016,550.68
Children's Safeguarding,Family Connect,GEAG,Supplies & Services,Equipment - Purchase,EUROPEAN ELECTRONIQUE LTD,08/06/2016,133.51
Children's Safeguarding,"Family Placements, Children in Care, Leaving Care & Emergency Duty Team",JAAD,Supplies & Services,Furniture - Purchase,BACK CARE SOLUTIONS LTD,24/06/2016,508
Children's Safeguarding,"Family Placements, Children in Care, Leaving Care & Emergency Duty Team",JAAD,Supplies & Services,Furniture - Purchase,BACK CARE SOLUTIONS LTD,24/06/2016,269
Children's Safeguarding,"Family Placements, Children in Care, Leaving Care & Emergency Duty Team",JCAB,Employees,Staff Training,Catch22 Charity Ltd,29/06/2016,235.42
Children's Safeguarding,"Family Placements, Children in Care, Leaving Care & Emergency Duty Team",JCAB,Employees,Staff Training,Catch22 Charity Ltd,29/06/2016,1100
Children's Safeguarding,"Family Placements, Children in Care, Leaving Care & Emergency Duty Team",JCAB,Supplies & Services,Translation Services,UK Language Solutions Ltd,13/06/2016,168
Children's Safeguarding,"Family Placements, Children in Care, Leaving Care & Emergency Duty Team",JCAB,Supplies & Services,Other Travel,ARRIVA MIDLANDS NORTH LIMITED,30/06/2016,362.1
Children's Safeguarding,"Family Placements, Children in Care, Leaving Care & Emergency Duty Team",JCAB,Supplies & Services,Other Travel,ARRIVA MIDLANDS NORTH LIMITED,15/06/2016,155
Children's Safeguarding,"Family Placements, Children in Care, Leaving Care & Emergency Duty Team",JCAB,Supplies & Services,Supportive Lodgings,STAY TELFORD XC SUPPORTED HOUSE,17/06/2016,180.6
Children's Safeguarding,"Family Placements, Children in Care, Leaving Care & Emergency Duty Team",JCAB,Supplies & Services,Supportive Lodgings,STAY TELFORD XC SUPPORTED HOUSE,17/06/2016,742
Children's Safeguarding,"Family Placements, Children in Care, Leaving Care & Emergency Duty Team",JCAB,Supplies & Services,Supportive Lodgings,STAY TELFORD XC SUPPORTED HOUSE,17/06/2016,801.05
Children's Safeguarding,"Family Placements, Children in Care, Leaving Care & Emergency Duty Team",JCAB,Supplies & Services,Supportive Lodgings,STAY TELFORD XC SUPPORTED HOUSE,17/06/2016,801.05
Children's Safeguarding,"Family Placements, Children in Care, Leaving Care & Emergency Duty Team",JCAB,Supplies & Services,Supportive Lodgings,STAY TELFORD XC SUPPORTED HOUSE,16/06/2016,784.42
Children's Safeguarding,"Family Placements, Children in Care, Leaving Care & Emergency Duty Team",JCAB,Supplies & Services,Supportive Lodgings,STAY TELFORD XC SUPPORTED HOUSE,01/06/2016,328.69
Children's Safeguarding,"Family Placements, Children in Care, Leaving Care & Emergency Duty Team",JCAB,Supplies & Services,Supportive Lodgings,BETTERCARE KEYS LTD,14/06/2016,2320
Children's Safeguarding,"Family Placements, Children in Care, Leaving Care & Emergency Duty Team",JCAB,Supplies & Services,Supportive Lodgings,YMCA,02/06/2016,159
Children's Safeguarding,"Family Placements, Children in Care, Leaving Care & Emergency Duty Team",JCAB,Supplies & Services,Supportive Lodgings,YMCA,02/06/2016,630.14
Children's Safeguarding,"Family Placements, Children in Care, Leaving Care & Emergency Duty Team",JCAB,Supplies & Services,Supportive Lodgings,Orsa Housing Limited,30/06/2016,340
Children's Safeguarding,"Family Placements, Children in Care, Leaving Care & Emergency Duty Team",JCAB,Supplies & Services,Supportive Lodgings,BROMFORD HOUSING ASSOCIATION LIMITED,24/06/2016,977.15
Children's Safeguarding,"Family Placements, Children in Care, Leaving Care & Emergency Duty Team",JCAB,Supplies & Services,Supportive Lodgings,Above N beyond Limited,07/06/2016,480
Children's Safeguarding,"Family Placements, Children in Care, Leaving Care & Emergency Duty Team",JCAB,Supplies & Services,Supportive Lodgings,BETTERCARE KEYS LTD,14/06/2016,380
Children's Safeguarding,"Family Placements, Children in Care, Leaving Care & Emergency Duty Team",JCAB,Transfer Payments,Leaving Care Grant,ARGOS BUSINESS SOLUTIONS,17/06/2016,587.73
Children's Safeguarding,"Family Placements, Children in Care, Leaving Care & Emergency Duty Team",JCAB,Transfer Payments,Leaving Care Grant,ARGOS BUSINESS SOLUTIONS,29/06/2016,440.67
Children's Safeguarding,"Family Placements, Children in Care, Leaving Care & Emergency Duty Team",JCAB,Transfer Payments,Leaving Care Grant,DAWLEY BARGAIN CENTRE,24/06/2016,105
Children's Safeguarding,"Family Placements, Children in Care, Leaving Care & Emergency Duty Team",JCAB,Transfer Payments,Leaving Care Grant,ARGOS BUSINESS SOLUTIONS,14/06/2016,882.76
Children's Safeguarding,"Family Placements, Children in Care, Leaving Care & Emergency Duty Team",JMAF,Transport-Related Expenditure,Taxi Costs,Wrixon Care Escorts and Outreach,30/06/2016,1425.5
Children's Safeguarding,"Family Placements, Children in Care, Leaving Care & Emergency Duty Team",JPAD,Third Party Payments,External Foster Care Payments,SWIIS FOSTER CARE LTD,16/06/2016,3864.46
Children's Safeguarding,"Family Placements, Children in Care, Leaving Care & Emergency Duty Team",JPAD,Third Party Payments,External Foster Care Payments,SWIIS FOSTER CARE LTD,16/06/2016,2936.63
Children's Safeguarding,"Family Placements, Children in Care, Leaving Care & Emergency Duty Team",JPAD,Third Party Payments,External Foster Care Payments,SWIIS FOSTER CARE LTD,16/06/2016,3255
Children's Safeguarding,"Family Placements, Children in Care, Leaving Care & Emergency Duty Team",JPAD,Third Party Payments,External Foster Care Payments,Prospects for Young People Ltd,16/06/2016,3488.7
Children's Safeguarding,"Family Placements, Children in Care, Leaving Care & Emergency Duty Team",JPAD,Third Party Payments,External Foster Care Payments,ORANGE GROVE FOSTERCARE LTD,10/06/2016,3415.09
Children's Safeguarding,"Family Placements, Children in Care, Leaving Care & Emergency Duty Team",JPAD,Third Party Payments,External Foster Care Payments,ORANGE GROVE FOSTERCARE LTD,10/06/2016,3277.14
Children's Safeguarding,"Family Placements, Children in Care, Leaving Care & Emergency Duty Team",JPAD,Third Party Payments,External Foster Care Payments,ORANGE GROVE FOSTERCARE LTD,10/06/2016,3013.93
Children's Safeguarding,"Family Placements, Children in Care, Leaving Care & Emergency Duty Team",JPAD,Third Party Payments,External Foster Care Payments,ORANGE GROVE FOSTERCARE LTD,10/06/2016,3114.39
Children's Safeguarding,"Family Placements, Children in Care, Leaving Care & Emergency Duty Team",JPAD,Third Party Payments,External Foster Care Payments,ORANGE GROVE FOSTERCARE LTD,10/06/2016,3344.68
Children's Safeguarding,"Family Placements, Children in Care, Leaving Care & Emergency Duty Team",JPAD,Third Party Payments,External Foster Care Payments,ORANGE GROVE FOSTERCARE LTD,10/06/2016,1128.57
Children's Safeguarding,"Family Placements, Children in Care, Leaving Care & Emergency Duty Team",JPAD,Third Party Payments,External Foster Care Payments,ORANGE GROVE FOSTERCARE LTD,10/06/2016,3304.93
Children's Safeguarding,"Family Placements, Children in Care, Leaving Care & Emergency Duty Team",JPAD,Third Party Payments,External Foster Care Payments,ORANGE GROVE FOSTERCARE LTD,10/06/2016,3236.79
Children's Safeguarding,"Family Placements, Children in Care, Leaving Care & Emergency Duty Team",JPAD,Third Party Payments,External Foster Care Payments,ORANGE GROVE FOSTERCARE LTD,13/06/2016,1015.71
Children's Safeguarding,"Family Placements, Children in Care, Leaving Care & Emergency Duty Team",JPAD,Third Party Payments,External Foster Care Payments,PHOENIX FOSTERING,13/06/2016,-523.92
Children's Safeguarding,"Family Placements, Children in Care, Leaving Care & Emergency Duty Team",JPAD,Third Party Payments,External Foster Care Payments,CLIFFORD HOUSE FOSTERING LTD,13/06/2016,3203.55
Children's Safeguarding,"Family Placements, Children in Care, Leaving Care & Emergency Duty Team",JPAD,Third Party Payments,External Foster Care Payments,HORIZON CARE & EDUCATION GROUP LTD,13/06/2016,2280.7
Children's Safeguarding,"Family Placements, Children in Care, Leaving Care & Emergency Duty Team",JPAD,Third Party Payments,External Foster Care Payments,ORANGE GROVE FOSTERCARE LTD,13/06/2016,211.43
Children's Safeguarding,"Family Placements, Children in Care, Leaving Care & Emergency Duty Team",JPAD,Third Party Payments,External Foster Care Payments,ORANGE GROVE FOSTERCARE LTD,10/06/2016,3344.68
Children's Safeguarding,"Family Placements, Children in Care, Leaving Care & Emergency Duty Team",JPAD,Third Party Payments,External Foster Care Payments,ORANGE GROVE FOSTERCARE LTD,13/06/2016,-3338.7
Children's Safeguarding,"Family Placements, Children in Care, Leaving Care & Emergency Duty Team",JPAD,Third Party Payments,External Foster Care Payments,ORANGE GROVE FOSTERCARE LTD,15/06/2016,1057.14
Children's Safeguarding,"Family Placements, Children in Care, Leaving Care & Emergency Duty Team",JPAD,Third Party Payments,External Foster Care Payments,FAMILIES@FAMILYCARE ,15/06/2016,2611.56
Children's Safeguarding,"Family Placements, Children in Care, Leaving Care & Emergency Duty Team",JPAD,Third Party Payments,External Foster Care Payments,ORANGE GROVE FOSTERCARE LTD,15/06/2016,3380.86
Children's Safeguarding,"Family Placements, Children in Care, Leaving Care & Emergency Duty Team",JPAD,Third Party Payments,External Foster Care Payments,Children Always First,15/06/2016,3437.14
Children's Safeguarding,"Family Placements, Children in Care, Leaving Care & Emergency Duty Team",JPAD,Third Party Payments,External Foster Care Payments,NATIONAL FOSTERING AGENCY,10/06/2016,3233.3
Children's Safeguarding,"Family Placements, Children in Care, Leaving Care & Emergency Duty Team",JPAD,Third Party Payments,External Foster Care Payments,ACTION FOR CHILDREN LIMITED,15/06/2016,3516.29
Children's Safeguarding,"Family Placements, Children in Care, Leaving Care & Emergency Duty Team",JPAD,Third Party Payments,External Foster Care Payments,ORANGE GROVE FOSTERCARE LTD,15/06/2016,3449.86
Children's Safeguarding,"Family Placements, Children in Care, Leaving Care & Emergency Duty Team",JPAD,Third Party Payments,External Foster Care Payments,ORANGE GROVE FOSTERCARE LTD,15/06/2016,3498.57
Children's Safeguarding,"Family Placements, Children in Care, Leaving Care & Emergency Duty Team",JPAD,Third Party Payments,External Foster Care Payments,ORANGE GROVE FOSTERCARE LTD,10/06/2016,3277.76
Children's Safeguarding,"Family Placements, Children in Care, Leaving Care & Emergency Duty Team",JPAD,Third Party Payments,External Foster Care Payments,NATIONAL FOSTERING AGENCY,10/06/2016,3233.3
Children's Safeguarding,"Family Placements, Children in Care, Leaving Care & Emergency Duty Team",JPAD,Third Party Payments,External Foster Care Payments,NATIONAL FOSTERING AGENCY,10/06/2016,3077.99
Children's Safeguarding,"Family Placements, Children in Care, Leaving Care & Emergency Duty Team",JPAD,Third Party Payments,External Foster Care Payments,NATIONAL FOSTERING AGENCY,10/06/2016,3233.3
Children's Safeguarding,"Family Placements, Children in Care, Leaving Care & Emergency Duty Team",JPAD,Third Party Payments,External Foster Care Payments,NATIONAL FOSTERING AGENCY,10/06/2016,3167.27
Children's Safeguarding,"Family Placements, Children in Care, Leaving Care & Emergency Duty Team",JPAD,Third Party Payments,External Foster Care Payments,NATIONAL FOSTERING AGENCY,10/06/2016,3311.73
Children's Safeguarding,"Family Placements, Children in Care, Leaving Care & Emergency Duty Team",JPAD,Third Party Payments,External Foster Care Payments,ORANGE GROVE FOSTERCARE LTD,10/06/2016,3236.79
Children's Safeguarding,"Family Placements, Children in Care, Leaving Care & Emergency Duty Team",JPAD,Third Party Payments,External Foster Care Payments,ORANGE GROVE FOSTERCARE LTD,10/06/2016,1128.57
Children's Safeguarding,"Family Placements, Children in Care, Leaving Care & Emergency Duty Team",JPAD,Third Party Payments,External Foster Care Payments,NATIONAL FOSTERING AGENCY,10/06/2016,3380.86
Children's Safeguarding,"Family Placements, Children in Care, Leaving Care & Emergency Duty Team",JPAD,Third Party Payments,External Foster Care Payments,ORANGE GROVE FOSTERCARE LTD,10/06/2016,3498.57
Children's Safeguarding,"Family Placements, Children in Care, Leaving Care & Emergency Duty Team",JPAD,Third Party Payments,External Foster Care Payments,RED KITE FOSTERING,10/06/2016,5247.86
Children's Safeguarding,"Family Placements, Children in Care, Leaving Care & Emergency Duty Team",JPAD,Third Party Payments,External Foster Care Payments,ORANGE GROVE FOSTERCARE LTD,10/06/2016,3520.71
Children's Safeguarding,"Family Placements, Children in Care, Leaving Care & Emergency Duty Team",JPAD,Third Party Payments,External Foster Care Payments,FAMILY FOSTER CARE LTD,06/06/2016,3154.5
Children's Safeguarding,"Family Placements, Children in Care, Leaving Care & Emergency Duty Team",JPAD,Third Party Payments,External Foster Care Payments,ORANGE GROVE FOSTERCARE LTD,09/06/2016,3277.01
Children's Safeguarding,"Family Placements, Children in Care, Leaving Care & Emergency Duty Team",JPAD,Third Party Payments,External Foster Care Payments,CLIFFORD HOUSE FOSTERING LTD,09/06/2016,3697.99
Children's Safeguarding,"Family Placements, Children in Care, Leaving Care & Emergency Duty Team",JPAD,Third Party Payments,External Foster Care Payments,ORANGE GROVE FOSTERCARE LTD,10/06/2016,2635
Children's Safeguarding,"Family Placements, Children in Care, Leaving Care & Emergency Duty Team",JPAD,Third Party Payments,External Foster Care Payments,ORANGE GROVE FOSTERCARE LTD,10/06/2016,3172.03
Children's Safeguarding,"Family Placements, Children in Care, Leaving Care & Emergency Duty Team",JPAD,Third Party Payments,External Foster Care Payments,PARK FOSTER CARE,27/06/2016,-5028
Children's Safeguarding,"Family Placements, Children in Care, Leaving Care & Emergency Duty Team",JPAD,Third Party Payments,External Foster Care Payments,NATIONAL FOSTERING AGENCY,27/06/2016,-109.06
Children's Safeguarding,"Family Placements, Children in Care, Leaving Care & Emergency Duty Team",JPAD,Third Party Payments,External Foster Care Payments,RED KITE FOSTERING,08/06/2016,5380.71
Children's Safeguarding,"Family Placements, Children in Care, Leaving Care & Emergency Duty Team",JPAD,Third Party Payments,External Foster Care Payments,ORANGE GROVE FOSTERCARE LTD,08/06/2016,2767.86
Children's Safeguarding,"Family Placements, Children in Care, Leaving Care & Emergency Duty Team",JPAD,Third Party Payments,External Foster Care Payments,FAMILIES@FAMILYCARE ,27/06/2016,2527.32
Children's Safeguarding,"Family Placements, Children in Care, Leaving Care & Emergency Duty Team",JPAD,Third Party Payments,External Foster Care Payments,PARK FOSTER CARE,27/06/2016,6000
Children's Safeguarding,"Family Placements, Children in Care, Leaving Care & Emergency Duty Team",JPAD,Third Party Payments,External Foster Care Payments,SWIIS FOSTER CARE LTD,27/06/2016,564.3
Children's Safeguarding,"Family Placements, Children in Care, Leaving Care & Emergency Duty Team",JPAD,Third Party Payments,External Foster Care Payments,PARK FOSTER CARE,27/06/2016,3600
Children's Safeguarding,"Family Placements, Children in Care, Leaving Care & Emergency Duty Team",JPAD,Third Party Payments,External Foster Care Payments,ORANGE GROVE FOSTERCARE LTD,27/06/2016,3171.3
Children's Safeguarding,"Family Placements, Children in Care, Leaving Care & Emergency Duty Team",JPAD,Third Party Payments,External Foster Care Payments,ORANGE GROVE FOSTERCARE LTD,27/06/2016,3385.8
Children's Safeguarding,"Family Placements, Children in Care, Leaving Care & Emergency Duty Team",JPAD,Third Party Payments,External Foster Care Payments,PARK FOSTER CARE,27/06/2016,6200
Children's Safeguarding,"Family Placements, Children in Care, Leaving Care & Emergency Duty Team",JPAD,Third Party Payments,External Foster Care Payments,FAMILIES@FAMILYCARE ,27/06/2016,3888
Children's Safeguarding,"Family Placements, Children in Care, Leaving Care & Emergency Duty Team",JPAD,Third Party Payments,External Foster Care Payments,PHOENIX FOSTERING,23/06/2016,6321.3
Children's Safeguarding,"Family Placements, Children in Care, Leaving Care & Emergency Duty Team",JPAD,Third Party Payments,External Foster Care Payments,PHOENIX FOSTERING,23/06/2016,6321.3
Children's Safeguarding,"Family Placements, Children in Care, Leaving Care & Emergency Duty Team",JPAD,Third Party Payments,External Foster Care Payments,ORANGE GROVE FOSTERCARE LTD,23/06/2016,2550
Children's Safeguarding,"Family Placements, Children in Care, Leaving Care & Emergency Duty Team",JPAD,Third Party Payments,External Foster Care Payments,FOSTER CARE ASSOCIATES LTD,27/06/2016,5077.95
Children's Safeguarding,"Family Placements, Children in Care, Leaving Care & Emergency Duty Team",JPAD,Third Party Payments,External Foster Care Payments,ACTION FOR CHILDREN LIMITED,27/06/2016,3289.43
Children's Safeguarding,"Family Placements, Children in Care, Leaving Care & Emergency Duty Team",JPAD,Third Party Payments,External Foster Care Payments,ORANGE GROVE FOSTERCARE LTD,27/06/2016,3171.3
Children's Safeguarding,"Family Placements, Children in Care, Leaving Care & Emergency Duty Team",JPAD,Third Party Payments,External Foster Care Payments,PHOENIX FOSTERING,23/06/2016,6321.3
Children's Safeguarding,"Family Placements, Children in Care, Leaving Care & Emergency Duty Team",JPAD,Third Party Payments,External Foster Care Payments,By The Bridge,23/06/2016,5807.14
Children's Safeguarding,"Family Placements, Children in Care, Leaving Care & Emergency Duty Team",JPAD,Third Party Payments,External Foster Care Payments,PHOENIX FOSTERING,23/06/2016,5689.2
Children's Safeguarding,"Family Placements, Children in Care, Leaving Care & Emergency Duty Team",JPAD,Third Party Payments,External Foster Care Payments,Childcare Bureau,23/06/2016,3917.4
Children's Safeguarding,"Family Placements, Children in Care, Leaving Care & Emergency Duty Team",JPAD,Third Party Payments,External Foster Care Payments,PARK FOSTER CARE,23/06/2016,6200
Children's Safeguarding,"Family Placements, Children in Care, Leaving Care & Emergency Duty Team",JPAD,Third Party Payments,External Foster Care Payments,ORANGE GROVE FOSTERCARE LTD,30/06/2016,3385.71
Children's Safeguarding,"Family Placements, Children in Care, Leaving Care & Emergency Duty Team",JPAD,Third Party Payments,External Foster Care Payments,Prospects for Young People Ltd,30/06/2016,3453.9
Children's Safeguarding,"Family Placements, Children in Care, Leaving Care & Emergency Duty Team",JPAD,Third Party Payments,External Foster Care Payments,PARK FOSTER CARE,30/06/2016,3348
Children's Safeguarding,"Family Placements, Children in Care, Leaving Care & Emergency Duty Team",JPAD,Third Party Payments,External Foster Care Payments,ORANGE GROVE FOSTERCARE LTD,29/06/2016,3171.3
Children's Safeguarding,"Family Placements, Children in Care, Leaving Care & Emergency Duty Team",JPAD,Third Party Payments,External Foster Care Payments,ORANGE GROVE FOSTERCARE LTD,23/06/2016,3407.1
Children's Safeguarding,"Family Placements, Children in Care, Leaving Care & Emergency Duty Team",JPAD,Third Party Payments,External Foster Care Payments,FOSTERING SOLUTIONS LTD,23/06/2016,3267.81
Children's Safeguarding,"Family Placements, Children in Care, Leaving Care & Emergency Duty Team",JPAD,Third Party Payments,External Foster Care Payments,PARK FOSTER CARE,23/06/2016,3720
Children's Safeguarding,"Family Placements, Children in Care, Leaving Care & Emergency Duty Team",JPAD,Third Party Payments,External Foster Care Payments,FOSTER CARE ASSOCIATES LTD,23/06/2016,3095.1
Children's Safeguarding,"Family Placements, Children in Care, Leaving Care & Emergency Duty Team",JPAD,Third Party Payments,External Foster Care Payments,FOSTER CARE ASSOCIATES LTD,23/06/2016,3423
Children's Safeguarding,"Family Placements, Children in Care, Leaving Care & Emergency Duty Team",JPAD,Third Party Payments,External Foster Care Payments,FOSTER CARE ASSOCIATES LTD,23/06/2016,3258
Children's Safeguarding,"Family Placements, Children in Care, Leaving Care & Emergency Duty Team",JPAD,Third Party Payments,External Foster Care Payments,ORANGE GROVE FOSTERCARE LTD,23/06/2016,3385.8
Children's Safeguarding,"Family Placements, Children in Care, Leaving Care & Emergency Duty Team",JPAD,Third Party Payments,External Foster Care Payments,ORANGE GROVE FOSTERCARE LTD,24/06/2016,3171.9
Children's Safeguarding,"Family Placements, Children in Care, Leaving Care & Emergency Duty Team",JPAD,Third Party Payments,External Foster Care Payments,ORANGE GROVE FOSTERCARE LTD,24/06/2016,3236.7
Children's Safeguarding,"Family Placements, Children in Care, Leaving Care & Emergency Duty Team",JPAD,Third Party Payments,External Foster Care Payments,ORANGE GROVE FOSTERCARE LTD,24/06/2016,3271.8
Children's Safeguarding,"Family Placements, Children in Care, Leaving Care & Emergency Duty Team",JPAD,Third Party Payments,External Foster Care Payments,NATIONAL FOSTERING AGENCY,24/06/2016,2944.62
Children's Safeguarding,"Family Placements, Children in Care, Leaving Care & Emergency Duty Team",JPAD,Third Party Payments,External Foster Care Payments,PARK FOSTER CARE,24/06/2016,3348
Children's Safeguarding,"Family Placements, Children in Care, Leaving Care & Emergency Duty Team",JPAD,Third Party Payments,External Foster Care Payments,ACTION FOR CHILDREN LIMITED,22/06/2016,3402.86
Children's Safeguarding,"Family Placements, Children in Care, Leaving Care & Emergency Duty Team",JPAD,Third Party Payments,External Foster Care Payments,ABC FOSTERING SERVICES LTD,22/06/2016,1450.29
Children's Safeguarding,"Family Placements, Children in Care, Leaving Care & Emergency Duty Team",JPAD,Third Party Payments,External Foster Care Payments,ABC FOSTERING SERVICES LTD,22/06/2016,1450.29
Children's Safeguarding,"Family Placements, Children in Care, Leaving Care & Emergency Duty Team",JPAD,Third Party Payments,External Foster Care Payments,ABC FOSTERING SERVICES LTD,22/06/2016,1450.29
Children's Safeguarding,"Family Placements, Children in Care, Leaving Care & Emergency Duty Team",JPAD,Third Party Payments,External Foster Care Payments,FOSTER CARE ASSOCIATES LTD,24/06/2016,3160.26
Children's Safeguarding,"Family Placements, Children in Care, Leaving Care & Emergency Duty Team",JPAD,Third Party Payments,External Foster Care Payments,ORANGE GROVE FOSTERCARE LTD,24/06/2016,3236.7
Children's Safeguarding,"Family Placements, Children in Care, Leaving Care & Emergency Duty Team",JPAD,Third Party Payments,External Foster Care Payments,ABC FOSTERING SERVICES LTD,22/06/2016,2800
Children's Safeguarding,"Family Placements, Children in Care, Leaving Care & Emergency Duty Team",JPAD,Third Party Payments,External Foster Care Payments,NEXUS FOSTERING,22/06/2016,3451.2
Children's Safeguarding,"Family Placements, Children in Care, Leaving Care & Emergency Duty Team",JPAD,Third Party Payments,External Foster Care Payments,SWIIS FOSTER CARE LTD,22/06/2016,3277.01
Children's Safeguarding,"Family Placements, Children in Care, Leaving Care & Emergency Duty Team",JPAD,Third Party Payments,External Foster Care Payments,ORANGE GROVE FOSTERCARE LTD,22/06/2016,2863.24
Children's Safeguarding,"Family Placements, Children in Care, Leaving Care & Emergency Duty Team",JPAD,Third Party Payments,External Foster Care Payments,SWIIS FOSTER CARE LTD,22/06/2016,2936.63
Children's Safeguarding,"Family Placements, Children in Care, Leaving Care & Emergency Duty Team",JPAD,Third Party Payments,External Foster Care Payments,PHOENIX FOSTERING,03/06/2016,4760.67
Children's Safeguarding,"Family Placements, Children in Care, Leaving Care & Emergency Duty Team",JPAD,Third Party Payments,External Foster Care Payments,FOSTER CARE ASSOCIATES LTD,03/06/2016,5077.95
Children's Safeguarding,"Family Placements, Children in Care, Leaving Care & Emergency Duty Team",JPAD,Third Party Payments,External Foster Care Payments,FOSTER CARE ASSOCIATES LTD,03/06/2016,5247.21
Children's Safeguarding,"Family Placements, Children in Care, Leaving Care & Emergency Duty Team",JPAD,Third Party Payments,External Foster Care Payments,ORANGE GROVE FOSTERCARE LTD,30/06/2016,3498.57
Children's Safeguarding,"Family Placements, Children in Care, Leaving Care & Emergency Duty Team",JPAD,Third Party Payments,External Foster Care Payments,PARK FOSTER CARE,30/06/2016,3309.6
Children's Safeguarding,"Family Placements, Children in Care, Leaving Care & Emergency Duty Team",JPAD,Third Party Payments,External Foster Care Payments,PARK FOSTER CARE,30/06/2016,3419.92
Children's Safeguarding,"Family Placements, Children in Care, Leaving Care & Emergency Duty Team",JPAD,Third Party Payments,External Foster Care Payments,Prospects for Young People Ltd,30/06/2016,1726.95
Children's Safeguarding,"Family Placements, Children in Care, Leaving Care & Emergency Duty Team",JPAD,Third Party Payments,External Foster Care Payments,PARK FOSTER CARE,30/06/2016,3240
Children's Safeguarding,"Family Placements, Children in Care, Leaving Care & Emergency Duty Team",JPAD,Third Party Payments,External Foster Care Payments,ORANGE GROVE FOSTERCARE LTD,30/06/2016,3498.66
Children's Safeguarding,"Family Placements, Children in Care, Leaving Care & Emergency Duty Team",JPAD,Third Party Payments,External Foster Care Payments,Prospects for Young People Ltd,16/06/2016,3492.9
Children's Safeguarding,"Family Placements, Children in Care, Leaving Care & Emergency Duty Team",JPAD,Third Party Payments,External Foster Care Payments,Prospects for Young People Ltd,16/06/2016,3258
Children's Safeguarding,"Family Placements, Children in Care, Leaving Care & Emergency Duty Team",JPAD,Third Party Payments,External Foster Care Payments,FOSTERING PRIORY,16/06/2016,3501.43
Children's Safeguarding,"Family Placements, Children in Care, Leaving Care & Emergency Duty Team",JPAD,Third Party Payments,External Foster Care Payments,PHOENIX FOSTERING,02/06/2016,-2917.83
Children's Safeguarding,"Family Placements, Children in Care, Leaving Care & Emergency Duty Team",JPAD,Third Party Payments,External Foster Care Payments,ORANGE GROVE FOSTERCARE LTD,02/06/2016,3236.79
Children's Safeguarding,"Family Placements, Children in Care, Leaving Care & Emergency Duty Team",JPAD,Third Party Payments,External Foster Care Payments,FAMILY FOSTER CARE LTD,02/06/2016,-537.8
Children's Safeguarding,"Family Placements, Children in Care, Leaving Care & Emergency Duty Team",JPAD,Third Party Payments,Residential Expenditure,FAMILIES@FAMILYCARE ,27/06/2016,3514.2
Children's Safeguarding,"Family Placements, Children in Care, Leaving Care & Emergency Duty Team",JPAM,Supplies & Services,Doctors Fees,WOODSIDE MEDICAL PRACTICE,15/06/2016,110
Children's Safeguarding,"Family Placements, Children in Care, Leaving Care & Emergency Duty Team",JPAM,Supplies & Services,Legal Expenses,Wright McMillian Bennett Law,15/06/2016,1100.11
Children's Safeguarding,"Family Placements, Children in Care, Leaving Care & Emergency Duty Team",JPAM,Supplies & Services,Registration / Licence Fees,Coram Academy Limited,15/06/2016,2956.03
Children's Safeguarding,"Family Placements, Children in Care, Leaving Care & Emergency Duty Team",JPAM,Supplies & Services,Advertising,THE MIDLAND NEWS ASSOCIATION LTD,15/06/2016,305.28
Children's Safeguarding,"Family Placements, Children in Care, Leaving Care & Emergency Duty Team",JPAM,Supplies & Services,Advertising,THE MIDLAND NEWS ASSOCIATION LTD,15/06/2016,172.8
Children's Safeguarding,"Family Placements, Children in Care, Leaving Care & Emergency Duty Team",JPAM,Supplies & Services,Advertising,THE MIDLAND NEWS ASSOCIATION LTD,15/06/2016,120.96
Children's Safeguarding,"Family Placements, Children in Care, Leaving Care & Emergency Duty Team",JPAM,Supplies & Services,Advertising,THE MIDLAND NEWS ASSOCIATION LTD,15/06/2016,305.28
Children's Safeguarding,"Family Placements, Children in Care, Leaving Care & Emergency Duty Team",JPAM,Supplies & Services,Advertising,THE MIDLAND NEWS ASSOCIATION LTD,15/06/2016,166.66
Children's Safeguarding,"Family Placements, Children in Care, Leaving Care & Emergency Duty Team",JPAN,Premises-Related Expenditure,Grounds Maintenance - Misc,TELFORD & WREKIN SERVICES LTD,24/06/2016,142.55
Children's Safeguarding,"Family Placements, Children in Care, Leaving Care & Emergency Duty Team",JPAN,Third Party Payments,External Foster Care Payments,Prospects for Young People Ltd,23/06/2016,1036.17
Children's Safeguarding,"Family Placements, Children in Care, Leaving Care & Emergency Duty Team",JPAN,Third Party Payments,External Foster Care Payments,Prospects for Young People Ltd,23/06/2016,3569.03
Children's Safeguarding,"Family Placements, Children in Care, Leaving Care & Emergency Duty Team",JPAN,Third Party Payments,Residential Expenditure,KEYS CHILDCARE LTD,14/06/2016,250
Children's Safeguarding,"Family Placements, Children in Care, Leaving Care & Emergency Duty Team",JPAN,Third Party Payments,Residential Expenditure,BETTERCARE KEYS LTD,15/06/2016,15101.34
Children's Safeguarding,"Family Placements, Children in Care, Leaving Care & Emergency Duty Team",JPAN,Third Party Payments,Residential Expenditure,YOUNG OPTIONS COLLEGE LTD,15/06/2016,17050
Children's Safeguarding,"Family Placements, Children in Care, Leaving Care & Emergency Duty Team",JPAN,Third Party Payments,Residential Expenditure,MGM CARE SERVICES LTD,14/06/2016,11571.3
Children's Safeguarding,"Family Placements, Children in Care, Leaving Care & Emergency Duty Team",JPAN,Third Party Payments,Residential Expenditure,MGM CARE SERVICES LTD,14/06/2016,11957.01
Children's Safeguarding,"Family Placements, Children in Care, Leaving Care & Emergency Duty Team",JPAN,Third Party Payments,Residential Expenditure,KEYS CHILDCARE LTD,14/06/2016,11691.34
Children's Safeguarding,"Family Placements, Children in Care, Leaving Care & Emergency Duty Team",JPAN,Third Party Payments,Residential Expenditure,KEYS CHILDCARE LTD,14/06/2016,11314.2
Children's Safeguarding,"Family Placements, Children in Care, Leaving Care & Emergency Duty Team",JPAN,Third Party Payments,Residential Expenditure,HORIZON CARE & EDUCATION GROUP LTD,14/06/2016,9122.8
Children's Safeguarding,"Family Placements, Children in Care, Leaving Care & Emergency Duty Team",JPAN,Third Party Payments,Residential Expenditure,HORIZON CARE & EDUCATION GROUP LTD,13/06/2016,-320
Children's Safeguarding,"Family Placements, Children in Care, Leaving Care & Emergency Duty Team",JPAN,Third Party Payments,Residential Expenditure,BETTERCARE KEYS LTD,07/06/2016,3257.16
Children's Safeguarding,"Family Placements, Children in Care, Leaving Care & Emergency Duty Team",JPAN,Third Party Payments,Residential Expenditure,BETTERCARE KEYS LTD,07/06/2016,8414.33
Children's Safeguarding,"Family Placements, Children in Care, Leaving Care & Emergency Duty Team",JPAN,Third Party Payments,Residential Expenditure,BETTERCARE KEYS LTD,10/06/2016,8142.9
Children's Safeguarding,"Family Placements, Children in Care, Leaving Care & Emergency Duty Team",JPAN,Third Party Payments,Residential Expenditure,BETTERCARE KEYS LTD,10/06/2016,1900.01
Children's Safeguarding,"Family Placements, Children in Care, Leaving Care & Emergency Duty Team",JPAN,Third Party Payments,Residential Expenditure,CARE TODAY CHILDRENS SERVICES,13/06/2016,3489.67
Children's Safeguarding,"Family Placements, Children in Care, Leaving Care & Emergency Duty Team",JPAN,Third Party Payments,Residential Expenditure,CARE TODAY CHILDRENS SERVICES,13/06/2016,3377.1
Children's Safeguarding,"Family Placements, Children in Care, Leaving Care & Emergency Duty Team",JPAN,Third Party Payments,Residential Expenditure,HORIZON CARE & EDUCATION GROUP LTD,30/06/2016,13204.2
Children's Safeguarding,"Family Placements, Children in Care, Leaving Care & Emergency Duty Team",JPAN,Third Party Payments,Residential Expenditure,Future in Mind Ltd,27/06/2016,15000
Children's Safeguarding,"Family Placements, Children in Care, Leaving Care & Emergency Duty Team",JPAN,Third Party Payments,Residential Expenditure,PETERBOROUGH CITY COUNCIL,27/06/2016,27720
Children's Safeguarding,"Family Placements, Children in Care, Leaving Care & Emergency Duty Team",JPAN,Third Party Payments,Residential Expenditure,PETERBOROUGH CITY COUNCIL,27/06/2016,28644
Children's Safeguarding,"Family Placements, Children in Care, Leaving Care & Emergency Duty Team",JPAN,Third Party Payments,Residential Expenditure,Unity Residential Care Services Ltd,23/06/2016,11271.3
Children's Safeguarding,"Family Placements, Children in Care, Leaving Care & Emergency Duty Team",JPAN,Third Party Payments,Residential Expenditure,SUNFIELD CHILDRENS HOMES LTD,24/06/2016,15691.17
Children's Safeguarding,"Family Placements, Children in Care, Leaving Care & Emergency Duty Team",JPAN,Third Party Payments,Residential Expenditure,REDACTED PERSONAL INFORMATION,24/06/2016,541
Children's Safeguarding,"Family Placements, Children in Care, Leaving Care & Emergency Duty Team",JPAN,Third Party Payments,Residential Expenditure,Unity Residential Care Services Ltd,23/06/2016,11271.3
Children's Safeguarding,"Family Placements, Children in Care, Leaving Care & Emergency Duty Team",JPAN,Third Party Payments,Residential Expenditure,BETTERCARE KEYS LTD,03/06/2016,14614.2
Children's Safeguarding,"Family Placements, Children in Care, Leaving Care & Emergency Duty Team",JPAN,Third Party Payments,Residential Expenditure,YOUNG OPTIONS COLLEGE LTD,23/06/2016,16500
Children's Safeguarding,"Family Placements, Children in Care, Leaving Care & Emergency Duty Team",JPAN,Third Party Payments,Residential Expenditure,KEYS CHILDCARE LTD,23/06/2016,11314.2
Children's Safeguarding,"Family Placements, Children in Care, Leaving Care & Emergency Duty Team",JPAN,Third Party Payments,Residential Expenditure,PETERBOROUGH CITY COUNCIL,02/06/2016,2772
Children's Safeguarding,"Family Placements, Children in Care, Leaving Care & Emergency Duty Team",JPAN,Third Party Payments,Residential Expenditure,SUNFIELD CHILDRENS HOMES LTD,21/06/2016,15691.17
Children's Safeguarding,"Family Placements, Children in Care, Leaving Care & Emergency Duty Team",JPAN,Third Party Payments,Residential Expenditure,BETTERCARE KEYS LTD,02/06/2016,7859.88
Children's Safeguarding,"Family Placements, Children in Care, Leaving Care & Emergency Duty Team",JPAN,Third Party Payments,Residential Expenditure,Rossie Young Peoples Trust,03/06/2016,21011.64
Children's Safeguarding,"Family Placements, Children in Care, Leaving Care & Emergency Duty Team",JPAN,Third Party Payments,Residential Expenditure,CARE TODAY CHILDRENS SERVICES,17/06/2016,12820.67
Children's Safeguarding,"Family Placements, Children in Care, Leaving Care & Emergency Duty Team",JPAN,Third Party Payments,Residential Expenditure,HORIZON CARE & EDUCATION GROUP LTD,17/06/2016,16680
Children's Safeguarding,"Family Placements, Children in Care, Leaving Care & Emergency Duty Team",JPAN,Third Party Payments,Residential Expenditure,HORIZON CARE & EDUCATION GROUP LTD,29/06/2016,-7922.52
Children's Safeguarding,"Family Placements, Children in Care, Leaving Care & Emergency Duty Team",JPAN,Third Party Payments,Residential Expenditure,HORIZON CARE & EDUCATION GROUP LTD,20/06/2016,16680
Children's Safeguarding,"Family Placements, Children in Care, Leaving Care & Emergency Duty Team",JPAN,Third Party Payments,Residential Expenditure,Unity Residential Care Services Ltd,16/06/2016,11647.01
Children's Safeguarding,"Family Placements, Children in Care, Leaving Care & Emergency Duty Team",JPAN,Third Party Payments,Residential Expenditure,Round House Care Ltd,17/06/2016,12857.1
Children's Safeguarding,"Family Placements, Children in Care, Leaving Care & Emergency Duty Team",JPAN,Third Party Payments,Residential Expenditure,CARE TODAY CHILDRENS SERVICES,17/06/2016,12407.1
Children's Safeguarding,"Family Placements, Children in Care, Leaving Care & Emergency Duty Team",JPAN,Third Party Payments,Residential Expenditure,Unity Residential Care Services Ltd,16/06/2016,11271.3
Children's Safeguarding,"Family Placements, Children in Care, Leaving Care & Emergency Duty Team",JPAN,Third Party Payments,Residential Expenditure,BETTERCARE KEYS LTD,16/06/2016,8421.3
Children's Safeguarding,"Family Placements, Children in Care, Leaving Care & Emergency Duty Team",JPAN,Third Party Payments,Residential Expenditure,HORIZON CARE & EDUCATION GROUP LTD,17/06/2016,17236
Children's Safeguarding,"Family Placements, Children in Care, Leaving Care & Emergency Duty Team",JPAN,Third Party Payments,Residential Expenditure,BETTERCARE KEYS LTD,17/06/2016,8702.01
Children's Safeguarding,Safeguarding Advisory,JAAA,Supplies & Services,Other Services,TCS Services LTD,28/06/2016,1237.5
Children's Safeguarding,Safeguarding Advisory,JAAC,Employees,Training Expenses,European Innovation Limited,21/06/2016,104
Children's Safeguarding,Safeguarding Advisory,JAAC,Supplies & Services,Consultants Fees,Andrew Mason Consultancy Ltd,21/06/2016,1125
Children's Safeguarding,Safeguarding Advisory,JHAB,Employees,Training Expenses,MEETING POINT TRUST LTD,28/06/2016,304
Children's Safeguarding,Safeguarding Advisory,JHAB,Supplies & Services,Subscriptions,TAMESIDE MBC,28/06/2016,166.66
Commercial Services,Catering,CLCM,Premises-Related Expenditure,Clean Mats & Toilet Requisites,Border Janitorial Supplies Limited,22/06/2016,121.82
Commercial Services,Catering,CLCM,Premises-Related Expenditure,Clean Mats & Toilet Requisites,Border Janitorial Supplies Limited,07/06/2016,125.91
Commercial Services,Catering,CLCM,Premises-Related Expenditure,Clean Mats & Toilet Requisites,Border Janitorial Supplies Limited,07/06/2016,151.82
Commercial Services,Catering,CLSP,Premises-Related Expenditure,Clean Mats & Toilet Requisites,Border Janitorial Supplies Limited,07/06/2016,120.17
Commercial Services,Catering,CLSP,Premises-Related Expenditure,Clean Mats & Toilet Requisites,Border Janitorial Supplies Limited,07/06/2016,146.94
Commercial Services,Catering,CLSP,Premises-Related Expenditure,Clean Mats & Toilet Requisites,Border Janitorial Supplies Limited,07/06/2016,420.98
Commercial Services,Catering,CLSP,Premises-Related Expenditure,Clean Mats & Toilet Requisites,Border Janitorial Supplies Limited,07/06/2016,112.94
Commercial Services,Catering,CLSP,Premises-Related Expenditure,Clean Mats & Toilet Requisites,Border Janitorial Supplies Limited,08/06/2016,116.06
Commercial Services,Catering,CLSP,Premises-Related Expenditure,Clean Mats & Toilet Requisites,Border Janitorial Supplies Limited,08/06/2016,169.67
Commercial Services,Catering,CLSP,Supplies & Services,Protective Clothing,MAIN MAN SUPPLIES LTD,24/06/2016,612.5
Commercial Services,Facilities Management and Cleaning Services,CFAA,Premises-Related Expenditure,Grounds Maintenance - Other,Oakleaf Ground Services,22/06/2016,741.93
Commercial Services,Facilities Management and Cleaning Services,CFAA,Premises-Related Expenditure,Grounds Maintenance - Other,Oakleaf Ground Services,28/06/2016,741.93
Commercial Services,Facilities Management and Cleaning Services,CFAA,Premises-Related Expenditure,Grounds Maintenance - Other,Cropper Grounds Maintenance Ltd,29/06/2016,3602.7
Commercial Services,Facilities Management and Cleaning Services,CFAA,Premises-Related Expenditure,Grounds Maintenance - Other,Cropper Grounds Maintenance Ltd,29/06/2016,3081.88
Commercial Services,Facilities Management and Cleaning Services,CFAA,Premises-Related Expenditure,Grounds Maintenance - Other,Cropper Grounds Maintenance Ltd,29/06/2016,3602.7
Commercial Services,Facilities Management and Cleaning Services,CFAA,Premises-Related Expenditure,Grounds Maintenance - Other,NOBRIDGE LTD,16/06/2016,7688.83
Commercial Services,Facilities Management and Cleaning Services,CFAV,Capital Financing Costs,Unitary Charge,PYRAMID SCHOOLS (HADLEY) LTD,17/06/2016,832873.18
Commercial Services,Facilities Management and Cleaning Services,CFAV,Premises-Related Expenditure,Vandal Damage,PYRAMID SCHOOLS (HADLEY) LTD,23/06/2016,433.19
Commercial Services,Facilities Management and Cleaning Services,CFAY,Premises-Related Expenditure,R&M -Buildings DLO Charge,DENMANS ELECTRICAL WHOLESALERS LTD,22/06/2016,240
Commercial Services,Facilities Management and Cleaning Services,CFAY,Premises-Related Expenditure,R&M -Buildings DLO Charge,PLAYSAFETY LTD,16/06/2016,2770
Commercial Services,Facilities Management and Cleaning Services,CFAY,Premises-Related Expenditure,R&M -Buildings DLO Charge,S & P PAINTSHOP LTD,16/06/2016,655.57
Commercial Services,Facilities Management and Cleaning Services,CFAY,Supplies & Services,Equipment - Hire,QUICK SKIPS (TELFORD) LTD,22/06/2016,200
Commercial Services,Facilities Management and Cleaning Services,CFAY,Supplies & Services,Equipment - Hire,QUICK SKIPS (TELFORD) LTD,22/06/2016,165
Commercial Services,Facilities Management and Cleaning Services,CFAY,Supplies & Services,Equipment - Hire,QUICK SKIPS (TELFORD) LTD,22/06/2016,110
Commercial Services,Facilities Management and Cleaning Services,CFAY,Supplies & Services,Equipment - Hire,QUICK SKIPS (TELFORD) LTD,22/06/2016,200
Commercial Services,Housing & NuPlace,DHTF,Premises-Related Expenditure,R&M -Buildings DLO Charge,SDT ELECTRICAL LTD,21/06/2016,177
Commercial Services,Housing & NuPlace,WDAF,Capital Expenditure,Expenditure on loans & other financial assistance,STANNAH LIFT SERVICES LTD,16/06/2016,1334
Commercial Services,Housing & NuPlace,WDAF,Capital Expenditure,Expenditure on loans & other financial assistance,DMW ENVIRONMENTAL SAFETY LTD,16/06/2016,125
Commercial Services,Housing & NuPlace,WDAF,Capital Expenditure,Expenditure on loans & other financial assistance,DMW ENVIRONMENTAL SAFETY LTD,21/06/2016,150
Commercial Services,Housing & NuPlace,WDAF,Capital Expenditure,Expenditure on loans & other financial assistance,REDACTED PERSONAL INFORMATION,29/06/2016,4845.46
Commercial Services,Housing & NuPlace,WDAF,Capital Expenditure,Expenditure on loans & other financial assistance,STANNAH LIFT SERVICES LTD,27/06/2016,1727
Commercial Services,Housing & NuPlace,WDAF,Capital Expenditure,Expenditure on loans & other financial assistance,DMW ENVIRONMENTAL SAFETY LTD,06/06/2016,150
Commercial Services,Housing & NuPlace,WDAF,Capital Expenditure,Expenditure on loans & other financial assistance,STANNAH LIFT SERVICES LTD,27/06/2016,4552.44
Commercial Services,Housing & NuPlace,WDAF,Capital Expenditure,Expenditure on loans & other financial assistance,STANNAH LIFT SERVICES LTD,27/06/2016,9865
Commercial Services,Housing & NuPlace,WDAF,Capital Expenditure,Expenditure on loans & other financial assistance,REDACTED PERSONAL INFORMATION,27/06/2016,16900
Commercial Services,Housing & NuPlace,WDAF,Capital Expenditure,Expenditure on loans & other financial assistance,Roweaver Developments Limited,15/06/2016,2152.46
Commercial Services,Housing & NuPlace,WDAF,Capital Expenditure,Expenditure on loans & other financial assistance,STANNAH LIFT SERVICES LTD,15/06/2016,4238
Commercial Services,Housing & NuPlace,WDAF,Capital Expenditure,Expenditure on loans & other financial assistance,STANNAH LIFT SERVICES LTD,15/06/2016,1601.55
Commercial Services,Housing & NuPlace,WDAF,Capital Expenditure,Expenditure on loans & other financial assistance,THE WREKIN HOUSING TRUST (INVOICES ONLY),15/06/2016,1600
Commercial Services,Housing & NuPlace,WDAF,Capital Expenditure,Expenditure on loans & other financial assistance,MR O P RIGBY T/A ROSEMONT BUILDING CONTRACTORS,15/06/2016,6098.55
Commercial Services,Housing & NuPlace,WDAF,Capital Expenditure,Expenditure on loans & other financial assistance,REDACTED PERSONAL INFORMATION,15/06/2016,4494.58
Commercial Services,Housing & NuPlace,WDAF,Capital Expenditure,Expenditure on loans & other financial assistance,DMW ENVIRONMENTAL SAFETY LTD,14/06/2016,150
Commercial Services,Housing & NuPlace,WDAF,Capital Expenditure,Expenditure on loans & other financial assistance,DMW ENVIRONMENTAL SAFETY LTD,14/06/2016,150
Commercial Services,Housing & NuPlace,WDAF,Capital Expenditure,Expenditure on loans & other financial assistance,MARTIN EVANS CONSTRUCTION LTD,14/06/2016,3403.27
Commercial Services,Housing & NuPlace,WDAF,Capital Expenditure,Expenditure on loans & other financial assistance,PRISM MEDICAL  WESTHOLME DIVISION,14/06/2016,2114.77
Commercial Services,Housing & NuPlace,WDAF,Capital Expenditure,Expenditure on loans & other financial assistance,THREE PINES BUILDING CO LTD,14/06/2016,3977.28
Commercial Services,Housing & NuPlace,WDAF,Capital Expenditure,Expenditure on loans & other financial assistance,TOTAL HYGIENE LIMITED,14/06/2016,3218.5
Commercial Services,Housing & NuPlace,WDAF,Capital Expenditure,Expenditure on loans & other financial assistance,STANNAH LIFT SERVICES LTD,13/06/2016,1765
Commercial Services,Housing & NuPlace,WDAF,Capital Expenditure,Expenditure on loans & other financial assistance,STANNAH LIFT SERVICES LTD,13/06/2016,1147.8
Commercial Services,Housing & NuPlace,WDAF,Capital Expenditure,Expenditure on loans & other financial assistance,STANNAH LIFT SERVICES LTD,13/06/2016,2848
Commercial Services,Housing & NuPlace,WDGD,Capital Expenditure,Expenditure on loans & other financial assistance,Carillion Energy Services Ltd,15/06/2016,19393.92
Commercial Services,ICT,CBAF,Supplies & Services,Telecomms,Airband Community Internet,16/06/2016,295
Commercial Services,ICT,CBAF,Supplies & Services,Telecomms,Airband Community Internet,16/06/2016,295
Commercial Services,ICT,CBAF,Supplies & Services,Telecomms,Airband Community Internet,16/06/2016,790
Commercial Services,ICT,CBAF,Supplies & Services,Telecomms,Airband Community Internet,16/06/2016,295
Commercial Services,ICT,CBAF,Supplies & Services,Telecomms,Airband Community Internet,16/06/2016,295
Commercial Services,ICT,CBAF,Supplies & Services,Telecomms,Airband Community Internet,16/06/2016,295
Commercial Services,ICT,CBAF,Supplies & Services,Telecomms,Airband Community Internet,16/06/2016,295
Commercial Services,ICT,CBAF,Supplies & Services,Telecomms,Airband Community Internet,16/06/2016,295
Commercial Services,ICT,CBAG,Supplies & Services,Equipment - Purchase,EUROPEAN ELECTRONIQUE LTD,15/06/2016,544
Commercial Services,ICT,CBAG,Supplies & Services,Comp Hardware (Purch / Hire),CCS MEDIA LIMITED,28/06/2016,309
Commercial Services,ICT,CBAG,Supplies & Services,Telephones,VIRGIN MEDIA BUSINESS LTD,15/06/2016,11672.15
Commercial Services,ICT,CBAG,Supplies & Services,Mobile Phones,EE LTD AIRTIME ,03/06/2016,6184.98
Commercial Services,ICT,CBAG,Supplies & Services,Mobile Phones,EE LTD AIRTIME ,03/06/2016,108
Commercial Services,ICT,CBAG,Supplies & Services,Mobile Phones,EE LTD AIRTIME ,03/06/2016,2368.18
Commercial Services,ICT,CBAG,Supplies & Services,Mobile Phones,EE LTD AIRTIME ,03/06/2016,15675.98
Commercial Services,ICT,CBAG,Supplies & Services,Mobile Phones,EE LTD AIRTIME ,03/06/2016,1097.17
Commercial Services,ICT,CBAG,Supplies & Services,Mobile Phones,EE LTD AIRTIME ,03/06/2016,732.69
Commercial Services,ICT,CBAG,Supplies & Services,Mobile Phones,EE LTD AIRTIME ,03/06/2016,300.7
Commercial Services,ICT,CBAG,Supplies & Services,Mobile Phones,EE LTD AIRTIME ,03/06/2016,807.03
Commercial Services,ICT,CBAG,Supplies & Services,Mobile Phones,EE LTD AIRTIME ,03/06/2016,3064.05
Commercial Services,ICT,CBAG,Supplies & Services,Other Expenses,PROCESS FLOWS UK LTD,16/06/2016,416.88
Commercial Services,ICT,CBAH,Supplies & Services,External Computer Use,MICROSOFT LTD,16/06/2016,29910.5
Commercial Services,ICT,CBAJ,Supplies & Services,Comp Hardware (Purch / Hire),EUROPEAN ELECTRONIQUE LTD,16/06/2016,114.5
Commercial Services,ICT,CBAJ,Supplies & Services,Comp Software (Purch / Hire),PHOENIX SOFTWARE LTD,03/06/2016,709.2
Commercial Services,ICT,CBAJ,Supplies & Services,Comp Software (Purch / Hire),PHOENIX SOFTWARE LTD,28/06/2016,150
Commercial Services,ICT,CBAJ,Supplies & Services,External Computer Use,MICROSOFT LTD,16/06/2016,29910.5
Commercial Services,ICT,CBAJ,Supplies & Services,External Computer Use,NTA MONITOR LTD,03/06/2016,5704.72
Commercial Services,ICT,CBAJ,Supplies & Services,External Computer Use,PHOENIX SOFTWARE LTD,28/06/2016,1361.96
Commercial Services,ICT,CBAJ,Supplies & Services,External Computer Use,NCC GROUP PERFORMANCE TESTING LTD,14/06/2016,1106
Commercial Services,ICT,CBAJ,Supplies & Services,Telephones,Digital Exchange Products Ltd,01/06/2016,495
Commercial Services,ICT,CBAJ,Supplies & Services,Telephones,BRITISH TELECOMMUNICATIONS PLC,08/06/2016,3981.71
Commercial Services,ICT,CBAJ,Supplies & Services,Telecomms,Airband Community Internet,16/06/2016,250
Commercial Services,ICT,CBAJ,Supplies & Services,Telecomms,Airband Community Internet,16/06/2016,250
Commercial Services,ICT,CBAL,Supplies & Services,Stationery,PREMIER PAPER GROUP LTD,08/06/2016,103.5
Commercial Services,ICT,CBAL,Supplies & Services,Stationery,PREMIER PAPER GROUP LTD,23/06/2016,186.3
Commercial Services,ICT,CBAL,Supplies & Services,Stationery,PREMIER PAPER GROUP LTD,23/06/2016,517.5
Commercial Services,ICT,CBAL,Supplies & Services,Stationery,PREMIER PAPER GROUP LTD,01/06/2016,207
Commercial Services,ICT,CBAL,Supplies & Services,Stationery,PREMIER PAPER GROUP LTD,08/06/2016,103.5
Commercial Services,ICT,CBAL,Supplies & Services,Stationery,PREMIER PAPER GROUP LTD,08/06/2016,103.5
Commercial Services,ICT,WCAG,Capital Expenditure,Payments to Contractor,NORTHGATEARINSO UK LTD,16/06/2016,1160.35
Commercial Services,ICT,WCAG,Capital Expenditure,Payments to Contractor,NORTHGATEARINSO UK LTD,16/06/2016,2089.28
Commercial Services,ICT,WCAG,Capital Expenditure,Payments to Contractor,NORTHGATEARINSO UK LTD,16/06/2016,2209
Commercial Services,ICT,WCAG,Capital Expenditure,Computer Hardware,PYRAMID SCHOOLS (HADLEY) LTD,17/06/2016,16032.82
Commercial Services,ICT,WCAG,Capital Expenditure,Computer Hardware,Computer Computer LTD,06/06/2016,1600
Commercial Services,ICT,WCAG,Capital Expenditure,Computer Hardware,Computer Computer LTD,06/06/2016,2800
Commercial Services,ICT,WCAG,Capital Expenditure,Payments to Contractor,NORTHGATEARINSO UK LTD,15/06/2016,5849.33
Commercial Services,ICT,WCAG,Capital Expenditure,Payments to Contractor,NORTHGATEARINSO UK LTD,15/06/2016,7119.2
Commercial Services,ICT,WCAG,Capital Expenditure,Computer Hardware,Yotta,14/06/2016,8000
Commercial Services,Policy & Strategy,MMAA,Supplies & Services,Fees,3S PRINT & DISPLAY LIMITED,29/06/2016,340
Commercial Services,Policy & Strategy,MPAA,Supplies & Services,Other Expenses,ASC Renewables Limited,29/06/2016,600
Commercial Services,Policy & Strategy,MPAE,Premises-Related Expenditure,Electricity,West Mercia Energy (WME),17/06/2016,115.86
Commercial Services,Policy & Strategy,MPAE,Premises-Related Expenditure,Electricity,West Mercia Energy (WME),14/06/2016,114.25
Commercial Services,Property & Design (BiT),CAAG,Supplies & Services,Consultants Fees,EMECH Consultants Ltd,07/06/2016,484.77
Commercial Services,Property & Design (BiT),CAAH,Premises-Related Expenditure,R&M -Buildings DLO Charge,TAYLORS MECHANICAL H & P SERVICES LTD,15/06/2016,244.3
Commercial Services,Property & Design (BiT),CAAH,Premises-Related Expenditure,R&M -Buildings DLO Charge,George Birchall Limited,15/06/2016,900.06
Commercial Services,Property & Design (BiT),CAAH,Premises-Related Expenditure,R&M -Buildings DLO Charge,George Birchall Limited,09/06/2016,1053.83
Commercial Services,Property & Design (BiT),CAAH,Premises-Related Expenditure,R&M -Buildings DLO Charge,George Birchall Limited,09/06/2016,667.35
Commercial Services,Property & Design (BiT),CAAH,Premises-Related Expenditure,R&M -Buildings DLO Charge,SDT ELECTRICAL LTD,09/06/2016,161
Commercial Services,Property & Design (BiT),CAAH,Premises-Related Expenditure,R&M -Buildings DLO Charge,HYDRO-TECH ENVIRONMENTAL LLP,07/06/2016,150
Commercial Services,Property & Design (BiT),CAAH,Premises-Related Expenditure,R&M -Buildings DLO Charge,WREKIN DRAIN SERVICES LTD,07/06/2016,170
Commercial Services,Property & Design (BiT),CAAH,Premises-Related Expenditure,R&M -Buildings DLO Charge,HYDRO-TECH ENVIRONMENTAL LLP,07/06/2016,195
Commercial Services,Property & Design (BiT),CAAH,Premises-Related Expenditure,R&M -Buildings DLO Charge,HYDRO-TECH ENVIRONMENTAL LLP,07/06/2016,195
Commercial Services,Property & Design (BiT),CAAH,Premises-Related Expenditure,R&M -Buildings DLO Charge,TAYLORS MECHANICAL H & P SERVICES LTD,15/06/2016,120
Commercial Services,Property & Design (BiT),CAAH,Premises-Related Expenditure,R&M -Buildings DLO Charge,TAYLORS MECHANICAL H & P SERVICES LTD,15/06/2016,144
Commercial Services,Property & Design (BiT),CAAH,Premises-Related Expenditure,R&M -Buildings DLO Charge,G M TREBLE LTD,15/06/2016,152
Commercial Services,Property & Design (BiT),CAAH,Premises-Related Expenditure,R&M -Buildings DLO Charge,HYDRO-TECH ENVIRONMENTAL LLP,10/06/2016,490
Commercial Services,Property & Design (BiT),CAAH,Premises-Related Expenditure,R&M -Buildings DLO Charge,AQUALOGIC (WC) LTD,10/06/2016,188.1
Commercial Services,Property & Design (BiT),CAAH,Premises-Related Expenditure,R&M -Buildings DLO Charge,PP ELECTRICAL SERVICES (Shropshire) Ltd,10/06/2016,210
Commercial Services,Property & Design (BiT),CAAH,Premises-Related Expenditure,R&M -Buildings DLO Charge,HYDRO-TECH ENVIRONMENTAL LLP,07/06/2016,240
Commercial Services,Property & Design (BiT),CAAH,Premises-Related Expenditure,R&M -Buildings DLO Charge,George Birchall Limited,07/06/2016,254.5
Commercial Services,Property & Design (BiT),CAAH,Premises-Related Expenditure,R&M -Buildings DLO Charge,WREKIN DRAIN SERVICES LTD,10/06/2016,170
Commercial Services,Property & Design (BiT),CAAH,Premises-Related Expenditure,R&M -Buildings DLO Charge,WREKIN DRAIN SERVICES LTD,10/06/2016,150
Commercial Services,Property & Design (BiT),CAAH,Premises-Related Expenditure,R&M -Buildings DLO Charge,RCS ROOFING CONSTRUCTION SERVICES LTD,10/06/2016,1344
Commercial Services,Property & Design (BiT),CAAH,Premises-Related Expenditure,R&M -Buildings DLO Charge,PP ELECTRICAL SERVICES (Shropshire) Ltd,10/06/2016,398.4
Commercial Services,Property & Design (BiT),CAAH,Premises-Related Expenditure,R&M -Buildings DLO Charge,TAYLORS MECHANICAL H & P SERVICES LTD,15/06/2016,168
Commercial Services,Property & Design (BiT),CAAH,Premises-Related Expenditure,R&M -Buildings DLO Charge,G M TREBLE LTD,15/06/2016,304
Commercial Services,Property & Design (BiT),CAAH,Premises-Related Expenditure,R&M -Buildings DLO Charge,HYDRO-TECH ENVIRONMENTAL LLP,07/06/2016,360
Commercial Services,Property & Design (BiT),CAAH,Premises-Related Expenditure,R&M -Buildings DLO Charge,TAYLORS MECHANICAL H & P SERVICES LTD,07/06/2016,1128
Commercial Services,Property & Design (BiT),CAAH,Premises-Related Expenditure,R&M -Buildings DLO Charge,HYDRO-TECH ENVIRONMENTAL LLP,07/06/2016,360
Commercial Services,Property & Design (BiT),CAAH,Premises-Related Expenditure,R&M -Buildings DLO Charge,HYDRO-TECH ENVIRONMENTAL LLP,07/06/2016,360
Commercial Services,Property & Design (BiT),CAAH,Premises-Related Expenditure,R&M -Buildings DLO Charge,Synergy Property Services Ltd,07/06/2016,353
Commercial Services,Property & Design (BiT),CAAH,Premises-Related Expenditure,R&M -Buildings DLO Charge,WREKIN DRAIN SERVICES LTD,10/06/2016,170
Commercial Services,Property & Design (BiT),CAAH,Premises-Related Expenditure,R&M -Buildings DLO Charge,George Birchall Limited,22/06/2016,128.5
Commercial Services,Property & Design (BiT),CAAH,Premises-Related Expenditure,R&M -Buildings DLO Charge,George Birchall Limited,22/06/2016,107
Commercial Services,Property & Design (BiT),CAAH,Premises-Related Expenditure,R&M -Buildings DLO Charge,George Birchall Limited,22/06/2016,257.5
Commercial Services,Property & Design (BiT),CAAH,Premises-Related Expenditure,R&M -Buildings DLO Charge,WREKIN DRAIN SERVICES LTD,22/06/2016,830
Commercial Services,Property & Design (BiT),CAAH,Premises-Related Expenditure,R&M -Buildings DLO Charge,RCS ROOFING CONSTRUCTION SERVICES LTD,22/06/2016,202.99
Commercial Services,Property & Design (BiT),CAAH,Premises-Related Expenditure,R&M -Buildings DLO Charge,A1 Glass & Glazing (Shropshire) Limited,22/06/2016,110
Commercial Services,Property & Design (BiT),CAAH,Premises-Related Expenditure,R&M -Buildings DLO Charge,J.A.K. WATER SYSTEMS LTD,23/06/2016,192
Commercial Services,Property & Design (BiT),CAAH,Premises-Related Expenditure,R&M -Buildings DLO Charge,George Birchall Limited,22/06/2016,171.5
Commercial Services,Property & Design (BiT),CAAH,Premises-Related Expenditure,R&M -Buildings DLO Charge,George Birchall Limited,22/06/2016,171.5
Commercial Services,Property & Design (BiT),CAAH,Premises-Related Expenditure,R&M -Buildings DLO Charge,George Birchall Limited,22/06/2016,128.5
Commercial Services,Property & Design (BiT),CAAH,Premises-Related Expenditure,R&M -Buildings DLO Charge,George Birchall Limited,22/06/2016,128.5
Commercial Services,Property & Design (BiT),CAAH,Premises-Related Expenditure,R&M -Buildings DLO Charge,George Birchall Limited,22/06/2016,131.5
Commercial Services,Property & Design (BiT),CAAH,Premises-Related Expenditure,R&M -Buildings DLO Charge,George Birchall Limited,22/06/2016,128.5
Commercial Services,Property & Design (BiT),CAAH,Premises-Related Expenditure,R&M -Buildings DLO Charge,George Birchall Limited,22/06/2016,318.45
Commercial Services,Property & Design (BiT),CAAH,Premises-Related Expenditure,R&M -Buildings DLO Charge,TAYLORS MECHANICAL H & P SERVICES LTD,23/06/2016,192
Commercial Services,Property & Design (BiT),CAAH,Premises-Related Expenditure,R&M -Buildings DLO Charge,TAYLORS MECHANICAL H & P SERVICES LTD,23/06/2016,517.15
Commercial Services,Property & Design (BiT),CAAH,Premises-Related Expenditure,R&M -Buildings DLO Charge,G M TREBLE LTD,23/06/2016,659.84
Commercial Services,Property & Design (BiT),CAAH,Premises-Related Expenditure,R&M -Buildings DLO Charge,Synergy Property Services Ltd,23/06/2016,353
Commercial Services,Property & Design (BiT),CAAH,Premises-Related Expenditure,R&M -Buildings DLO Charge,WINDOW & DOOR CONTRACT SERVICES,01/06/2016,157.85
Commercial Services,Property & Design (BiT),CAAH,Premises-Related Expenditure,R&M -Buildings DLO Charge,WINDOW & DOOR CONTRACT SERVICES,01/06/2016,363.6
Commercial Services,Property & Design (BiT),CAAH,Premises-Related Expenditure,R&M -Buildings DLO Charge,WINDOW & DOOR CONTRACT SERVICES,01/06/2016,524.25
Commercial Services,Property & Design (BiT),CAAH,Premises-Related Expenditure,R&M -Buildings DLO Charge,George Birchall Limited,21/06/2016,171.5
Commercial Services,Property & Design (BiT),CAAH,Premises-Related Expenditure,R&M -Buildings DLO Charge,George Birchall Limited,22/06/2016,117
Commercial Services,Property & Design (BiT),CAAH,Premises-Related Expenditure,R&M -Buildings DLO Charge,George Birchall Limited,22/06/2016,168.5
Commercial Services,Property & Design (BiT),CAAH,Premises-Related Expenditure,R&M -Buildings DLO Charge,D P WILCOX & SON,20/06/2016,140
Commercial Services,Property & Design (BiT),CAAH,Premises-Related Expenditure,R&M -Buildings DLO Charge,PP ELECTRICAL SERVICES (Shropshire) Ltd,20/06/2016,257
Commercial Services,Property & Design (BiT),CAAH,Premises-Related Expenditure,R&M -Buildings DLO Charge,PP ELECTRICAL SERVICES (Shropshire) Ltd,20/06/2016,308.22
Commercial Services,Property & Design (BiT),CAAH,Premises-Related Expenditure,R&M -Buildings DLO Charge,NOBRIDGE LTD,20/06/2016,225
Commercial Services,Property & Design (BiT),CAAH,Premises-Related Expenditure,R&M -Buildings DLO Charge,JONES & HAMPTON LTD,20/06/2016,158.1
Commercial Services,Property & Design (BiT),CAAH,Premises-Related Expenditure,R&M -Buildings DLO Charge,George Birchall Limited,20/06/2016,358.57
Commercial Services,Property & Design (BiT),CAAH,Premises-Related Expenditure,R&M -Buildings DLO Charge,PP ELECTRICAL SERVICES (Shropshire) Ltd,01/06/2016,150
Commercial Services,Property & Design (BiT),CAAH,Premises-Related Expenditure,R&M -Buildings DLO Charge,George Birchall Limited,20/06/2016,433.32
Commercial Services,Property & Design (BiT),CAAH,Premises-Related Expenditure,R&M -Buildings DLO Charge,D P WILCOX & SON,20/06/2016,148.7
Commercial Services,Property & Design (BiT),CAAH,Premises-Related Expenditure,R&M -Buildings DLO Charge,D P WILCOX & SON,20/06/2016,102.5
Commercial Services,Property & Design (BiT),CAAH,Premises-Related Expenditure,R&M -Buildings DLO Charge,D P WILCOX & SON,20/06/2016,250
Commercial Services,Property & Design (BiT),CAAH,Premises-Related Expenditure,R&M -Buildings DLO Charge,SECURITY WISE LTD,20/06/2016,265
Commercial Services,Property & Design (BiT),CAAH,Premises-Related Expenditure,R&M -Buildings DLO Charge,SECURITY WISE LTD,16/06/2016,176
Commercial Services,Property & Design (BiT),CAAH,Premises-Related Expenditure,R&M -Buildings DLO Charge,TAYLORS MECHANICAL H & P SERVICES LTD,16/06/2016,168
Commercial Services,Property & Design (BiT),CAAH,Premises-Related Expenditure,R&M -Buildings DLO Charge,GRANVILLE CONSTRUCTION & MAINTENANCE LTD,16/06/2016,152
Commercial Services,Property & Design (BiT),CAAH,Premises-Related Expenditure,R&M -Buildings DLO Charge,E DAVIES & SON (TF4 3JZ),01/06/2016,1932.6
Commercial Services,Property & Design (BiT),CAAH,Premises-Related Expenditure,R&M -Buildings DLO Charge,WINDOW & DOOR CONTRACT SERVICES,01/06/2016,366.93
Commercial Services,Property & Design (BiT),CAAH,Premises-Related Expenditure,R&M -Buildings DLO Charge,WINDOW & DOOR CONTRACT SERVICES,01/06/2016,237.84
Commercial Services,Property & Design (BiT),CAAH,Premises-Related Expenditure,R&M -Buildings DLO Charge,AVT COMMUNICATION SYSTEMS LTD,17/06/2016,516.16
Commercial Services,Property & Design (BiT),CAAH,Premises-Related Expenditure,R&M -Buildings DLO Charge,UNIVERSAL SERVICES,17/06/2016,133.23
Commercial Services,Property & Design (BiT),CAAH,Premises-Related Expenditure,R&M -Buildings DLO Charge,WREKIN DRAIN SERVICES LTD,16/06/2016,170
Commercial Services,Property & Design (BiT),CAAH,Premises-Related Expenditure,R&M -Buildings DLO Charge,SECURITY WISE LTD,16/06/2016,127
Commercial Services,Property & Design (BiT),CAAH,Premises-Related Expenditure,R&M -Buildings DLO Charge,George Birchall Limited,16/06/2016,338.68
Commercial Services,Property & Design (BiT),CAAH,Premises-Related Expenditure,R&M -Buildings DLO Charge,George Birchall Limited,16/06/2016,223.45
Commercial Services,Property & Design (BiT),CAAH,Premises-Related Expenditure,R&M -Buildings DLO Charge,JOHNSON CONTROLS LTD,17/06/2016,198
Commercial Services,Property & Design (BiT),COAE,Premises-Related Expenditure,R&M -Buildings DLO Charge,TAYLORS MECHANICAL H & P SERVICES LTD,10/06/2016,127.5
Commercial Services,Property & Design (BiT),COAE,Premises-Related Expenditure,Service Contracts,HYDRO-TECH ENVIRONMENTAL LLP,07/06/2016,360
Commercial Services,Property & Design (BiT),COAE,Premises-Related Expenditure,Service Contracts,AGS AUTOMATIC DOORS LTD,15/06/2016,170
Commercial Services,Property & Design (BiT),COAE,Premises-Related Expenditure,Electricity,West Mercia Energy (WME),14/06/2016,154.58
Commercial Services,Property & Design (BiT),COAE,Premises-Related Expenditure,Electricity,West Mercia Energy (WME),14/06/2016,2515.95
Commercial Services,Property & Design (BiT),COAE,Premises-Related Expenditure,Electricity,West Mercia Energy (WME),14/06/2016,125
Commercial Services,Property & Design (BiT),COAE,Premises-Related Expenditure,Electricity,West Mercia Energy (WME),10/06/2016,143.19
Commercial Services,Property & Design (BiT),COAE,Premises-Related Expenditure,Electricity,West Mercia Energy (WME),10/06/2016,183.95
Commercial Services,Property & Design (BiT),COAE,Premises-Related Expenditure,Electricity,West Mercia Energy (WME),14/06/2016,818.16
Commercial Services,Property & Design (BiT),COAE,Premises-Related Expenditure,Electricity,West Mercia Energy (WME),22/06/2016,160.53
Commercial Services,Property & Design (BiT),COAE,Premises-Related Expenditure,Electricity,West Mercia Energy (WME),22/06/2016,176.88
Commercial Services,Property & Design (BiT),COAE,Premises-Related Expenditure,Electricity,West Mercia Energy (WME),22/06/2016,150.11
Commercial Services,Property & Design (BiT),COAE,Premises-Related Expenditure,Electricity,West Mercia Energy (WME),14/06/2016,184.59
Commercial Services,Property & Design (BiT),COAE,Premises-Related Expenditure,Electricity,West Mercia Energy (WME),22/06/2016,114.83
Commercial Services,Property & Design (BiT),COAE,Premises-Related Expenditure,Electricity,West Mercia Energy (WME),22/06/2016,272.71
Commercial Services,Property & Design (BiT),COAE,Premises-Related Expenditure,Electricity,West Mercia Energy (WME),22/06/2016,111.34
Commercial Services,Property & Design (BiT),COAE,Premises-Related Expenditure,Electricity,West Mercia Energy (WME),22/06/2016,210.11
Commercial Services,Property & Design (BiT),COAE,Premises-Related Expenditure,Electricity,West Mercia Energy (WME),17/06/2016,2446.25
Commercial Services,Property & Design (BiT),COAE,Premises-Related Expenditure,Electricity,West Mercia Energy (WME),17/06/2016,830.81
Commercial Services,Property & Design (BiT),COAE,Premises-Related Expenditure,Electricity,West Mercia Energy (WME),22/06/2016,119.69
Commercial Services,Property & Design (BiT),COAE,Premises-Related Expenditure,Electricity,West Mercia Energy (WME),22/06/2016,178.55
Commercial Services,Property & Design (BiT),COAE,Premises-Related Expenditure,Gas,West Mercia Energy (WME),22/06/2016,769.99
Commercial Services,Property & Design (BiT),COAE,Premises-Related Expenditure,Gas,West Mercia Energy (WME),01/06/2016,752.15
Commercial Services,Property & Design (BiT),COAE,Premises-Related Expenditure,General Rents,COMBINED PROPERTY CONTROL,10/06/2016,118150.13
Commercial Services,Property & Design (BiT),COAE,Premises-Related Expenditure,Water Rates,SEVERN TRENT WATER LTD,09/06/2016,478
Commercial Services,Property & Design (BiT),COAE,Premises-Related Expenditure,Water Rates,SEVERN TRENT WATER LTD,09/06/2016,1844.56
Commercial Services,Property & Design (BiT),COAG,Premises-Related Expenditure,R&M -Buildings DLO Charge,BRADLEY INDUSTRIAL SERVICES,15/06/2016,113.57
Commercial Services,Property & Design (BiT),COAG,Premises-Related Expenditure,R&M -Buildings DLO Charge,FITZGERALD CONTRACTORS LTD,15/06/2016,2500
Commercial Services,Property & Design (BiT),COAG,Premises-Related Expenditure,R&M -Buildings DLO Charge,RCS ROOFING CONSTRUCTION SERVICES LTD,20/06/2016,613.68
Commercial Services,Property & Design (BiT),COAG,Premises-Related Expenditure,R&M -Buildings DLO Charge,George Birchall Limited,22/06/2016,286.41
Commercial Services,Property & Design (BiT),COAG,Premises-Related Expenditure,R&M -Buildings DLO Charge,TAYLORS MECHANICAL H & P SERVICES LTD,23/06/2016,476.11
Commercial Services,Property & Design (BiT),COAG,Premises-Related Expenditure,R&M -Buildings DLO Charge,COOL SERVICES LTD,23/06/2016,132.26
Commercial Services,Property & Design (BiT),COAG,Premises-Related Expenditure,R&M -Buildings DLO Charge,BRADLEY INDUSTRIAL SERVICES,15/06/2016,183.8
Commercial Services,Property & Design (BiT),COAG,Premises-Related Expenditure,R&M -Buildings DLO Charge,BRADLEY INDUSTRIAL SERVICES,15/06/2016,327.27
Commercial Services,Property & Design (BiT),COAG,Premises-Related Expenditure,R&M -Buildings DLO Charge,George Birchall Limited,16/06/2016,122.5
Commercial Services,Property & Design (BiT),COAG,Premises-Related Expenditure,Service Contracts,George Birchall Limited,21/06/2016,258
Commercial Services,Property & Design (BiT),COAG,Premises-Related Expenditure,Service Contracts,George Birchall Limited,21/06/2016,183
Commercial Services,Property & Design (BiT),COAG,Premises-Related Expenditure,Service Contracts,George Birchall Limited,22/06/2016,272
Commercial Services,Property & Design (BiT),COAG,Premises-Related Expenditure,Service Contracts,George Birchall Limited,22/06/2016,199
Commercial Services,Property & Design (BiT),COAG,Premises-Related Expenditure,Service Contracts,George Birchall Limited,22/06/2016,183
Commercial Services,Property & Design (BiT),COAG,Premises-Related Expenditure,Service Contracts,George Birchall Limited,22/06/2016,151
Commercial Services,Property & Design (BiT),COAG,Premises-Related Expenditure,Service Contracts,George Birchall Limited,22/06/2016,214
Commercial Services,Property & Design (BiT),COAG,Premises-Related Expenditure,Service Contracts,BRADLEY INDUSTRIAL SERVICES,07/06/2016,282.85
Commercial Services,Property & Design (BiT),COAK,Premises-Related Expenditure,R&M -Buildings DLO Charge,DMW ENVIRONMENTAL SAFETY LTD,17/06/2016,125
Commercial Services,Property & Design (BiT),COAK,Premises-Related Expenditure,R&M -Buildings DLO Charge,George Birchall Limited,23/06/2016,115.8
Commercial Services,Property & Design (BiT),COAK,Premises-Related Expenditure,R&M -Buildings DLO Charge,George Birchall Limited,23/06/2016,115.8
Commercial Services,Property & Design (BiT),COAK,Premises-Related Expenditure,R&M -Buildings DLO Charge,George Birchall Limited,07/06/2016,188.51
Commercial Services,Property & Design (BiT),COAK,Premises-Related Expenditure,R&M -Buildings DLO Charge,DMW ENVIRONMENTAL SAFETY LTD,17/06/2016,125
Commercial Services,Property & Design (BiT),COAK,Premises-Related Expenditure,Planned Repairs,JCE & SONS LTD,14/06/2016,367.43
Commercial Services,Property & Design (BiT),COAK,Premises-Related Expenditure,R&M -Building Other,JCE & SONS LTD,14/06/2016,755.93
Commercial Services,Property & Design (BiT),COAK,Premises-Related Expenditure,R&M Fixed Plant DLO,DMW ENVIRONMENTAL SAFETY LTD,17/06/2016,125
Commercial Services,Property & Design (BiT),COAK,Premises-Related Expenditure,Electricity,West Mercia Energy (WME),10/06/2016,374.56
Commercial Services,Property & Design (BiT),COAK,Premises-Related Expenditure,Electricity,Ecotricity Group Limited,28/06/2016,124.9
Commercial Services,Property & Design (BiT),COAK,Premises-Related Expenditure,Electricity,West Mercia Energy (WME),22/06/2016,337
Commercial Services,Property & Design (BiT),COAK,Premises-Related Expenditure,Gas,West Mercia Energy (WME),01/06/2016,-148.35
Commercial Services,Property & Design (BiT),COAK,Premises-Related Expenditure,Gas,Ecotricity Group Limited,28/06/2016,202.25
Commercial Services,Property & Design (BiT),COAK,Premises-Related Expenditure,Gas,West Mercia Energy (WME),22/06/2016,143.32
Commercial Services,Property & Design (BiT),COAK,Premises-Related Expenditure,Gas,SCOTTISH & SOUTHERN ENERGY,30/06/2016,225.17
Commercial Services,Property & Design (BiT),COAK,Premises-Related Expenditure,Gas,West Mercia Energy (WME),01/06/2016,112.09
Commercial Services,Property & Design (BiT),COAK,Premises-Related Expenditure,Leasehold Rents,CHURCHILL PL LIMITED,15/06/2016,445.5
Commercial Services,Property & Design (BiT),COAK,Premises-Related Expenditure,Leasehold Rents,Silas J. Lees T/A Regal Property Services,15/06/2016,396
Commercial Services,Property & Design (BiT),COAK,Premises-Related Expenditure,Leasehold Rents,CHURCHILL PL LIMITED,15/06/2016,445.5
Commercial Services,Property & Design (BiT),COAK,Premises-Related Expenditure,Leasehold Rents,Silas J. Lees T/A Regal Property Services,15/06/2016,450.45
Commercial Services,Property & Design (BiT),COAK,Premises-Related Expenditure,Leasehold Rents,REDACTED PERSONAL INFORMATION,15/06/2016,416.39
Commercial Services,Property & Design (BiT),COAK,Premises-Related Expenditure,Leasehold Rents,Silas J. Lees T/A Regal Property Services,15/06/2016,396
Commercial Services,Property & Design (BiT),COAK,Premises-Related Expenditure,Leasehold Rents,CHURCHILL PL LIMITED,15/06/2016,544.5
Commercial Services,Property & Design (BiT),COAK,Premises-Related Expenditure,Leasehold Rents,CHURCHILL PL LIMITED,15/06/2016,445.5
Commercial Services,Property & Design (BiT),COAK,Premises-Related Expenditure,Leasehold Rents,CHURCHILL PL LIMITED,15/06/2016,445.5
Commercial Services,Property & Design (BiT),COAK,Premises-Related Expenditure,Leasehold Rents,CHURCHILL PL LIMITED,15/06/2016,445.5
Commercial Services,Property & Design (BiT),COAK,Premises-Related Expenditure,Leasehold Rents,REDACTED PERSONAL INFORMATION,15/06/2016,525
Commercial Services,Property & Design (BiT),COAK,Premises-Related Expenditure,Leasehold Rents,REDACTED PERSONAL INFORMATION,15/06/2016,495
Commercial Services,Property & Design (BiT),COAK,Premises-Related Expenditure,Leasehold Rents,REDACTED PERSONAL INFORMATION,15/06/2016,519.75
Commercial Services,Property & Design (BiT),COAM,Premises-Related Expenditure,Gas,SCOTTISH & SOUTHERN ENERGY,30/06/2016,127.22
Commercial Services,Property & Design (BiT),COAP,Premises-Related Expenditure,R&M -Buildings DLO Charge,Lift Source (UK) Limited,10/06/2016,300
Commercial Services,Property & Design (BiT),COAP,Premises-Related Expenditure,R&M -Buildings DLO Charge,PRYCE (BUILDERS) LTD,15/06/2016,402
Commercial Services,Property & Design (BiT),COAP,Premises-Related Expenditure,R&M -Buildings DLO Charge,TAYLORS MECHANICAL H & P SERVICES LTD,15/06/2016,1291.85
Commercial Services,Property & Design (BiT),COAP,Premises-Related Expenditure,R&M -Buildings DLO Charge,TAYLORS MECHANICAL H & P SERVICES LTD,15/06/2016,725
Commercial Services,Property & Design (BiT),COAP,Premises-Related Expenditure,R&M -Buildings DLO Charge,George Birchall Limited,15/06/2016,637.11
Commercial Services,Property & Design (BiT),COAP,Premises-Related Expenditure,R&M -Buildings DLO Charge,J.A.K. WATER SYSTEMS LTD,15/06/2016,450
Commercial Services,Property & Design (BiT),COAP,Premises-Related Expenditure,R&M -Buildings DLO Charge,J.A.K. WATER SYSTEMS LTD,10/06/2016,247.5
Commercial Services,Property & Design (BiT),COAP,Premises-Related Expenditure,R&M -Buildings DLO Charge,TAYLORS MECHANICAL H & P SERVICES LTD,10/06/2016,363.13
Commercial Services,Property & Design (BiT),COAP,Premises-Related Expenditure,R&M -Buildings DLO Charge,PP ELECTRICAL SERVICES (Shropshire) Ltd,10/06/2016,120
Commercial Services,Property & Design (BiT),COAP,Premises-Related Expenditure,R&M -Buildings DLO Charge,WREKIN DRAIN SERVICES LTD,10/06/2016,170
Commercial Services,Property & Design (BiT),COAP,Premises-Related Expenditure,R&M -Buildings DLO Charge,Clearstone Solutions Ltd,10/06/2016,294
Commercial Services,Property & Design (BiT),COAP,Premises-Related Expenditure,R&M -Buildings DLO Charge,Lift Source (UK) Limited,10/06/2016,324.3
Commercial Services,Property & Design (BiT),COAP,Premises-Related Expenditure,R&M -Buildings DLO Charge,PRYCE (BUILDERS) LTD,23/06/2016,3508
Commercial Services,Property & Design (BiT),COAP,Premises-Related Expenditure,R&M -Buildings DLO Charge,JONES & HAMPTON LTD,24/06/2016,716.37
Commercial Services,Property & Design (BiT),COAP,Premises-Related Expenditure,R&M -Buildings DLO Charge,JONES & HAMPTON LTD,24/06/2016,139.6
Commercial Services,Property & Design (BiT),COAP,Premises-Related Expenditure,R&M -Buildings DLO Charge,TAYLORS MECHANICAL H & P SERVICES LTD,24/06/2016,507.96
Commercial Services,Property & Design (BiT),COAP,Premises-Related Expenditure,R&M -Buildings DLO Charge,PP ELECTRICAL SERVICES (Shropshire) Ltd,08/06/2016,120
Commercial Services,Property & Design (BiT),COAP,Premises-Related Expenditure,R&M -Buildings DLO Charge,RCS ROOFING CONSTRUCTION SERVICES LTD,09/06/2016,150.4
Commercial Services,Property & Design (BiT),COAP,Premises-Related Expenditure,R&M -Buildings DLO Charge,Clearstone Solutions Ltd,30/06/2016,903
Commercial Services,Property & Design (BiT),COAP,Premises-Related Expenditure,R&M -Buildings DLO Charge,TAYLORS MECHANICAL H & P SERVICES LTD,22/06/2016,427.48
Commercial Services,Property & Design (BiT),COAP,Premises-Related Expenditure,R&M -Buildings DLO Charge,SECURITY WISE LTD,22/06/2016,142
Commercial Services,Property & Design (BiT),COAP,Premises-Related Expenditure,R&M -Buildings DLO Charge,WREKIN DRAIN SERVICES LTD,22/06/2016,436
Commercial Services,Property & Design (BiT),COAP,Premises-Related Expenditure,R&M -Buildings DLO Charge,WREKIN DRAIN SERVICES LTD,22/06/2016,340
Commercial Services,Property & Design (BiT),COAP,Premises-Related Expenditure,R&M -Buildings DLO Charge,Clearstone Solutions Ltd,23/06/2016,609
Commercial Services,Property & Design (BiT),COAP,Premises-Related Expenditure,R&M -Buildings DLO Charge,George Birchall Limited,20/06/2016,1438.44
Commercial Services,Property & Design (BiT),COAP,Premises-Related Expenditure,R&M -Buildings DLO Charge,George Birchall Limited,20/06/2016,1638.14
Commercial Services,Property & Design (BiT),COAP,Premises-Related Expenditure,R&M -Buildings DLO Charge,PP ELECTRICAL SERVICES (Shropshire) Ltd,20/06/2016,2600
Commercial Services,Property & Design (BiT),COAP,Premises-Related Expenditure,R&M -Buildings DLO Charge,JONES & HAMPTON LTD,20/06/2016,692
Commercial Services,Property & Design (BiT),COAP,Premises-Related Expenditure,R&M -Buildings DLO Charge,TAYLORS MECHANICAL H & P SERVICES LTD,21/06/2016,234
Commercial Services,Property & Design (BiT),COAP,Premises-Related Expenditure,R&M -Buildings DLO Charge,PP ELECTRICAL SERVICES (Shropshire) Ltd,21/06/2016,832.5
Commercial Services,Property & Design (BiT),COAP,Premises-Related Expenditure,R&M -Buildings DLO Charge,JCE & SONS LTD,01/06/2016,-1683
Commercial Services,Property & Design (BiT),COAP,Premises-Related Expenditure,R&M -Buildings DLO Charge,WINDOW & DOOR CONTRACT SERVICES,01/06/2016,283.98
Commercial Services,Property & Design (BiT),COAP,Premises-Related Expenditure,R&M -Buildings DLO Charge,PP ELECTRICAL SERVICES (Shropshire) Ltd,01/06/2016,508.3
Commercial Services,Property & Design (BiT),COAP,Premises-Related Expenditure,R&M -Buildings DLO Charge,WINDOW & DOOR CONTRACT SERVICES,01/06/2016,302.2
Commercial Services,Property & Design (BiT),COAP,Premises-Related Expenditure,R&M -Buildings DLO Charge,ARJOHUNTLEIGH UK,20/06/2016,138.6
Commercial Services,Property & Design (BiT),COAP,Premises-Related Expenditure,R&M -Buildings DLO Charge,Clearstone Solutions Ltd,30/06/2016,-294
Commercial Services,Property & Design (BiT),COAP,Premises-Related Expenditure,R&M -Buildings DLO Charge,RCS ROOFING CONSTRUCTION SERVICES LTD,16/06/2016,624.55
Commercial Services,Property & Design (BiT),COAP,Premises-Related Expenditure,R&M -Buildings DLO Charge,J.A.K. WATER SYSTEMS LTD,16/06/2016,205.73
Commercial Services,Property & Design (BiT),COAP,Premises-Related Expenditure,R&M -Buildings DLO Charge,JCE & SONS LTD,01/06/2016,750
Commercial Services,Property & Design (BiT),COAP,Premises-Related Expenditure,R&M -Buildings DLO Charge,JCE & SONS LTD,01/06/2016,933
Commercial Services,Property & Design (BiT),COAP,Premises-Related Expenditure,Service Contracts,TAYLORS MECHANICAL H & P SERVICES LTD,15/06/2016,384
Commercial Services,Property & Design (BiT),COAP,Premises-Related Expenditure,Service Contracts,TAYLORS MECHANICAL H & P SERVICES LTD,15/06/2016,120
Commercial Services,Property & Design (BiT),COAP,Premises-Related Expenditure,Service Contracts,TAYLORS MECHANICAL H & P SERVICES LTD,15/06/2016,312
Commercial Services,Property & Design (BiT),COAP,Premises-Related Expenditure,Service Contracts,MK Door Systems Ltd T/A Style Midlands,10/06/2016,145
Commercial Services,Property & Design (BiT),COAP,Premises-Related Expenditure,Service Contracts,PP ELECTRICAL SERVICES (Shropshire) Ltd,10/06/2016,1852.8
Commercial Services,Property & Design (BiT),COAP,Premises-Related Expenditure,Service Contracts,TAYLORS MECHANICAL H & P SERVICES LTD,15/06/2016,216
Commercial Services,Property & Design (BiT),COAP,Premises-Related Expenditure,Service Contracts,TAYLORS MECHANICAL H & P SERVICES LTD,15/06/2016,120
Commercial Services,Property & Design (BiT),COAP,Premises-Related Expenditure,Service Contracts,TAYLORS MECHANICAL H & P SERVICES LTD,15/06/2016,360
Commercial Services,Property & Design (BiT),COAP,Premises-Related Expenditure,Service Contracts,TAYLORS MECHANICAL H & P SERVICES LTD,15/06/2016,480.65
Commercial Services,Property & Design (BiT),COAP,Premises-Related Expenditure,Service Contracts,HYDRO-TECH ENVIRONMENTAL LLP,07/06/2016,360
Commercial Services,Property & Design (BiT),COAP,Premises-Related Expenditure,Service Contracts,HYDRO-TECH ENVIRONMENTAL LLP,07/06/2016,360
Commercial Services,Property & Design (BiT),COAP,Premises-Related Expenditure,Service Contracts,HYDRO-TECH ENVIRONMENTAL LLP,07/06/2016,490
Commercial Services,Property & Design (BiT),COAP,Premises-Related Expenditure,Service Contracts,HYDRO-TECH ENVIRONMENTAL LLP,07/06/2016,150
Commercial Services,Property & Design (BiT),COAP,Premises-Related Expenditure,Service Contracts,Lift Source (UK) Limited,07/06/2016,150
Commercial Services,Property & Design (BiT),COAP,Premises-Related Expenditure,Service Contracts,TAYLORS MECHANICAL H & P SERVICES LTD,10/06/2016,195.81
Commercial Services,Property & Design (BiT),COAP,Premises-Related Expenditure,Service Contracts,George Birchall Limited,22/06/2016,131.5
Commercial Services,Property & Design (BiT),COAP,Premises-Related Expenditure,Service Contracts,SECURITY WISE LTD,23/06/2016,150
Commercial Services,Property & Design (BiT),COAP,Premises-Related Expenditure,Service Contracts,COOL SERVICES LTD,23/06/2016,669.52
Commercial Services,Property & Design (BiT),COAP,Premises-Related Expenditure,Service Contracts,HYDRO-TECH ENVIRONMENTAL LLP,07/06/2016,360
Commercial Services,Property & Design (BiT),COAP,Premises-Related Expenditure,Service Contracts,HYDRO-TECH ENVIRONMENTAL LLP,07/06/2016,305
Commercial Services,Property & Design (BiT),COAP,Premises-Related Expenditure,Service Contracts,HYDRO-TECH ENVIRONMENTAL LLP,07/06/2016,125
Commercial Services,Property & Design (BiT),COAP,Premises-Related Expenditure,Service Contracts,AGS AUTOMATIC DOORS LTD,16/06/2016,120
Commercial Services,Property & Design (BiT),COAP,Premises-Related Expenditure,Service Contracts,HYDRO-TECH ENVIRONMENTAL LLP,16/06/2016,490
Commercial Services,Property & Design (BiT),COAP,Premises-Related Expenditure,Service Contracts,PP ELECTRICAL SERVICES (Shropshire) Ltd,01/06/2016,1480
Commercial Services,Property & Design (BiT),COAP,Premises-Related Expenditure,Service Contracts,Sorption Wheel Services Ltd T/A Dehum UK,20/06/2016,785
Commercial Services,Property & Design (BiT),COAP,Premises-Related Expenditure,Service Contracts,ARJOHUNTLEIGH UK,21/06/2016,206.2
Commercial Services,Property & Design (BiT),COAP,Premises-Related Expenditure,Service Contracts,COOL SERVICES LTD,22/06/2016,697.58
Commercial Services,Property & Design (BiT),COAP,Premises-Related Expenditure,Lift Maintenance,AVT COMMUNICATION SYSTEMS LTD,20/06/2016,156.27
Commercial Services,Property & Design (BiT),COAP,Premises-Related Expenditure,R&M -Building Other,COOL SERVICES LTD,16/06/2016,528
Commercial Services,Property & Design (BiT),COAP,Premises-Related Expenditure,Electricity,West Mercia Energy (WME),10/06/2016,162.36
Commercial Services,Property & Design (BiT),COAP,Premises-Related Expenditure,Electricity,West Mercia Energy (WME),10/06/2016,147.7
Commercial Services,Property & Design (BiT),COAP,Premises-Related Expenditure,Electricity,West Mercia Energy (WME),14/06/2016,3895.46
Commercial Services,Property & Design (BiT),COAP,Premises-Related Expenditure,Electricity,West Mercia Energy (WME),14/06/2016,7642.2
Commercial Services,Property & Design (BiT),COAP,Premises-Related Expenditure,Electricity,West Mercia Energy (WME),14/06/2016,228.11
Commercial Services,Property & Design (BiT),COAP,Premises-Related Expenditure,Electricity,West Mercia Energy (WME),10/06/2016,532.49
Commercial Services,Property & Design (BiT),COAP,Premises-Related Expenditure,Electricity,West Mercia Energy (WME),10/06/2016,259.14
Commercial Services,Property & Design (BiT),COAP,Premises-Related Expenditure,Electricity,West Mercia Energy (WME),10/06/2016,223.32
Commercial Services,Property & Design (BiT),COAP,Premises-Related Expenditure,Electricity,West Mercia Energy (WME),14/06/2016,364.89
Commercial Services,Property & Design (BiT),COAP,Premises-Related Expenditure,Electricity,West Mercia Energy (WME),14/06/2016,851.44
Commercial Services,Property & Design (BiT),COAP,Premises-Related Expenditure,Electricity,West Mercia Energy (WME),14/06/2016,266.92
Commercial Services,Property & Design (BiT),COAP,Premises-Related Expenditure,Electricity,West Mercia Energy (WME),14/06/2016,221.18
Commercial Services,Property & Design (BiT),COAP,Premises-Related Expenditure,Electricity,West Mercia Energy (WME),14/06/2016,4194.43
Commercial Services,Property & Design (BiT),COAP,Premises-Related Expenditure,Electricity,West Mercia Energy (WME),14/06/2016,132.89
Commercial Services,Property & Design (BiT),COAP,Premises-Related Expenditure,Electricity,West Mercia Energy (WME),10/06/2016,911.95
Commercial Services,Property & Design (BiT),COAP,Premises-Related Expenditure,Electricity,West Mercia Energy (WME),10/06/2016,1753.48
Commercial Services,Property & Design (BiT),COAP,Premises-Related Expenditure,Electricity,West Mercia Energy (WME),14/06/2016,294.96
Commercial Services,Property & Design (BiT),COAP,Premises-Related Expenditure,Electricity,West Mercia Energy (WME),14/06/2016,111.97
Commercial Services,Property & Design (BiT),COAP,Premises-Related Expenditure,Electricity,West Mercia Energy (WME),14/06/2016,588.56
Commercial Services,Property & Design (BiT),COAP,Premises-Related Expenditure,Electricity,West Mercia Energy (WME),14/06/2016,151.6
Commercial Services,Property & Design (BiT),COAP,Premises-Related Expenditure,Electricity,West Mercia Energy (WME),22/06/2016,271.76
Commercial Services,Property & Design (BiT),COAP,Premises-Related Expenditure,Electricity,West Mercia Energy (WME),10/06/2016,585.52
Commercial Services,Property & Design (BiT),COAP,Premises-Related Expenditure,Electricity,West Mercia Energy (WME),10/06/2016,229.35
Commercial Services,Property & Design (BiT),COAP,Premises-Related Expenditure,Electricity,West Mercia Energy (WME),10/06/2016,717.73
Commercial Services,Property & Design (BiT),COAP,Premises-Related Expenditure,Electricity,West Mercia Energy (WME),10/06/2016,234.45
Commercial Services,Property & Design (BiT),COAP,Premises-Related Expenditure,Electricity,West Mercia Energy (WME),10/06/2016,164.33
Commercial Services,Property & Design (BiT),COAP,Premises-Related Expenditure,Electricity,West Mercia Energy (WME),22/06/2016,711.3
Commercial Services,Property & Design (BiT),COAP,Premises-Related Expenditure,Electricity,West Mercia Energy (WME),22/06/2016,3341.44
Commercial Services,Property & Design (BiT),COAP,Premises-Related Expenditure,Electricity,West Mercia Energy (WME),22/06/2016,321.04
Commercial Services,Property & Design (BiT),COAP,Premises-Related Expenditure,Electricity,West Mercia Energy (WME),22/06/2016,154.98
Commercial Services,Property & Design (BiT),COAP,Premises-Related Expenditure,Electricity,West Mercia Energy (WME),22/06/2016,241.12
Commercial Services,Property & Design (BiT),COAP,Premises-Related Expenditure,Electricity,West Mercia Energy (WME),22/06/2016,1604.7
Commercial Services,Property & Design (BiT),COAP,Premises-Related Expenditure,Electricity,West Mercia Energy (WME),22/06/2016,151.7
Commercial Services,Property & Design (BiT),COAP,Premises-Related Expenditure,Electricity,West Mercia Energy (WME),22/06/2016,1767.1
Commercial Services,Property & Design (BiT),COAP,Premises-Related Expenditure,Electricity,West Mercia Energy (WME),22/06/2016,944.7
Commercial Services,Property & Design (BiT),COAP,Premises-Related Expenditure,Electricity,West Mercia Energy (WME),22/06/2016,304.52
Commercial Services,Property & Design (BiT),COAP,Premises-Related Expenditure,Electricity,West Mercia Energy (WME),22/06/2016,384.47
Commercial Services,Property & Design (BiT),COAP,Premises-Related Expenditure,Electricity,West Mercia Energy (WME),22/06/2016,4421.39
Commercial Services,Property & Design (BiT),COAP,Premises-Related Expenditure,Electricity,West Mercia Energy (WME),22/06/2016,214.15
Commercial Services,Property & Design (BiT),COAP,Premises-Related Expenditure,Electricity,West Mercia Energy (WME),22/06/2016,227.82
Commercial Services,Property & Design (BiT),COAP,Premises-Related Expenditure,Electricity,West Mercia Energy (WME),22/06/2016,968.34
Commercial Services,Property & Design (BiT),COAP,Premises-Related Expenditure,Electricity,West Mercia Energy (WME),22/06/2016,339.56
Commercial Services,Property & Design (BiT),COAP,Premises-Related Expenditure,Electricity,West Mercia Energy (WME),22/06/2016,176.11
Commercial Services,Property & Design (BiT),COAP,Premises-Related Expenditure,Electricity,West Mercia Energy (WME),22/06/2016,2809.13
Commercial Services,Property & Design (BiT),COAP,Premises-Related Expenditure,Electricity,West Mercia Energy (WME),22/06/2016,166.94
Commercial Services,Property & Design (BiT),COAP,Premises-Related Expenditure,Electricity,West Mercia Energy (WME),22/06/2016,531.28
Commercial Services,Property & Design (BiT),COAP,Premises-Related Expenditure,Electricity,West Mercia Energy (WME),22/06/2016,244.27
Commercial Services,Property & Design (BiT),COAP,Premises-Related Expenditure,Electricity,West Mercia Energy (WME),22/06/2016,158.97
Commercial Services,Property & Design (BiT),COAP,Premises-Related Expenditure,Electricity,West Mercia Energy (WME),22/06/2016,103.34
Commercial Services,Property & Design (BiT),COAP,Premises-Related Expenditure,Electricity,West Mercia Energy (WME),22/06/2016,260.35
Commercial Services,Property & Design (BiT),COAP,Premises-Related Expenditure,Electricity,West Mercia Energy (WME),17/06/2016,4063.43
Commercial Services,Property & Design (BiT),COAP,Premises-Related Expenditure,Electricity,West Mercia Energy (WME),17/06/2016,3768.86
Commercial Services,Property & Design (BiT),COAP,Premises-Related Expenditure,Electricity,West Mercia Energy (WME),17/06/2016,7642.51
Commercial Services,Property & Design (BiT),COAP,Premises-Related Expenditure,Electricity,BRITISH GAS BUSINESS ,21/06/2016,129.64
Commercial Services,Property & Design (BiT),COAP,Premises-Related Expenditure,Electricity,E.ON ,21/06/2016,196.2
Commercial Services,Property & Design (BiT),COAP,Premises-Related Expenditure,Electricity,West Mercia Energy (WME),22/06/2016,246.62
Commercial Services,Property & Design (BiT),COAP,Premises-Related Expenditure,Gas,West Mercia Energy (WME),22/06/2016,279.08
Commercial Services,Property & Design (BiT),COAP,Premises-Related Expenditure,Gas,West Mercia Energy (WME),22/06/2016,119.6
Commercial Services,Property & Design (BiT),COAP,Premises-Related Expenditure,Gas,West Mercia Energy (WME),22/06/2016,167.68
Commercial Services,Property & Design (BiT),COAP,Premises-Related Expenditure,Gas,West Mercia Energy (WME),22/06/2016,197.77
Commercial Services,Property & Design (BiT),COAP,Premises-Related Expenditure,Gas,West Mercia Energy (WME),22/06/2016,138.75
Commercial Services,Property & Design (BiT),COAP,Premises-Related Expenditure,Gas,West Mercia Energy (WME),22/06/2016,881.09
Commercial Services,Property & Design (BiT),COAP,Premises-Related Expenditure,Gas,West Mercia Energy (WME),22/06/2016,137.2
Commercial Services,Property & Design (BiT),COAP,Premises-Related Expenditure,Gas,West Mercia Energy (WME),22/06/2016,741.01
Commercial Services,Property & Design (BiT),COAP,Premises-Related Expenditure,Gas,West Mercia Energy (WME),22/06/2016,1989.93
Commercial Services,Property & Design (BiT),COAP,Premises-Related Expenditure,Gas,West Mercia Energy (WME),22/06/2016,130.08
Commercial Services,Property & Design (BiT),COAP,Premises-Related Expenditure,Gas,West Mercia Energy (WME),22/06/2016,1497.01
Commercial Services,Property & Design (BiT),COAP,Premises-Related Expenditure,Gas,West Mercia Energy (WME),22/06/2016,2262.07
Commercial Services,Property & Design (BiT),COAP,Premises-Related Expenditure,Gas,West Mercia Energy (WME),22/06/2016,134.56
Commercial Services,Property & Design (BiT),COAP,Premises-Related Expenditure,Gas,West Mercia Energy (WME),22/06/2016,111.74
Commercial Services,Property & Design (BiT),COAP,Premises-Related Expenditure,Gas,West Mercia Energy (WME),22/06/2016,331.52
Commercial Services,Property & Design (BiT),COAP,Premises-Related Expenditure,Gas,West Mercia Energy (WME),22/06/2016,145.83
Commercial Services,Property & Design (BiT),COAP,Premises-Related Expenditure,Gas,NPOWER  GAS,29/06/2016,149.19
Commercial Services,Property & Design (BiT),COAP,Premises-Related Expenditure,Gas,NPOWER  GAS,30/06/2016,113.44
Commercial Services,Property & Design (BiT),COAP,Premises-Related Expenditure,Gas,NPOWER  GAS,30/06/2016,110.97
Commercial Services,Property & Design (BiT),COAP,Premises-Related Expenditure,Gas,BRITISH GAS BUSINESS ,21/06/2016,185.54
Commercial Services,Property & Design (BiT),COAP,Premises-Related Expenditure,Gas,West Mercia Energy (WME),22/06/2016,295.47
Commercial Services,Property & Design (BiT),COAP,Premises-Related Expenditure,Gas,West Mercia Energy (WME),22/06/2016,192.94
Commercial Services,Property & Design (BiT),COAP,Premises-Related Expenditure,Solid Fuel,MIDLANDS WOOD FUEL SUPPLY LTD,02/06/2016,180.54
Commercial Services,Property & Design (BiT),COAP,Premises-Related Expenditure,Solid Fuel,MIDLANDS WOOD FUEL SUPPLY LTD,02/06/2016,625.49
Commercial Services,Property & Design (BiT),COAP,Premises-Related Expenditure,Solid Fuel,MIDLANDS WOOD FUEL SUPPLY LTD,02/06/2016,250.19
Commercial Services,Property & Design (BiT),COAP,Premises-Related Expenditure,Solid Fuel,MIDLANDS WOOD FUEL SUPPLY LTD,23/06/2016,318.16
Commercial Services,Property & Design (BiT),COAP,Premises-Related Expenditure,Solid Fuel,MIDLANDS WOOD FUEL SUPPLY LTD,23/06/2016,136.35
Commercial Services,Property & Design (BiT),COAP,Premises-Related Expenditure,Solid Fuel,MIDLANDS WOOD FUEL SUPPLY LTD,23/06/2016,491.2
Commercial Services,Property & Design (BiT),COAP,Premises-Related Expenditure,Solid Fuel,MIDLANDS WOOD FUEL SUPPLY LTD,23/06/2016,210.51
Commercial Services,Property & Design (BiT),COAP,Premises-Related Expenditure,Solid Fuel,MIDLANDS WOOD FUEL SUPPLY LTD,07/06/2016,463.71
Commercial Services,Property & Design (BiT),COAP,Premises-Related Expenditure,Solid Fuel,MIDLANDS WOOD FUEL SUPPLY LTD,07/06/2016,198.73
Commercial Services,Property & Design (BiT),COAP,Premises-Related Expenditure,Other Energy Costs,Energy Merchants Ltd,21/06/2016,480.96
Commercial Services,Property & Design (BiT),COAP,Premises-Related Expenditure,Other Energy Costs,Energy Merchants Ltd,29/06/2016,298.62
Commercial Services,Property & Design (BiT),COAP,Premises-Related Expenditure,Water Rates,SEVERN TRENT WATER LTD,22/06/2016,4684.18
Commercial Services,Property & Design (BiT),COAP,Premises-Related Expenditure,Water Rates,SEVERN TRENT WATER LTD,22/06/2016,3062.17
Commercial Services,Property & Design (BiT),COAP,Premises-Related Expenditure,Water Rates,SEVERN TRENT WATER LTD,07/06/2016,775.99
Commercial Services,Property & Design (BiT),COAP,Premises-Related Expenditure,Water Rates,SEVERN TRENT WATER LTD,09/06/2016,1729.46
Commercial Services,Property & Design (BiT),COAP,Premises-Related Expenditure,Water Rates,SEVERN TRENT WATER LTD,09/06/2016,1441.37
Commercial Services,Property & Design (BiT),COAP,Premises-Related Expenditure,Water Rates,SEVERN TRENT WATER LTD,09/06/2016,273.35
Commercial Services,Property & Design (BiT),COAP,Premises-Related Expenditure,Water Rates,SEVERN TRENT WATER LTD,29/06/2016,46547.64
Commercial Services,Property & Design (BiT),COAP,Premises-Related Expenditure,Water Rates,SEVERN TRENT WATER LTD,22/06/2016,1521.04
Commercial Services,Property & Design (BiT),COAP,Premises-Related Expenditure,Water Rates,SEVERN TRENT WATER LTD,22/06/2016,258.47
Commercial Services,Property & Design (BiT),COAP,Premises-Related Expenditure,Water Rates,SEVERN TRENT WATER LTD,22/06/2016,492.13
Commercial Services,Property & Design (BiT),COAP,Premises-Related Expenditure,Water Rates,SEVERN TRENT WATER LTD,22/06/2016,670.46
Commercial Services,Property & Design (BiT),COAP,Premises-Related Expenditure,Clean Mats & Toilet Requisites,PHS GROUP LTD,29/06/2016,380.85
Commercial Services,Property & Design (BiT),COAP,Premises-Related Expenditure,Clean Mats & Toilet Requisites,Larragard Ltd T/A Gard Chemicals,06/06/2016,445.6
Commercial Services,Property & Design (BiT),COAP,Premises-Related Expenditure,Clean Mats & Toilet Requisites,PROVAC CLEANING SUPPLIES LTD,22/06/2016,171.9
Commercial Services,Property & Design (BiT),COAP,Premises-Related Expenditure,Clean Mats & Toilet Requisites,PROVAC CLEANING SUPPLIES LTD,22/06/2016,127.56
Commercial Services,Property & Design (BiT),COAP,Premises-Related Expenditure,Clean Mats & Toilet Requisites,PROVAC CLEANING SUPPLIES LTD,29/06/2016,286.5
Commercial Services,Property & Design (BiT),COAP,Premises-Related Expenditure,Contract Cleaning,TELFORD & WREKIN SERVICES LTD,22/06/2016,926.36
Commercial Services,Property & Design (BiT),COAP,Premises-Related Expenditure,Contract Cleaning,CLEANIT CLEANING SERVICES,14/06/2016,677.25
Commercial Services,Property & Design (BiT),COAP,Premises-Related Expenditure,Contract Cleaning,CLEANIT CLEANING SERVICES,14/06/2016,677.25
Commercial Services,Property & Design (BiT),COAP,Premises-Related Expenditure,Contract Cleaning,CLEANIT CLEANING SERVICES,14/06/2016,677.25
Commercial Services,Property & Design (BiT),COAP,Premises-Related Expenditure,Contract Cleaning,CLEANIT CLEANING SERVICES,14/06/2016,677.25
Commercial Services,Property & Design (BiT),COAP,Premises-Related Expenditure,Contract Cleaning,CLEANIT CLEANING SERVICES,14/06/2016,677.25
Commercial Services,Property & Design (BiT),COAP,Premises-Related Expenditure,Contract Cleaning,CLEANIT CLEANING SERVICES,14/06/2016,677.25
Commercial Services,Property & Design (BiT),COAP,Premises-Related Expenditure,Contract Cleaning,CLEANIT CLEANING SERVICES,14/06/2016,677.25
Commercial Services,Property & Design (BiT),COAP,Premises-Related Expenditure,Trade Refuse,FCC Recycling (UK) Ltd,16/06/2016,1224.35
Commercial Services,Property & Design (BiT),COAP,Premises-Related Expenditure,Trade Refuse,FCC Recycling (UK) Ltd,16/06/2016,1251.5
Commercial Services,Property & Design (BiT),COAP,Premises-Related Expenditure,Trade Refuse,FCC Recycling (UK) Ltd,16/06/2016,273
Commercial Services,Property & Design (BiT),COAP,Premises-Related Expenditure,Trade Refuse,FCC Recycling (UK) Ltd,15/06/2016,106.73
Commercial Services,Property & Design (BiT),COAP,Premises-Related Expenditure,Trade Refuse,FCC Recycling (UK) Ltd,15/06/2016,522.6
Commercial Services,Property & Design (BiT),COAP,Premises-Related Expenditure,Trade Refuse,FCC Recycling (UK) Ltd,15/06/2016,689.2
Commercial Services,Property & Design (BiT),COAP,Premises-Related Expenditure,Trade Refuse,FCC Recycling (UK) Ltd,15/06/2016,430.3
Commercial Services,Property & Design (BiT),COAP,Premises-Related Expenditure,Trade Refuse,FCC Recycling (UK) Ltd,15/06/2016,202.67
Commercial Services,Property & Design (BiT),COAP,Premises-Related Expenditure,Trade Refuse,FCC Recycling (UK) Ltd,15/06/2016,124.08
Commercial Services,Property & Design (BiT),COAP,Premises-Related Expenditure,Trade Refuse,FCC Recycling (UK) Ltd,20/06/2016,108.71
Commercial Services,Property & Design (BiT),COAP,Premises-Related Expenditure,Trade Refuse,FCC Recycling (UK) Ltd,20/06/2016,130.86
Commercial Services,Property & Design (BiT),COAP,Premises-Related Expenditure,Trade Refuse,FCC Recycling (UK) Ltd,09/06/2016,200.2
Commercial Services,Property & Design (BiT),COAP,Premises-Related Expenditure,Trade Refuse,FCC Recycling (UK) Ltd,09/06/2016,306.02
Commercial Services,Property & Design (BiT),COAP,Premises-Related Expenditure,Trade Refuse,FCC Recycling (UK) Ltd,09/06/2016,271.74
Commercial Services,Property & Design (BiT),COAP,Premises-Related Expenditure,Trade Refuse,FCC Recycling (UK) Ltd,14/06/2016,781.56
Commercial Services,Property & Design (BiT),COAP,Premises-Related Expenditure,Swimming Pool Chemicals,MAIN MAN SUPPLIES LTD,28/06/2016,134.6
Commercial Services,Property & Design (BiT),COAP,Premises-Related Expenditure,Swimming Pool Chemicals,PHS GROUP LTD,07/06/2016,132.16
Commercial Services,Property & Design (BiT),COAP,Premises-Related Expenditure,Swimming Pool Chemicals,MAIN MAN SUPPLIES LTD,07/06/2016,360.18
Commercial Services,Property & Design (BiT),COAP,Premises-Related Expenditure,Swimming Pool Chemicals,FCC Recycling (UK) Ltd,10/06/2016,359.32
Commercial Services,Property & Design (BiT),COAP,Premises-Related Expenditure,Hygiene Services,PHS GROUP LTD,15/06/2016,326.52
Commercial Services,Property & Design (BiT),COAP,Premises-Related Expenditure,Grounds Maintenance - L&CS,FCC Recycling (UK) Ltd,22/06/2016,-155.12
Commercial Services,Property & Design (BiT),COAP,Premises-Related Expenditure,Contributions to Premises-related Provisions,WEST MERCIA SUPPLIES Catalogue Supplies (None Utility),15/06/2016,220.94
Commercial Services,Property & Design (BiT),COAP,Supplies & Services,Furniture - Purchase,Specialised Panel Products LTD,06/06/2016,405
Commercial Services,Property & Design (BiT),COAP,Supplies & Services,Chemicals/Cleaning Products,PHS GROUP LTD,07/06/2016,149.97
Commercial Services,Property & Design (BiT),COAP,Supplies & Services,Security Services,LEISURE SEC PLC,14/06/2016,150
Commercial Services,Property & Design (BiT),COAP,Supplies & Services,Security Services,BUSINESS WATCH GUARDING LIMITED,15/06/2016,119.96
Commercial Services,Property & Design (BiT),COAP,Supplies & Services,Security Services,BUSINESS WATCH GUARDING LIMITED,15/06/2016,346.59
Commercial Services,Property & Design (BiT),COAP,Supplies & Services,Security Services,BUSINESS WATCH GUARDING LIMITED,15/06/2016,346.52
Commercial Services,Property & Design (BiT),COAP,Supplies & Services,Security Services,BUSINESS WATCH GUARDING LIMITED,15/06/2016,668.54
Commercial Services,Property & Design (BiT),COAP,Supplies & Services,Security Services,LEISURE SEC PLC,30/06/2016,150
Commercial Services,Property & Design (BiT),COAP,Supplies & Services,Security Services,LEISURE SEC PLC,30/06/2016,150
Commercial Services,Property & Design (BiT),COAP,Supplies & Services,Security Services,LEISURE SEC PLC,07/06/2016,150
Commercial Services,Property & Design (BiT),COAP,Supplies & Services,Security Services,LEISURE SEC PLC,07/06/2016,150
Commercial Services,Property & Design (BiT),COAP,Supplies & Services,Security Services,BUSINESS WATCH GUARDING LIMITED,10/06/2016,413.58
Commercial Services,Property & Design (BiT),COAP,Supplies & Services,Security Services,BUSINESS WATCH GUARDING LIMITED,10/06/2016,417.37
Commercial Services,Property & Design (BiT),COAP,Supplies & Services,Security Services,LEISURE SEC PLC,16/06/2016,150
Commercial Services,Property & Design (BiT),COAT,Premises-Related Expenditure,R&M -Building Other,KRM CONTRACTORS LTD,07/06/2016,585.3
Commercial Services,Property & Design (BiT),COAT,Premises-Related Expenditure,R&M -Building Other,CHRIS BREEZE LTD,07/06/2016,103.94
Commercial Services,Property & Design (BiT),COAT,Premises-Related Expenditure,R&M -Building Other,WREKIN DRAIN SERVICES LTD,16/06/2016,1218
Commercial Services,Property & Design (BiT),COAT,Premises-Related Expenditure,R&M -Building Other,George Birchall Limited,20/06/2016,123.27
Commercial Services,Property & Design (BiT),COAT,Premises-Related Expenditure,R&M -Building Other,JONES & HAMPTON LTD,24/06/2016,123
Commercial Services,Property & Design (BiT),COAT,Premises-Related Expenditure,Electricity,West Mercia Energy (WME),14/06/2016,146.16
Commercial Services,Property & Design (BiT),COAT,Premises-Related Expenditure,Electricity,West Mercia Energy (WME),14/06/2016,158.36
Commercial Services,Property & Design (BiT),COAT,Premises-Related Expenditure,Electricity,West Mercia Energy (WME),14/06/2016,228.2
Commercial Services,Property & Design (BiT),COAT,Premises-Related Expenditure,Electricity,West Mercia Energy (WME),14/06/2016,106.32
Commercial Services,Property & Design (BiT),COAT,Premises-Related Expenditure,Electricity,West Mercia Energy (WME),14/06/2016,113.87
Commercial Services,Property & Design (BiT),COAT,Premises-Related Expenditure,Electricity,West Mercia Energy (WME),10/06/2016,112.63
Commercial Services,Property & Design (BiT),COAT,Premises-Related Expenditure,Electricity,West Mercia Energy (WME),14/06/2016,148.45
Commercial Services,Property & Design (BiT),COAT,Premises-Related Expenditure,Electricity,West Mercia Energy (WME),14/06/2016,136.79
Commercial Services,Property & Design (BiT),COAT,Premises-Related Expenditure,Electricity,West Mercia Energy (WME),14/06/2016,117.02
Commercial Services,Property & Design (BiT),COAT,Premises-Related Expenditure,Electricity,West Mercia Energy (WME),14/06/2016,212.24
Commercial Services,Property & Design (BiT),COAT,Premises-Related Expenditure,Electricity,West Mercia Energy (WME),14/06/2016,148.33
Commercial Services,Property & Design (BiT),COAT,Premises-Related Expenditure,Electricity,West Mercia Energy (WME),22/06/2016,191.58
Commercial Services,Property & Design (BiT),COAT,Premises-Related Expenditure,Electricity,West Mercia Energy (WME),14/06/2016,114.6
Commercial Services,Property & Design (BiT),COAT,Premises-Related Expenditure,Electricity,West Mercia Energy (WME),22/06/2016,104.62
Commercial Services,Property & Design (BiT),COAT,Premises-Related Expenditure,Electricity,West Mercia Energy (WME),22/06/2016,136.46
Commercial Services,Property & Design (BiT),COAT,Premises-Related Expenditure,Electricity,West Mercia Energy (WME),22/06/2016,101.81
Commercial Services,Property & Design (BiT),COAT,Premises-Related Expenditure,Electricity,West Mercia Energy (WME),22/06/2016,173.36
Commercial Services,Property & Design (BiT),COAT,Premises-Related Expenditure,Electricity,West Mercia Energy (WME),22/06/2016,148.98
Commercial Services,Property & Design (BiT),COAT,Premises-Related Expenditure,Electricity,West Mercia Energy (WME),22/06/2016,115.84
Commercial Services,Property & Design (BiT),COAT,Premises-Related Expenditure,Electricity,West Mercia Energy (WME),22/06/2016,118.05
Commercial Services,Property & Design (BiT),COAT,Premises-Related Expenditure,Water Rates,SEVERN TRENT WATER LTD,23/06/2016,2156.24
Commercial Services,Property & Design (BiT),COAT,Premises-Related Expenditure,Water Rates,SEVERN TRENT WATER LTD,24/06/2016,848.36
Commercial Services,Property & Design (BiT),WCBE,Capital Expenditure,Payments to Contractor,Arrol & Snell Ltd,23/06/2016,1000
Commercial Services,Property & Design (BiT),WCHC,Capital Expenditure,Payments to Contractor,PAVE AWAYS LTD,10/06/2016,306435.61
Commercial Services,Sport & Leisure,CAHH,Supplies & Services,Items For Resale,Forestry Commission,20/06/2016,1017.5
Commercial Services,Sport & Leisure,CAHH,Supplies & Services,Holidays & Outings,Vegware,22/06/2016,336.5
Commercial Services,Sport & Leisure,CAHH,Supplies & Services,Provisions,BIKOLD,17/06/2016,289.23
Commercial Services,Sport & Leisure,CAHH,Supplies & Services,Provisions,BIKOLD,03/06/2016,114.91
Commercial Services,Sport & Leisure,CAHH,Supplies & Services,Provisions,BIKOLD,03/06/2016,339.53
Commercial Services,Sport & Leisure,CAHH,Supplies & Services,Provisions,BIKOLD,03/06/2016,152.36
Commercial Services,Sport & Leisure,CAHH,Supplies & Services,Provisions,BIKOLD,10/06/2016,136.23
Commercial Services,Sport & Leisure,CAMA,Employees,Training Expenses,CIEH,13/06/2016,325.5
Commercial Services,Sport & Leisure,CAMA,Employees,Training Expenses,CIEH,14/06/2016,437.9
Commercial Services,Sport & Leisure,CAMA,Supplies & Services,Computer Hardware (Maint),NATIONWIDE RETAIL SYSTEMS LTD,22/06/2016,1265
Commercial Services,Sport & Leisure,CAMA,Supplies & Services,Computer Hardware (Maint),NATIONWIDE RETAIL SYSTEMS LTD,22/06/2016,1265
Commercial Services,Sport & Leisure,CAMA,Supplies & Services,Computer Hardware (Maint),NATIONWIDE RETAIL SYSTEMS LTD,22/06/2016,2010
Commercial Services,Sport & Leisure,CAMA,Supplies & Services,Computer Hardware (Maint),NATIONWIDE RETAIL SYSTEMS LTD,22/06/2016,2010
Commercial Services,Sport & Leisure,CAMA,Supplies & Services,Conference Expenses,DEWBERRY REDPOINT LTD,22/06/2016,430
Commercial Services,Sport & Leisure,CAMA,Supplies & Services,Subscriptions,LACA LTD,22/06/2016,293.32
Commercial Services,Sport & Leisure,CAMA,Supplies & Services,Subscriptions,Soil Association Certification,22/06/2016,995
Commercial Services,Sport & Leisure,CAOC,Supplies & Services,Provisions,BIKOLD,24/06/2016,120
Commercial Services,Sport & Leisure,CASM,Supplies & Services,EEC Whole Milk,JOHAL DAIRIES,03/06/2016,808.65
Commercial Services,Sport & Leisure,CASM,Supplies & Services,EEC Whole Milk,JOHAL DAIRIES,03/06/2016,1824.57
Commercial Services,Sport & Leisure,CASN,Supplies & Services,Provisions,BIKOLD,10/06/2016,224.52
Commercial Services,Sport & Leisure,CASN,Supplies & Services,Provisions,John Sheppard Catering Butchers,14/06/2016,119.2
Commercial Services,Sport & Leisure,CASN,Supplies & Services,Provisions,John Sheppard Catering Butchers,14/06/2016,118.5
Commercial Services,Sport & Leisure,CASN,Supplies & Services,Provisions,BIKOLD,24/06/2016,144.64
Commercial Services,Sport & Leisure,CASN,Supplies & Services,Provisions,BIKOLD,24/06/2016,102.9
Commercial Services,Sport & Leisure,CASN,Supplies & Services,Provisions,BIKOLD,24/06/2016,169.78
Commercial Services,Sport & Leisure,CASN,Supplies & Services,Provisions,BIKOLD,24/06/2016,195.07
Commercial Services,Sport & Leisure,CASN,Supplies & Services,Provisions,BIKOLD,10/06/2016,107.88
Commercial Services,Sport & Leisure,CASN,Supplies & Services,Provisions,BIKOLD,17/06/2016,242.08
Commercial Services,Sport & Leisure,CASN,Supplies & Services,Provisions,ROWLANDS & COMPANY,01/06/2016,286.91
Commercial Services,Sport & Leisure,CASN,Supplies & Services,Provisions,John Sheppard Catering Butchers,01/06/2016,211.25
Commercial Services,Sport & Leisure,CASN,Supplies & Services,Provisions,BIKOLD,03/06/2016,150.52
Commercial Services,Sport & Leisure,CASN,Supplies & Services,Provisions,BIKOLD,03/06/2016,153.21
Commercial Services,Sport & Leisure,CASN,Supplies & Services,Provisions,BIKOLD,03/06/2016,144.71
Commercial Services,Sport & Leisure,CASP,Premises-Related Expenditure,R&M -Building Other,JCE & SONS LTD,03/06/2016,147.05
Commercial Services,Sport & Leisure,CASP,Premises-Related Expenditure,Trade Refuse,FCC Recycling (UK) Ltd ,14/06/2016,195
Commercial Services,Sport & Leisure,CASP,Supplies & Services,Crockery/Hardware/Light Equip,ERIC NEVILLE CATERING SUPPLIES LTD,22/06/2016,163.5
Commercial Services,Sport & Leisure,CASP,Supplies & Services,Provisions,John Sheppard Catering Butchers,14/06/2016,102.86
Commercial Services,Sport & Leisure,CASP,Supplies & Services,Provisions,John Sheppard Catering Butchers,14/06/2016,159.59
Commercial Services,Sport & Leisure,CASP,Supplies & Services,Provisions,John Sheppard Catering Butchers,14/06/2016,243.25
Commercial Services,Sport & Leisure,CASP,Supplies & Services,Provisions,John Sheppard Catering Butchers,14/06/2016,112.32
Commercial Services,Sport & Leisure,CASP,Supplies & Services,Provisions,John Sheppard Catering Butchers,14/06/2016,131.58
Commercial Services,Sport & Leisure,CASP,Supplies & Services,Provisions,John Sheppard Catering Butchers,14/06/2016,184.18
Commercial Services,Sport & Leisure,CASP,Supplies & Services,Provisions,John Sheppard Catering Butchers,14/06/2016,145.65
Commercial Services,Sport & Leisure,CASP,Supplies & Services,Provisions,John Sheppard Catering Butchers,14/06/2016,209.93
Commercial Services,Sport & Leisure,CASP,Supplies & Services,Provisions,John Sheppard Catering Butchers,14/06/2016,162.75
Commercial Services,Sport & Leisure,CASP,Supplies & Services,Provisions,John Sheppard Catering Butchers,14/06/2016,145.75
Commercial Services,Sport & Leisure,CASP,Supplies & Services,Provisions,John Sheppard Catering Butchers,14/06/2016,213.06
Commercial Services,Sport & Leisure,CASP,Supplies & Services,Provisions,John Sheppard Catering Butchers,14/06/2016,199.78
Commercial Services,Sport & Leisure,CASP,Supplies & Services,Provisions,John Sheppard Catering Butchers,14/06/2016,114.71
Commercial Services,Sport & Leisure,CASP,Supplies & Services,Provisions,John Sheppard Catering Butchers,14/06/2016,163.37
Commercial Services,Sport & Leisure,CASP,Supplies & Services,Provisions,John Sheppard Catering Butchers,14/06/2016,126.55
Commercial Services,Sport & Leisure,CASP,Supplies & Services,Provisions,John Sheppard Catering Butchers,14/06/2016,106.15
Commercial Services,Sport & Leisure,CASP,Supplies & Services,Provisions,John Sheppard Catering Butchers,14/06/2016,144.78
Commercial Services,Sport & Leisure,CASP,Supplies & Services,Provisions,John Sheppard Catering Butchers,14/06/2016,240.99
Commercial Services,Sport & Leisure,CASP,Supplies & Services,Provisions,John Sheppard Catering Butchers,14/06/2016,189.13
Commercial Services,Sport & Leisure,CASP,Supplies & Services,Provisions,John Sheppard Catering Butchers,14/06/2016,246.79
Commercial Services,Sport & Leisure,CASP,Supplies & Services,Provisions,John Sheppard Catering Butchers,14/06/2016,106.91
Commercial Services,Sport & Leisure,CASP,Supplies & Services,Provisions,John Sheppard Catering Butchers,14/06/2016,185.16
Commercial Services,Sport & Leisure,CASP,Supplies & Services,Provisions,John Sheppard Catering Butchers,14/06/2016,285.2
Commercial Services,Sport & Leisure,CASP,Supplies & Services,Provisions,John Sheppard Catering Butchers,14/06/2016,159.06
Commercial Services,Sport & Leisure,CASP,Supplies & Services,Provisions,John Sheppard Catering Butchers,14/06/2016,201.31
Commercial Services,Sport & Leisure,CASP,Supplies & Services,Provisions,John Sheppard Catering Butchers,14/06/2016,136.47
Commercial Services,Sport & Leisure,CASP,Supplies & Services,Provisions,John Sheppard Catering Butchers,14/06/2016,248.83
Commercial Services,Sport & Leisure,CASP,Supplies & Services,Provisions,John Sheppard Catering Butchers,14/06/2016,182.75
Commercial Services,Sport & Leisure,CASP,Supplies & Services,Provisions,John Sheppard Catering Butchers,14/06/2016,136.54
Commercial Services,Sport & Leisure,CASP,Supplies & Services,Provisions,John Sheppard Catering Butchers,14/06/2016,196.89
Commercial Services,Sport & Leisure,CASP,Supplies & Services,Provisions,John Sheppard Catering Butchers,14/06/2016,190.25
Commercial Services,Sport & Leisure,CASP,Supplies & Services,Provisions,BIKOLD,10/06/2016,116.68
Commercial Services,Sport & Leisure,CASP,Supplies & Services,Provisions,BIKOLD,10/06/2016,102.89
Commercial Services,Sport & Leisure,CASP,Supplies & Services,Provisions,BIKOLD,10/06/2016,114.42
Commercial Services,Sport & Leisure,CASP,Supplies & Services,Provisions,BIKOLD,10/06/2016,125.87
Commercial Services,Sport & Leisure,CASP,Supplies & Services,Provisions,BIKOLD,10/06/2016,130.29
Commercial Services,Sport & Leisure,CASP,Supplies & Services,Provisions,BIKOLD,10/06/2016,175.2
Commercial Services,Sport & Leisure,CASP,Supplies & Services,Provisions,BIKOLD,10/06/2016,345.45
Commercial Services,Sport & Leisure,CASP,Supplies & Services,Provisions,BIKOLD,10/06/2016,190.87
Commercial Services,Sport & Leisure,CASP,Supplies & Services,Provisions,BIKOLD,10/06/2016,116.5
Commercial Services,Sport & Leisure,CASP,Supplies & Services,Provisions,BIKOLD,10/06/2016,165.5
Commercial Services,Sport & Leisure,CASP,Supplies & Services,Provisions,BIKOLD,10/06/2016,118.72
Commercial Services,Sport & Leisure,CASP,Supplies & Services,Provisions,BIKOLD,10/06/2016,247.74
Commercial Services,Sport & Leisure,CASP,Supplies & Services,Provisions,BIKOLD,10/06/2016,200.8
Commercial Services,Sport & Leisure,CASP,Supplies & Services,Provisions,BIKOLD,10/06/2016,216.43
Commercial Services,Sport & Leisure,CASP,Supplies & Services,Provisions,BIKOLD,10/06/2016,122.03
Commercial Services,Sport & Leisure,CASP,Supplies & Services,Provisions,BIKOLD,10/06/2016,144.05
Commercial Services,Sport & Leisure,CASP,Supplies & Services,Provisions,BIKOLD,10/06/2016,266.61
Commercial Services,Sport & Leisure,CASP,Supplies & Services,Provisions,BIKOLD,10/06/2016,337.52
Commercial Services,Sport & Leisure,CASP,Supplies & Services,Provisions,BIKOLD,10/06/2016,443.8
Commercial Services,Sport & Leisure,CASP,Supplies & Services,Provisions,BIKOLD,10/06/2016,330.47
Commercial Services,Sport & Leisure,CASP,Supplies & Services,Provisions,BIKOLD,10/06/2016,134.59
Commercial Services,Sport & Leisure,CASP,Supplies & Services,Provisions,BIKOLD,10/06/2016,201.06
Commercial Services,Sport & Leisure,CASP,Supplies & Services,Provisions,BIKOLD,10/06/2016,101.95
Commercial Services,Sport & Leisure,CASP,Supplies & Services,Provisions,BIKOLD,10/06/2016,107.9
Commercial Services,Sport & Leisure,CASP,Supplies & Services,Provisions,BIKOLD,10/06/2016,371.27
Commercial Services,Sport & Leisure,CASP,Supplies & Services,Provisions,BIKOLD,10/06/2016,122.95
Commercial Services,Sport & Leisure,CASP,Supplies & Services,Provisions,BIKOLD,10/06/2016,148.19
Commercial Services,Sport & Leisure,CASP,Supplies & Services,Provisions,BIKOLD,10/06/2016,259.13
Commercial Services,Sport & Leisure,CASP,Supplies & Services,Provisions,BIKOLD,10/06/2016,139.27
Commercial Services,Sport & Leisure,CASP,Supplies & Services,Provisions,BIKOLD,10/06/2016,214.8
Commercial Services,Sport & Leisure,CASP,Supplies & Services,Provisions,BIKOLD,10/06/2016,245.67
Commercial Services,Sport & Leisure,CASP,Supplies & Services,Provisions,BIKOLD,10/06/2016,136.21
Commercial Services,Sport & Leisure,CASP,Supplies & Services,Provisions,BIKOLD,10/06/2016,101.13
Commercial Services,Sport & Leisure,CASP,Supplies & Services,Provisions,BIKOLD,10/06/2016,301.4
Commercial Services,Sport & Leisure,CASP,Supplies & Services,Provisions,BIKOLD,10/06/2016,241.77
Commercial Services,Sport & Leisure,CASP,Supplies & Services,Provisions,BIKOLD,10/06/2016,227.63
Commercial Services,Sport & Leisure,CASP,Supplies & Services,Provisions,BIKOLD,10/06/2016,106.67
Commercial Services,Sport & Leisure,CASP,Supplies & Services,Provisions,BIKOLD,10/06/2016,134.19
Commercial Services,Sport & Leisure,CASP,Supplies & Services,Provisions,BIKOLD,10/06/2016,113.27
Commercial Services,Sport & Leisure,CASP,Supplies & Services,Provisions,BIKOLD,10/06/2016,138.21
Commercial Services,Sport & Leisure,CASP,Supplies & Services,Provisions,BIKOLD,10/06/2016,172.08
Commercial Services,Sport & Leisure,CASP,Supplies & Services,Provisions,BIKOLD,10/06/2016,174.1
Commercial Services,Sport & Leisure,CASP,Supplies & Services,Provisions,BIKOLD,10/06/2016,118.03
Commercial Services,Sport & Leisure,CASP,Supplies & Services,Provisions,BIKOLD,10/06/2016,134.4
Commercial Services,Sport & Leisure,CASP,Supplies & Services,Provisions,BIKOLD,10/06/2016,165.44
Commercial Services,Sport & Leisure,CASP,Supplies & Services,Provisions,BIKOLD,10/06/2016,174.96
Commercial Services,Sport & Leisure,CASP,Supplies & Services,Provisions,BIKOLD,10/06/2016,203.01
Commercial Services,Sport & Leisure,CASP,Supplies & Services,Provisions,BIKOLD,10/06/2016,117.19
Commercial Services,Sport & Leisure,CASP,Supplies & Services,Provisions,BIKOLD,10/06/2016,144.56
Commercial Services,Sport & Leisure,CASP,Supplies & Services,Provisions,BIKOLD,10/06/2016,112.67
Commercial Services,Sport & Leisure,CASP,Supplies & Services,Provisions,BIKOLD,10/06/2016,242.66
Commercial Services,Sport & Leisure,CASP,Supplies & Services,Provisions,BIKOLD,10/06/2016,103.27
Commercial Services,Sport & Leisure,CASP,Supplies & Services,Provisions,BIKOLD,10/06/2016,110.35
Commercial Services,Sport & Leisure,CASP,Supplies & Services,Provisions,BIKOLD,10/06/2016,111.07
Commercial Services,Sport & Leisure,CASP,Supplies & Services,Provisions,BIKOLD,10/06/2016,125.25
Commercial Services,Sport & Leisure,CASP,Supplies & Services,Provisions,BIKOLD,10/06/2016,208.46
Commercial Services,Sport & Leisure,CASP,Supplies & Services,Provisions,BIKOLD,10/06/2016,194.43
Commercial Services,Sport & Leisure,CASP,Supplies & Services,Provisions,BIKOLD,10/06/2016,145.23
Commercial Services,Sport & Leisure,CASP,Supplies & Services,Provisions,BIKOLD,10/06/2016,114.01
Commercial Services,Sport & Leisure,CASP,Supplies & Services,Provisions,BIKOLD,10/06/2016,142.27
Commercial Services,Sport & Leisure,CASP,Supplies & Services,Provisions,BIKOLD,10/06/2016,179.53
Commercial Services,Sport & Leisure,CASP,Supplies & Services,Provisions,BIKOLD,10/06/2016,115.97
Commercial Services,Sport & Leisure,CASP,Supplies & Services,Provisions,BIKOLD,10/06/2016,117.81
Commercial Services,Sport & Leisure,CASP,Supplies & Services,Provisions,BIKOLD,10/06/2016,223.51
Commercial Services,Sport & Leisure,CASP,Supplies & Services,Provisions,BIKOLD,10/06/2016,108.26
Commercial Services,Sport & Leisure,CASP,Supplies & Services,Provisions,BIKOLD,10/06/2016,223.47
Commercial Services,Sport & Leisure,CASP,Supplies & Services,Provisions,BIKOLD,10/06/2016,170.85
Commercial Services,Sport & Leisure,CASP,Supplies & Services,Provisions,BIKOLD,10/06/2016,233.86
Commercial Services,Sport & Leisure,CASP,Supplies & Services,Provisions,BIKOLD,10/06/2016,129.2
Commercial Services,Sport & Leisure,CASP,Supplies & Services,Provisions,BIKOLD,10/06/2016,229.34
Commercial Services,Sport & Leisure,CASP,Supplies & Services,Provisions,BIKOLD,10/06/2016,178.87
Commercial Services,Sport & Leisure,CASP,Supplies & Services,Provisions,BIKOLD,10/06/2016,164.6
Commercial Services,Sport & Leisure,CASP,Supplies & Services,Provisions,BIKOLD,10/06/2016,215.44
Commercial Services,Sport & Leisure,CASP,Supplies & Services,Provisions,BIKOLD,10/06/2016,142.82
Commercial Services,Sport & Leisure,CASP,Supplies & Services,Provisions,BIKOLD,10/06/2016,163.78
Commercial Services,Sport & Leisure,CASP,Supplies & Services,Provisions,BIKOLD,10/06/2016,235.8
Commercial Services,Sport & Leisure,CASP,Supplies & Services,Provisions,BIKOLD,10/06/2016,165.84
Commercial Services,Sport & Leisure,CASP,Supplies & Services,Provisions,BIKOLD,10/06/2016,164.56
Commercial Services,Sport & Leisure,CASP,Supplies & Services,Provisions,BIKOLD,10/06/2016,197.99
Commercial Services,Sport & Leisure,CASP,Supplies & Services,Provisions,BIKOLD,10/06/2016,104.72
Commercial Services,Sport & Leisure,CASP,Supplies & Services,Provisions,BIKOLD,10/06/2016,363.14
Commercial Services,Sport & Leisure,CASP,Supplies & Services,Provisions,BIKOLD,10/06/2016,271.61
Commercial Services,Sport & Leisure,CASP,Supplies & Services,Provisions,BIKOLD,10/06/2016,152.12
Commercial Services,Sport & Leisure,CASP,Supplies & Services,Provisions,BIKOLD,10/06/2016,285.34
Commercial Services,Sport & Leisure,CASP,Supplies & Services,Provisions,BIKOLD,10/06/2016,420.76
Commercial Services,Sport & Leisure,CASP,Supplies & Services,Provisions,BIKOLD,10/06/2016,237.11
Commercial Services,Sport & Leisure,CASP,Supplies & Services,Provisions,BIKOLD,10/06/2016,243.79
Commercial Services,Sport & Leisure,CASP,Supplies & Services,Provisions,BIKOLD,10/06/2016,147.04
Commercial Services,Sport & Leisure,CASP,Supplies & Services,Provisions,BIKOLD,10/06/2016,111.24
Commercial Services,Sport & Leisure,CASP,Supplies & Services,Provisions,BIKOLD,10/06/2016,198.47
Commercial Services,Sport & Leisure,CASP,Supplies & Services,Provisions,BIKOLD,10/06/2016,219.76
Commercial Services,Sport & Leisure,CASP,Supplies & Services,Provisions,BIKOLD,10/06/2016,187.83
Commercial Services,Sport & Leisure,CASP,Supplies & Services,Provisions,BIKOLD,10/06/2016,274.9
Commercial Services,Sport & Leisure,CASP,Supplies & Services,Provisions,BIKOLD,10/06/2016,143.6
Commercial Services,Sport & Leisure,CASP,Supplies & Services,Provisions,BIKOLD,10/06/2016,179.21
Commercial Services,Sport & Leisure,CASP,Supplies & Services,Provisions,BIKOLD,10/06/2016,271.74
Commercial Services,Sport & Leisure,CASP,Supplies & Services,Provisions,BIKOLD,24/06/2016,113.62
Commercial Services,Sport & Leisure,CASP,Supplies & Services,Provisions,BIKOLD,24/06/2016,167.86
Commercial Services,Sport & Leisure,CASP,Supplies & Services,Provisions,BIKOLD,10/06/2016,136.57
Commercial Services,Sport & Leisure,CASP,Supplies & Services,Provisions,BIKOLD,10/06/2016,125.66
Commercial Services,Sport & Leisure,CASP,Supplies & Services,Provisions,BIKOLD,10/06/2016,373.96
Commercial Services,Sport & Leisure,CASP,Supplies & Services,Provisions,BIKOLD,10/06/2016,307.63
Commercial Services,Sport & Leisure,CASP,Supplies & Services,Provisions,BIKOLD,24/06/2016,187.41
Commercial Services,Sport & Leisure,CASP,Supplies & Services,Provisions,BIKOLD,24/06/2016,255.56
Commercial Services,Sport & Leisure,CASP,Supplies & Services,Provisions,BIKOLD,24/06/2016,123.83
Commercial Services,Sport & Leisure,CASP,Supplies & Services,Provisions,BIKOLD,24/06/2016,112.63
Commercial Services,Sport & Leisure,CASP,Supplies & Services,Provisions,BIKOLD,24/06/2016,118.71
Commercial Services,Sport & Leisure,CASP,Supplies & Services,Provisions,BIKOLD,24/06/2016,158.66
Commercial Services,Sport & Leisure,CASP,Supplies & Services,Provisions,BIKOLD,24/06/2016,290.67
Commercial Services,Sport & Leisure,CASP,Supplies & Services,Provisions,BIKOLD,24/06/2016,104.05
Commercial Services,Sport & Leisure,CASP,Supplies & Services,Provisions,BIKOLD,24/06/2016,325.86
Commercial Services,Sport & Leisure,CASP,Supplies & Services,Provisions,BIKOLD,24/06/2016,136.93
Commercial Services,Sport & Leisure,CASP,Supplies & Services,Provisions,BIKOLD,24/06/2016,114.94
Commercial Services,Sport & Leisure,CASP,Supplies & Services,Provisions,BIKOLD,24/06/2016,255.99
Commercial Services,Sport & Leisure,CASP,Supplies & Services,Provisions,BIKOLD,24/06/2016,186.74
Commercial Services,Sport & Leisure,CASP,Supplies & Services,Provisions,BIKOLD,24/06/2016,182.71
Commercial Services,Sport & Leisure,CASP,Supplies & Services,Provisions,BIKOLD,24/06/2016,302.43
Commercial Services,Sport & Leisure,CASP,Supplies & Services,Provisions,BIKOLD,24/06/2016,138.92
Commercial Services,Sport & Leisure,CASP,Supplies & Services,Provisions,BIKOLD,24/06/2016,247.54
Commercial Services,Sport & Leisure,CASP,Supplies & Services,Provisions,BIKOLD,24/06/2016,446.89
Commercial Services,Sport & Leisure,CASP,Supplies & Services,Provisions,BIKOLD,24/06/2016,172.66
Commercial Services,Sport & Leisure,CASP,Supplies & Services,Provisions,BIKOLD,24/06/2016,382.01
Commercial Services,Sport & Leisure,CASP,Supplies & Services,Provisions,BIKOLD,24/06/2016,157.07
Commercial Services,Sport & Leisure,CASP,Supplies & Services,Provisions,BIKOLD,24/06/2016,122.1
Commercial Services,Sport & Leisure,CASP,Supplies & Services,Provisions,BIKOLD,24/06/2016,139.69
Commercial Services,Sport & Leisure,CASP,Supplies & Services,Provisions,BIKOLD,24/06/2016,217.08
Commercial Services,Sport & Leisure,CASP,Supplies & Services,Provisions,BIKOLD,24/06/2016,213.57
Commercial Services,Sport & Leisure,CASP,Supplies & Services,Provisions,BIKOLD,24/06/2016,199.34
Commercial Services,Sport & Leisure,CASP,Supplies & Services,Provisions,BIKOLD,24/06/2016,106.82
Commercial Services,Sport & Leisure,CASP,Supplies & Services,Provisions,BIKOLD,24/06/2016,286.41
Commercial Services,Sport & Leisure,CASP,Supplies & Services,Provisions,BIKOLD,24/06/2016,188.58
Commercial Services,Sport & Leisure,CASP,Supplies & Services,Provisions,BIKOLD,24/06/2016,109.78
Commercial Services,Sport & Leisure,CASP,Supplies & Services,Provisions,BIKOLD,24/06/2016,139.39
Commercial Services,Sport & Leisure,CASP,Supplies & Services,Provisions,BIKOLD,24/06/2016,250.92
Commercial Services,Sport & Leisure,CASP,Supplies & Services,Provisions,BIKOLD,24/06/2016,106.26
Commercial Services,Sport & Leisure,CASP,Supplies & Services,Provisions,BIKOLD,24/06/2016,127.81
Commercial Services,Sport & Leisure,CASP,Supplies & Services,Provisions,BIKOLD,24/06/2016,325.34
Commercial Services,Sport & Leisure,CASP,Supplies & Services,Provisions,BIKOLD,24/06/2016,146.26
Commercial Services,Sport & Leisure,CASP,Supplies & Services,Provisions,BIKOLD,24/06/2016,181.08
Commercial Services,Sport & Leisure,CASP,Supplies & Services,Provisions,BIKOLD,24/06/2016,105.88
Commercial Services,Sport & Leisure,CASP,Supplies & Services,Provisions,BIKOLD,24/06/2016,126.09
Commercial Services,Sport & Leisure,CASP,Supplies & Services,Provisions,BIKOLD,24/06/2016,119.41
Commercial Services,Sport & Leisure,CASP,Supplies & Services,Provisions,BIKOLD,24/06/2016,175.84
Commercial Services,Sport & Leisure,CASP,Supplies & Services,Provisions,BIKOLD,24/06/2016,168.88
Commercial Services,Sport & Leisure,CASP,Supplies & Services,Provisions,BIKOLD,24/06/2016,155.67
Commercial Services,Sport & Leisure,CASP,Supplies & Services,Provisions,BIKOLD,24/06/2016,171.45
Commercial Services,Sport & Leisure,CASP,Supplies & Services,Provisions,BIKOLD,24/06/2016,254.72
Commercial Services,Sport & Leisure,CASP,Supplies & Services,Provisions,BIKOLD,24/06/2016,104.96
Commercial Services,Sport & Leisure,CASP,Supplies & Services,Provisions,BIKOLD,24/06/2016,156.01
Commercial Services,Sport & Leisure,CASP,Supplies & Services,Provisions,BIKOLD,24/06/2016,256.24
Commercial Services,Sport & Leisure,CASP,Supplies & Services,Provisions,BIKOLD,24/06/2016,205.3
Commercial Services,Sport & Leisure,CASP,Supplies & Services,Provisions,BIKOLD,24/06/2016,130.46
Commercial Services,Sport & Leisure,CASP,Supplies & Services,Provisions,BIKOLD,24/06/2016,142.69
Commercial Services,Sport & Leisure,CASP,Supplies & Services,Provisions,BIKOLD,24/06/2016,236.28
Commercial Services,Sport & Leisure,CASP,Supplies & Services,Provisions,BIKOLD,24/06/2016,140.73
Commercial Services,Sport & Leisure,CASP,Supplies & Services,Provisions,BIKOLD,24/06/2016,138.04
Commercial Services,Sport & Leisure,CASP,Supplies & Services,Provisions,BIKOLD,24/06/2016,139.51
Commercial Services,Sport & Leisure,CASP,Supplies & Services,Provisions,BIKOLD,24/06/2016,280.05
Commercial Services,Sport & Leisure,CASP,Supplies & Services,Provisions,BIKOLD,24/06/2016,254.45
Commercial Services,Sport & Leisure,CASP,Supplies & Services,Provisions,BIKOLD,24/06/2016,154.45
Commercial Services,Sport & Leisure,CASP,Supplies & Services,Provisions,BIKOLD,24/06/2016,111.35
Commercial Services,Sport & Leisure,CASP,Supplies & Services,Provisions,BIKOLD,24/06/2016,183.05
Commercial Services,Sport & Leisure,CASP,Supplies & Services,Provisions,BIKOLD,24/06/2016,164.19
Commercial Services,Sport & Leisure,CASP,Supplies & Services,Provisions,BIKOLD,24/06/2016,130.05
Commercial Services,Sport & Leisure,CASP,Supplies & Services,Provisions,BIKOLD,24/06/2016,504.95
Commercial Services,Sport & Leisure,CASP,Supplies & Services,Provisions,BIKOLD,24/06/2016,122.85
Commercial Services,Sport & Leisure,CASP,Supplies & Services,Provisions,BIKOLD,24/06/2016,121.59
Commercial Services,Sport & Leisure,CASP,Supplies & Services,Provisions,BIKOLD,24/06/2016,339.41
Commercial Services,Sport & Leisure,CASP,Supplies & Services,Provisions,BIKOLD,24/06/2016,188.6
Commercial Services,Sport & Leisure,CASP,Supplies & Services,Provisions,BIKOLD,24/06/2016,162.49
Commercial Services,Sport & Leisure,CASP,Supplies & Services,Provisions,BIKOLD,24/06/2016,101.17
Commercial Services,Sport & Leisure,CASP,Supplies & Services,Provisions,BIKOLD,24/06/2016,341.68
Commercial Services,Sport & Leisure,CASP,Supplies & Services,Provisions,BIKOLD,24/06/2016,100.05
Commercial Services,Sport & Leisure,CASP,Supplies & Services,Provisions,BIKOLD,24/06/2016,104.97
Commercial Services,Sport & Leisure,CASP,Supplies & Services,Provisions,BIKOLD,24/06/2016,197.57
Commercial Services,Sport & Leisure,CASP,Supplies & Services,Provisions,BIKOLD,24/06/2016,113.86
Commercial Services,Sport & Leisure,CASP,Supplies & Services,Provisions,BIKOLD,24/06/2016,158.69
Commercial Services,Sport & Leisure,CASP,Supplies & Services,Provisions,BIKOLD,24/06/2016,208.17
Commercial Services,Sport & Leisure,CASP,Supplies & Services,Provisions,BIKOLD,24/06/2016,180.58
Commercial Services,Sport & Leisure,CASP,Supplies & Services,Provisions,BIKOLD,24/06/2016,101.64
Commercial Services,Sport & Leisure,CASP,Supplies & Services,Provisions,SAFY IMPEX LTD T/A SPICE TIME,23/06/2016,154.5
Commercial Services,Sport & Leisure,CASP,Supplies & Services,Provisions,SAFY IMPEX LTD T/A SPICE TIME,23/06/2016,266.5
Commercial Services,Sport & Leisure,CASP,Supplies & Services,Provisions,BIKOLD,24/06/2016,201.37
Commercial Services,Sport & Leisure,CASP,Supplies & Services,Provisions,BIKOLD,24/06/2016,125.94
Commercial Services,Sport & Leisure,CASP,Supplies & Services,Provisions,BIKOLD,24/06/2016,136.46
Commercial Services,Sport & Leisure,CASP,Supplies & Services,Provisions,BIKOLD,24/06/2016,324.85
Commercial Services,Sport & Leisure,CASP,Supplies & Services,Provisions,SAFY IMPEX LTD T/A SPICE TIME,23/06/2016,107.5
Commercial Services,Sport & Leisure,CASP,Supplies & Services,Provisions,SAFY IMPEX LTD T/A SPICE TIME,23/06/2016,170.5
Commercial Services,Sport & Leisure,CASP,Supplies & Services,Provisions,SAFY IMPEX LTD T/A SPICE TIME,23/06/2016,283
Commercial Services,Sport & Leisure,CASP,Supplies & Services,Provisions,SAFY IMPEX LTD T/A SPICE TIME,23/06/2016,282.5
Commercial Services,Sport & Leisure,CASP,Supplies & Services,Provisions,SAFY IMPEX LTD T/A SPICE TIME,23/06/2016,187.5
Commercial Services,Sport & Leisure,CASP,Supplies & Services,Provisions,SAFY IMPEX LTD T/A SPICE TIME,23/06/2016,324.5
Commercial Services,Sport & Leisure,CASP,Supplies & Services,Provisions,John Sheppard Catering Butchers,01/06/2016,176.67
Commercial Services,Sport & Leisure,CASP,Supplies & Services,Provisions,John Sheppard Catering Butchers,01/06/2016,248.36
Commercial Services,Sport & Leisure,CASP,Supplies & Services,Provisions,John Sheppard Catering Butchers,01/06/2016,162.95
Commercial Services,Sport & Leisure,CASP,Supplies & Services,Provisions,BIKOLD,03/06/2016,256.51
Commercial Services,Sport & Leisure,CASP,Supplies & Services,Provisions,BIKOLD,03/06/2016,-228.24
Commercial Services,Sport & Leisure,CASP,Supplies & Services,Provisions,SAFY IMPEX LTD T/A SPICE TIME,23/06/2016,122
Commercial Services,Sport & Leisure,CASP,Supplies & Services,Provisions,John Sheppard Catering Butchers,01/06/2016,111.9
Commercial Services,Sport & Leisure,CASP,Supplies & Services,Provisions,John Sheppard Catering Butchers,01/06/2016,135.62
Commercial Services,Sport & Leisure,CASP,Supplies & Services,Provisions,John Sheppard Catering Butchers,01/06/2016,122.27
Commercial Services,Sport & Leisure,CASP,Supplies & Services,Provisions,John Sheppard Catering Butchers,01/06/2016,140.82
Commercial Services,Sport & Leisure,CASP,Supplies & Services,Provisions,John Sheppard Catering Butchers,01/06/2016,-177
Commercial Services,Sport & Leisure,CASP,Supplies & Services,Provisions,John Sheppard Catering Butchers,01/06/2016,-105.6
Commercial Services,Sport & Leisure,CASP,Supplies & Services,Provisions,John Sheppard Catering Butchers,01/06/2016,228
Commercial Services,Sport & Leisure,CASP,Supplies & Services,Provisions,John Sheppard Catering Butchers,01/06/2016,214.1
Commercial Services,Sport & Leisure,CASP,Supplies & Services,Provisions,John Sheppard Catering Butchers,01/06/2016,302.18
Commercial Services,Sport & Leisure,CASP,Supplies & Services,Provisions,John Sheppard Catering Butchers,01/06/2016,111.49
Commercial Services,Sport & Leisure,CASP,Supplies & Services,Provisions,John Sheppard Catering Butchers,01/06/2016,115.91
Commercial Services,Sport & Leisure,CASP,Supplies & Services,Provisions,John Sheppard Catering Butchers,01/06/2016,152.8
Commercial Services,Sport & Leisure,CASP,Supplies & Services,Provisions,John Sheppard Catering Butchers,01/06/2016,280.32
Commercial Services,Sport & Leisure,CASP,Supplies & Services,Provisions,John Sheppard Catering Butchers,01/06/2016,295.6
Commercial Services,Sport & Leisure,CASP,Supplies & Services,Provisions,John Sheppard Catering Butchers,01/06/2016,128.3
Commercial Services,Sport & Leisure,CASP,Supplies & Services,Provisions,John Sheppard Catering Butchers,01/06/2016,216.31
Commercial Services,Sport & Leisure,CASP,Supplies & Services,Provisions,John Sheppard Catering Butchers,01/06/2016,401.46
Commercial Services,Sport & Leisure,CASP,Supplies & Services,Provisions,John Sheppard Catering Butchers,01/06/2016,203.05
Commercial Services,Sport & Leisure,CASP,Supplies & Services,Provisions,John Sheppard Catering Butchers,01/06/2016,153.58
Commercial Services,Sport & Leisure,CASP,Supplies & Services,Provisions,John Sheppard Catering Butchers,01/06/2016,196.28
Commercial Services,Sport & Leisure,CASP,Supplies & Services,Provisions,John Sheppard Catering Butchers,01/06/2016,199.95
Commercial Services,Sport & Leisure,CASP,Supplies & Services,Provisions,John Sheppard Catering Butchers,01/06/2016,105.6
Commercial Services,Sport & Leisure,CASP,Supplies & Services,Provisions,John Sheppard Catering Butchers,01/06/2016,143.92
Commercial Services,Sport & Leisure,CASP,Supplies & Services,Provisions,John Sheppard Catering Butchers,01/06/2016,130.56
Commercial Services,Sport & Leisure,CASP,Supplies & Services,Provisions,ROWLANDS & COMPANY,01/06/2016,131.31
Commercial Services,Sport & Leisure,CASP,Supplies & Services,Provisions,ROWLANDS & COMPANY,01/06/2016,163.46
Commercial Services,Sport & Leisure,CASP,Supplies & Services,Provisions,John Sheppard Catering Butchers,01/06/2016,102.02
Commercial Services,Sport & Leisure,CASP,Supplies & Services,Provisions,John Sheppard Catering Butchers,01/06/2016,140.7
Commercial Services,Sport & Leisure,CASP,Supplies & Services,Provisions,John Sheppard Catering Butchers,01/06/2016,155.02
Commercial Services,Sport & Leisure,CASP,Supplies & Services,Provisions,John Sheppard Catering Butchers,01/06/2016,247.78
Commercial Services,Sport & Leisure,CASP,Supplies & Services,Provisions,ROWLANDS & COMPANY,01/06/2016,101.23
Commercial Services,Sport & Leisure,CASP,Supplies & Services,Provisions,ROWLANDS & COMPANY,01/06/2016,109.24
Commercial Services,Sport & Leisure,CASP,Supplies & Services,Provisions,ROWLANDS & COMPANY,01/06/2016,146.37
Commercial Services,Sport & Leisure,CASP,Supplies & Services,Provisions,ROWLANDS & COMPANY,01/06/2016,110.37
Commercial Services,Sport & Leisure,CASP,Supplies & Services,Provisions,ROWLANDS & COMPANY,01/06/2016,128.26
Commercial Services,Sport & Leisure,CASP,Supplies & Services,Provisions,ROWLANDS & COMPANY,01/06/2016,111.07
Commercial Services,Sport & Leisure,CASP,Supplies & Services,Provisions,ROWLANDS & COMPANY,01/06/2016,149.06
Commercial Services,Sport & Leisure,CASP,Supplies & Services,Provisions,ROWLANDS & COMPANY,01/06/2016,105.54
Commercial Services,Sport & Leisure,CASP,Supplies & Services,Provisions,ROWLANDS & COMPANY,01/06/2016,115.89
Commercial Services,Sport & Leisure,CASP,Supplies & Services,Provisions,ROWLANDS & COMPANY,01/06/2016,120.55
Commercial Services,Sport & Leisure,CASP,Supplies & Services,Provisions,ROWLANDS & COMPANY,01/06/2016,150.7
Commercial Services,Sport & Leisure,CASP,Supplies & Services,Provisions,ROWLANDS & COMPANY,01/06/2016,150.95
Commercial Services,Sport & Leisure,CASP,Supplies & Services,Provisions,ROWLANDS & COMPANY,01/06/2016,204.37
Commercial Services,Sport & Leisure,CASP,Supplies & Services,Provisions,ROWLANDS & COMPANY,01/06/2016,103.5
Commercial Services,Sport & Leisure,CASP,Supplies & Services,Provisions,ROWLANDS & COMPANY,01/06/2016,183.94
Commercial Services,Sport & Leisure,CASP,Supplies & Services,Provisions,ROWLANDS & COMPANY,01/06/2016,101.38
Commercial Services,Sport & Leisure,CASP,Supplies & Services,Provisions,ROWLANDS & COMPANY,01/06/2016,118.1
Commercial Services,Sport & Leisure,CASP,Supplies & Services,Provisions,ROWLANDS & COMPANY,01/06/2016,104.32
Commercial Services,Sport & Leisure,CASP,Supplies & Services,Provisions,ROWLANDS & COMPANY,01/06/2016,138.38
Commercial Services,Sport & Leisure,CASP,Supplies & Services,Provisions,ROWLANDS & COMPANY,01/06/2016,150.77
Commercial Services,Sport & Leisure,CASP,Supplies & Services,Provisions,ROWLANDS & COMPANY,01/06/2016,146.92
Commercial Services,Sport & Leisure,CASP,Supplies & Services,Provisions,ROWLANDS & COMPANY,01/06/2016,125.24
Commercial Services,Sport & Leisure,CASP,Supplies & Services,Provisions,ROWLANDS & COMPANY,01/06/2016,111.16
Commercial Services,Sport & Leisure,CASP,Supplies & Services,Provisions,ROWLANDS & COMPANY,01/06/2016,223.23
Commercial Services,Sport & Leisure,CASP,Supplies & Services,Provisions,BIKOLD,17/06/2016,142.43
Commercial Services,Sport & Leisure,CASP,Supplies & Services,Provisions,BIKOLD,17/06/2016,265.35
Commercial Services,Sport & Leisure,CASP,Supplies & Services,Provisions,BIKOLD,17/06/2016,265.97
Commercial Services,Sport & Leisure,CASP,Supplies & Services,Provisions,BIKOLD,17/06/2016,144.95
Commercial Services,Sport & Leisure,CASP,Supplies & Services,Provisions,BIKOLD,17/06/2016,135.17
Commercial Services,Sport & Leisure,CASP,Supplies & Services,Provisions,BIKOLD,17/06/2016,144.83
Commercial Services,Sport & Leisure,CASP,Supplies & Services,Provisions,BIKOLD,17/06/2016,154.9
Commercial Services,Sport & Leisure,CASP,Supplies & Services,Provisions,BIKOLD,17/06/2016,225.33
Commercial Services,Sport & Leisure,CASP,Supplies & Services,Provisions,BIKOLD,17/06/2016,216.06
Commercial Services,Sport & Leisure,CASP,Supplies & Services,Provisions,BIKOLD,17/06/2016,377.66
Commercial Services,Sport & Leisure,CASP,Supplies & Services,Provisions,BIKOLD,17/06/2016,116.23
Commercial Services,Sport & Leisure,CASP,Supplies & Services,Provisions,BIKOLD,17/06/2016,191.97
Commercial Services,Sport & Leisure,CASP,Supplies & Services,Provisions,BIKOLD,17/06/2016,166.36
Commercial Services,Sport & Leisure,CASP,Supplies & Services,Provisions,BIKOLD,17/06/2016,154.43
Commercial Services,Sport & Leisure,CASP,Supplies & Services,Provisions,BIKOLD,17/06/2016,305.14
Commercial Services,Sport & Leisure,CASP,Supplies & Services,Provisions,BIKOLD,17/06/2016,128.21
Commercial Services,Sport & Leisure,CASP,Supplies & Services,Provisions,BIKOLD,17/06/2016,151.72
Commercial Services,Sport & Leisure,CASP,Supplies & Services,Provisions,BIKOLD,17/06/2016,473.85
Commercial Services,Sport & Leisure,CASP,Supplies & Services,Provisions,BIKOLD,17/06/2016,275.98
Commercial Services,Sport & Leisure,CASP,Supplies & Services,Provisions,BIKOLD,17/06/2016,246.11
Commercial Services,Sport & Leisure,CASP,Supplies & Services,Provisions,BIKOLD,17/06/2016,313.24
Commercial Services,Sport & Leisure,CASP,Supplies & Services,Provisions,BIKOLD,17/06/2016,152.54
Commercial Services,Sport & Leisure,CASP,Supplies & Services,Provisions,BIKOLD,17/06/2016,337.98
Commercial Services,Sport & Leisure,CASP,Supplies & Services,Provisions,BIKOLD,17/06/2016,203.64
Commercial Services,Sport & Leisure,CASP,Supplies & Services,Provisions,BIKOLD,17/06/2016,170.27
Commercial Services,Sport & Leisure,CASP,Supplies & Services,Provisions,BIKOLD,17/06/2016,185.63
Commercial Services,Sport & Leisure,CASP,Supplies & Services,Provisions,BIKOLD,17/06/2016,177.3
Commercial Services,Sport & Leisure,CASP,Supplies & Services,Provisions,BIKOLD,17/06/2016,243.92
Commercial Services,Sport & Leisure,CASP,Supplies & Services,Provisions,BIKOLD,17/06/2016,105.47
Commercial Services,Sport & Leisure,CASP,Supplies & Services,Provisions,BIKOLD,17/06/2016,125.48
Commercial Services,Sport & Leisure,CASP,Supplies & Services,Provisions,BIKOLD,17/06/2016,140.08
Commercial Services,Sport & Leisure,CASP,Supplies & Services,Provisions,BIKOLD,17/06/2016,291.48
Commercial Services,Sport & Leisure,CASP,Supplies & Services,Provisions,BIKOLD,17/06/2016,313.81
Commercial Services,Sport & Leisure,CASP,Supplies & Services,Provisions,BIKOLD,17/06/2016,110.43
Commercial Services,Sport & Leisure,CASP,Supplies & Services,Provisions,BIKOLD,17/06/2016,132.85
Commercial Services,Sport & Leisure,CASP,Supplies & Services,Provisions,BIKOLD,17/06/2016,158.28
Commercial Services,Sport & Leisure,CASP,Supplies & Services,Provisions,BIKOLD,17/06/2016,182.76
Commercial Services,Sport & Leisure,CASP,Supplies & Services,Provisions,BIKOLD,17/06/2016,140.72
Commercial Services,Sport & Leisure,CASP,Supplies & Services,Provisions,BIKOLD,17/06/2016,287.82
Commercial Services,Sport & Leisure,CASP,Supplies & Services,Provisions,BIKOLD,17/06/2016,221.7
Commercial Services,Sport & Leisure,CASP,Supplies & Services,Provisions,BIKOLD,17/06/2016,175.58
Commercial Services,Sport & Leisure,CASP,Supplies & Services,Provisions,BIKOLD,17/06/2016,133.59
Commercial Services,Sport & Leisure,CASP,Supplies & Services,Provisions,BIKOLD,17/06/2016,148.52
Commercial Services,Sport & Leisure,CASP,Supplies & Services,Provisions,BIKOLD,17/06/2016,126.64
Commercial Services,Sport & Leisure,CASP,Supplies & Services,Provisions,BIKOLD,17/06/2016,268.71
Commercial Services,Sport & Leisure,CASP,Supplies & Services,Provisions,BIKOLD,17/06/2016,254.24
Commercial Services,Sport & Leisure,CASP,Supplies & Services,Provisions,BIKOLD,17/06/2016,173.46
Commercial Services,Sport & Leisure,CASP,Supplies & Services,Provisions,BIKOLD,17/06/2016,170.42
Commercial Services,Sport & Leisure,CASP,Supplies & Services,Provisions,BIKOLD,17/06/2016,115.08
Commercial Services,Sport & Leisure,CASP,Supplies & Services,Provisions,BIKOLD,17/06/2016,167.93
Commercial Services,Sport & Leisure,CASP,Supplies & Services,Provisions,BIKOLD,17/06/2016,226.23
Commercial Services,Sport & Leisure,CASP,Supplies & Services,Provisions,BIKOLD,17/06/2016,283.4
Commercial Services,Sport & Leisure,CASP,Supplies & Services,Provisions,BIKOLD,17/06/2016,201.79
Commercial Services,Sport & Leisure,CASP,Supplies & Services,Provisions,BIKOLD,17/06/2016,395.54
Commercial Services,Sport & Leisure,CASP,Supplies & Services,Provisions,BIKOLD,17/06/2016,122.39
Commercial Services,Sport & Leisure,CASP,Supplies & Services,Provisions,BIKOLD,17/06/2016,196.9
Commercial Services,Sport & Leisure,CASP,Supplies & Services,Provisions,BIKOLD,17/06/2016,211.67
Commercial Services,Sport & Leisure,CASP,Supplies & Services,Provisions,BIKOLD,17/06/2016,135.63
Commercial Services,Sport & Leisure,CASP,Supplies & Services,Provisions,BIKOLD,17/06/2016,128.64
Commercial Services,Sport & Leisure,CASP,Supplies & Services,Provisions,BIKOLD,17/06/2016,175.45
Commercial Services,Sport & Leisure,CASP,Supplies & Services,Provisions,BIKOLD,17/06/2016,128.19
Commercial Services,Sport & Leisure,CASP,Supplies & Services,Provisions,BIKOLD,17/06/2016,107.94
Commercial Services,Sport & Leisure,CASP,Supplies & Services,Provisions,BIKOLD,17/06/2016,148.84
Commercial Services,Sport & Leisure,CASP,Supplies & Services,Provisions,BIKOLD,17/06/2016,119.85
Commercial Services,Sport & Leisure,CASP,Supplies & Services,Provisions,BIKOLD,17/06/2016,175.09
Commercial Services,Sport & Leisure,CASP,Supplies & Services,Provisions,BIKOLD,17/06/2016,130.06
Commercial Services,Sport & Leisure,CASP,Supplies & Services,Provisions,BIKOLD,17/06/2016,265.84
Commercial Services,Sport & Leisure,CASP,Supplies & Services,Provisions,BIKOLD,17/06/2016,215.67
Commercial Services,Sport & Leisure,CASP,Supplies & Services,Provisions,BIKOLD,17/06/2016,128.56
Commercial Services,Sport & Leisure,CASP,Supplies & Services,Provisions,BIKOLD,17/06/2016,274.2
Commercial Services,Sport & Leisure,CASP,Supplies & Services,Provisions,BIKOLD,17/06/2016,322.44
Commercial Services,Sport & Leisure,CASP,Supplies & Services,Provisions,BIKOLD,17/06/2016,199.21
Commercial Services,Sport & Leisure,CASP,Supplies & Services,Provisions,BIKOLD,17/06/2016,380.59
Commercial Services,Sport & Leisure,CASP,Supplies & Services,Provisions,BIKOLD,17/06/2016,161.6
Commercial Services,Sport & Leisure,CASP,Supplies & Services,Provisions,BIKOLD,17/06/2016,215.97
Commercial Services,Sport & Leisure,CASP,Supplies & Services,Provisions,BIKOLD,17/06/2016,170.32
Commercial Services,Sport & Leisure,CASP,Supplies & Services,Provisions,BIKOLD,17/06/2016,249.76
Commercial Services,Sport & Leisure,CASP,Supplies & Services,Provisions,BIKOLD,17/06/2016,172.16
Commercial Services,Sport & Leisure,CASP,Supplies & Services,Provisions,BIKOLD,17/06/2016,171.14
Commercial Services,Sport & Leisure,CASP,Supplies & Services,Provisions,BIKOLD,17/06/2016,289.68
Commercial Services,Sport & Leisure,CASP,Supplies & Services,Provisions,BIKOLD,17/06/2016,157.62
Commercial Services,Sport & Leisure,CASP,Supplies & Services,Provisions,BIKOLD,17/06/2016,297.7
Commercial Services,Sport & Leisure,CASP,Supplies & Services,Provisions,BIKOLD,17/06/2016,149.29
Commercial Services,Sport & Leisure,CASP,Supplies & Services,Provisions,BIKOLD,17/06/2016,101.3
Commercial Services,Sport & Leisure,CASP,Supplies & Services,Provisions,BIKOLD,17/06/2016,123.53
Commercial Services,Sport & Leisure,CASP,Supplies & Services,Provisions,BIKOLD,17/06/2016,255.04
Commercial Services,Sport & Leisure,CASP,Supplies & Services,Provisions,BIKOLD,17/06/2016,122.24
Commercial Services,Sport & Leisure,CASP,Supplies & Services,Provisions,BIKOLD,17/06/2016,310.2
Commercial Services,Sport & Leisure,CASP,Supplies & Services,Provisions,BIKOLD,17/06/2016,111.38
Commercial Services,Sport & Leisure,CASP,Supplies & Services,Provisions,BIKOLD,17/06/2016,138.86
Commercial Services,Sport & Leisure,CASP,Supplies & Services,Provisions,BIKOLD,17/06/2016,175.87
Commercial Services,Sport & Leisure,CASP,Supplies & Services,Provisions,BIKOLD,17/06/2016,322.69
Commercial Services,Sport & Leisure,CASP,Supplies & Services,Provisions,BIKOLD,17/06/2016,154.28
Commercial Services,Sport & Leisure,CASS,Supplies & Services,Equipment - Purchase,BIKOLD,10/06/2016,618.93
Commercial Services,Sport & Leisure,CASS,Supplies & Services,Equipment - Purchase,BIKOLD,10/06/2016,162.46
Commercial Services,Sport & Leisure,CASS,Supplies & Services,Equipment - Purchase,BIKOLD,24/06/2016,385.12
Commercial Services,Sport & Leisure,CASS,Supplies & Services,Equipment - Purchase,BIKOLD,24/06/2016,138.36
Commercial Services,Sport & Leisure,CASS,Supplies & Services,Equipment - Purchase,BIKOLD,24/06/2016,174.67
Commercial Services,Sport & Leisure,CASS,Supplies & Services,Equipment - Purchase,BIKOLD,24/06/2016,258.84
Commercial Services,Sport & Leisure,CASS,Supplies & Services,Equipment - Purchase,BIKOLD,10/06/2016,395.58
Commercial Services,Sport & Leisure,CASS,Supplies & Services,Equipment - Purchase,BIKOLD,10/06/2016,254.4
Commercial Services,Sport & Leisure,CASS,Supplies & Services,Equipment - Purchase,BIKOLD,17/06/2016,410.25
Commercial Services,Sport & Leisure,CASS,Supplies & Services,Equipment - Purchase,BIKOLD,17/06/2016,533.99
Commercial Services,Sport & Leisure,CASS,Supplies & Services,Equipment - Purchase,BIKOLD,17/06/2016,108.64
Commercial Services,Sport & Leisure,CASS,Supplies & Services,Equipment - Purchase,BIKOLD,17/06/2016,300.3
Commercial Services,Sport & Leisure,CASS,Supplies & Services,Equipment - Purchase,BIKOLD,17/06/2016,446.06
Commercial Services,Sport & Leisure,CASS,Supplies & Services,Holidays & Outings,TROPICAL ICE,22/06/2016,120
Commercial Services,Sport & Leisure,CASS,Supplies & Services,Provisions,John Sheppard Catering Butchers,14/06/2016,160.69
Commercial Services,Sport & Leisure,CASS,Supplies & Services,Provisions,SMART FOOD,14/06/2016,229.2
Commercial Services,Sport & Leisure,CASS,Supplies & Services,Provisions,THEOS FOOD SERVICE LTD,14/06/2016,135.1
Commercial Services,Sport & Leisure,CASS,Supplies & Services,Provisions,BIKOLD,10/06/2016,118.13
Commercial Services,Sport & Leisure,CASS,Supplies & Services,Provisions,TROPICAL ICE,13/06/2016,135
Commercial Services,Sport & Leisure,CASS,Supplies & Services,Provisions,THEOS FOOD SERVICE LTD,13/06/2016,100.8
Commercial Services,Sport & Leisure,CASS,Supplies & Services,Provisions,SMART FOOD,13/06/2016,271.45
Commercial Services,Sport & Leisure,CASS,Supplies & Services,Provisions,On A Roll,13/06/2016,211.03
Commercial Services,Sport & Leisure,CASS,Supplies & Services,Provisions,John Sheppard Catering Butchers,14/06/2016,102.11
Commercial Services,Sport & Leisure,CASS,Supplies & Services,Provisions,On A Roll,10/06/2016,211.03
Commercial Services,Sport & Leisure,CASS,Supplies & Services,Provisions,BIKOLD,10/06/2016,335.84
Commercial Services,Sport & Leisure,CASS,Supplies & Services,Provisions,BIKOLD,10/06/2016,273.82
Commercial Services,Sport & Leisure,CASS,Supplies & Services,Provisions,BIKOLD,10/06/2016,260.67
Commercial Services,Sport & Leisure,CASS,Supplies & Services,Provisions,BIKOLD,10/06/2016,196.92
Commercial Services,Sport & Leisure,CASS,Supplies & Services,Provisions,BIKOLD,10/06/2016,164.76
Commercial Services,Sport & Leisure,CASS,Supplies & Services,Provisions,BIKOLD,24/06/2016,487.33
Commercial Services,Sport & Leisure,CASS,Supplies & Services,Provisions,THEOS FOOD SERVICE LTD,10/06/2016,103.2
Commercial Services,Sport & Leisure,CASS,Supplies & Services,Provisions,THEOS FOOD SERVICE LTD,10/06/2016,112.1
Commercial Services,Sport & Leisure,CASS,Supplies & Services,Provisions,Delice de France,10/06/2016,246.88
Commercial Services,Sport & Leisure,CASS,Supplies & Services,Provisions,On A Roll,10/06/2016,124.11
Commercial Services,Sport & Leisure,CASS,Supplies & Services,Provisions,On A Roll,10/06/2016,389
Commercial Services,Sport & Leisure,CASS,Supplies & Services,Provisions,BIKOLD,24/06/2016,277.58
Commercial Services,Sport & Leisure,CASS,Supplies & Services,Provisions,BIKOLD,24/06/2016,131.36
Commercial Services,Sport & Leisure,CASS,Supplies & Services,Provisions,BIKOLD,24/06/2016,126.06
Commercial Services,Sport & Leisure,CASS,Supplies & Services,Provisions,BIKOLD,24/06/2016,668.63
Commercial Services,Sport & Leisure,CASS,Supplies & Services,Provisions,BIKOLD,24/06/2016,384.32
Commercial Services,Sport & Leisure,CASS,Supplies & Services,Provisions,BIKOLD,24/06/2016,366.52
Commercial Services,Sport & Leisure,CASS,Supplies & Services,Provisions,On A Roll,22/06/2016,389
Commercial Services,Sport & Leisure,CASS,Supplies & Services,Provisions,SMART FOOD,22/06/2016,382
Commercial Services,Sport & Leisure,CASS,Supplies & Services,Provisions,On A Roll,22/06/2016,124.11
Commercial Services,Sport & Leisure,CASS,Supplies & Services,Provisions,On A Roll,22/06/2016,140.8
Commercial Services,Sport & Leisure,CASS,Supplies & Services,Provisions,SAFY IMPEX LTD T/A SPICE TIME,23/06/2016,108
Commercial Services,Sport & Leisure,CASS,Supplies & Services,Provisions,SAFY IMPEX LTD T/A SPICE TIME,23/06/2016,127
Commercial Services,Sport & Leisure,CASS,Supplies & Services,Provisions,On A Roll,22/06/2016,256.33
Commercial Services,Sport & Leisure,CASS,Supplies & Services,Provisions,RADNOR HILLS MINERAL WATER COMPANY LTD,22/06/2016,164.1
Commercial Services,Sport & Leisure,CASS,Supplies & Services,Provisions,SMART FOOD,22/06/2016,229.2
Commercial Services,Sport & Leisure,CASS,Supplies & Services,Provisions,TROPICAL ICE,22/06/2016,135
Commercial Services,Sport & Leisure,CASS,Supplies & Services,Provisions,THEOS FOOD SERVICE LTD,22/06/2016,184.8
Commercial Services,Sport & Leisure,CASS,Supplies & Services,Provisions,On A Roll,22/06/2016,389
Commercial Services,Sport & Leisure,CASS,Supplies & Services,Provisions,RADNOR HILLS MINERAL WATER COMPANY LTD,20/06/2016,225.55
Commercial Services,Sport & Leisure,CASS,Supplies & Services,Provisions,TROPICAL ICE,20/06/2016,120
Commercial Services,Sport & Leisure,CASS,Supplies & Services,Provisions,ROWLANDS & COMPANY,01/06/2016,232.71
Commercial Services,Sport & Leisure,CASS,Supplies & Services,Provisions,John Sheppard Catering Butchers,01/06/2016,144.61
Commercial Services,Sport & Leisure,CASS,Supplies & Services,Provisions,John Sheppard Catering Butchers,01/06/2016,302.41
Commercial Services,Sport & Leisure,CASS,Supplies & Services,Provisions,On A Roll,22/06/2016,256.33
Commercial Services,Sport & Leisure,CASS,Supplies & Services,Provisions,BIKOLD,17/06/2016,147.11
Commercial Services,Sport & Leisure,CASS,Supplies & Services,Provisions,BIKOLD,17/06/2016,102.99
Commercial Services,Sport & Leisure,CASS,Supplies & Services,Provisions,BIKOLD,17/06/2016,545.56
Commercial Services,Sport & Leisure,CASS,Supplies & Services,Provisions,TROPICAL ICE,20/06/2016,150
Commercial Services,Sport & Leisure,CASS,Supplies & Services,Provisions,RADNOR HILLS MINERAL WATER COMPANY LTD,20/06/2016,112.5
Commercial Services,Sport & Leisure,CASS,Supplies & Services,Provisions,RADNOR HILLS MINERAL WATER COMPANY LTD,20/06/2016,229.45
Commercial Services,Sport & Leisure,CASS,Supplies & Services,Provisions,BIKOLD,17/06/2016,124.19
Commercial Services,Sport & Leisure,CASS,Supplies & Services,Provisions,BIKOLD,17/06/2016,157.12
Commercial Services,Sport & Leisure,CASS,Supplies & Services,Provisions,BIKOLD,17/06/2016,230.54
Commercial Services,Sport & Leisure,CASS,Supplies & Services,Provisions,BIKOLD,17/06/2016,105.9
Commercial Services,Sport & Leisure,CASS,Supplies & Services,Provisions,BIKOLD,17/06/2016,299.16
Commercial Services,Sport & Leisure,CASX,Supplies & Services,Provisions,BIKOLD,10/06/2016,161.22
Commercial Services,Sport & Leisure,CASX,Supplies & Services,Provisions,BIKOLD,10/06/2016,159.62
Commercial Services,Sport & Leisure,CASX,Supplies & Services,Provisions,BIKOLD,10/06/2016,138.7
Commercial Services,Sport & Leisure,CASX,Supplies & Services,Provisions,BIKOLD,24/06/2016,102.02
Commercial Services,Sport & Leisure,CASX,Supplies & Services,Provisions,BIKOLD,24/06/2016,147.11
Commercial Services,Sport & Leisure,CASX,Supplies & Services,Provisions,BIKOLD,17/06/2016,210.56
Commercial Services,Sport & Leisure,CASX,Supplies & Services,Provisions,BIKOLD,17/06/2016,121.22
Commercial Services,Sport & Leisure,CASX,Supplies & Services,Provisions,BIKOLD,17/06/2016,129.64
Commercial Services,Sport & Leisure,CASX,Supplies & Services,Provisions,BIKOLD,24/06/2016,139.19
Commercial Services,Sport & Leisure,CASX,Supplies & Services,Provisions,BIKOLD,17/06/2016,191.26
Commercial Services,Sport & Leisure,COMM,Supplies & Services,Holidays & Outings,Vegware,13/06/2016,172.95
Commercial Services,Sport & Leisure,COMM,Supplies & Services,Provisions,Adelie Foods Limited (FORMERLY BRAMBLES FOODS LTD),14/06/2016,510.01
Commercial Services,Sport & Leisure,COMM,Supplies & Services,Provisions,BIKOLD,10/06/2016,122.73
Commercial Services,Sport & Leisure,COMM,Supplies & Services,Provisions,BIKOLD,10/06/2016,142.65
Commercial Services,Sport & Leisure,COMM,Supplies & Services,Provisions,BIKOLD,10/06/2016,314.72
Commercial Services,Sport & Leisure,COMM,Supplies & Services,Provisions,BIKOLD,24/06/2016,148.04
Commercial Services,Sport & Leisure,COMM,Supplies & Services,Provisions,BIKOLD,24/06/2016,246.67
Commercial Services,Sport & Leisure,COMM,Supplies & Services,Provisions,BIKOLD,24/06/2016,121.59
Commercial Services,Sport & Leisure,COMM,Supplies & Services,Provisions,Aroma Tea & Coffee Merchants,06/06/2016,159.3
Commercial Services,Sport & Leisure,COMM,Supplies & Services,Provisions,Adelie Foods Limited (FORMERLY BRAMBLES FOODS LTD),20/06/2016,420.51
Commercial Services,Sport & Leisure,COMM,Supplies & Services,Provisions,BIKOLD,03/06/2016,129.36
Commercial Services,Sport & Leisure,COMM,Supplies & Services,Provisions,BIKOLD,17/06/2016,144.44
Commercial Services,Sport & Leisure,COMM,Supplies & Services,Provisions,BIKOLD,17/06/2016,253.27
Commercial Services,Sport & Leisure,ETAG,Transport-Related Expenditure,Servicing & Repairs V&P,P LEEK COMMERCIAL REPAIRS LTD,16/06/2016,122.5
Commercial Services,Sport & Leisure,ETAG,Transport-Related Expenditure,Servicing & Repairs V&P,P LEEK COMMERCIAL REPAIRS LTD,16/06/2016,227.5
Commercial Services,Sport & Leisure,ETAG,Transport-Related Expenditure,Servicing & Repairs V&P,P LEEK COMMERCIAL REPAIRS LTD,16/06/2016,122.5
Commercial Services,Sport & Leisure,ETAG,Transport-Related Expenditure,Servicing & Repairs V&P,P LEEK COMMERCIAL REPAIRS LTD,16/06/2016,162.5
Commercial Services,Sport & Leisure,ETAG,Transport-Related Expenditure,Servicing & Repairs V&P,P LEEK COMMERCIAL REPAIRS LTD,16/06/2016,105
Commercial Services,Sport & Leisure,ETAG,Transport-Related Expenditure,Servicing & Repairs V&P,FTA,02/06/2016,151.7
Commercial Services,Sport & Leisure,ETAG,Transport-Related Expenditure,Servicing & Repairs V&P,P LEEK COMMERCIAL REPAIRS LTD,02/06/2016,105
Commercial Services,Sport & Leisure,ETAG,Transport-Related Expenditure,Servicing & Repairs V&P,P LEEK COMMERCIAL REPAIRS LTD,15/06/2016,1341.62
Commercial Services,Sport & Leisure,ETAG,Transport-Related Expenditure,Servicing & Repairs V&P,P LEEK COMMERCIAL REPAIRS LTD,15/06/2016,192.5
Commercial Services,Sport & Leisure,ETAG,Transport-Related Expenditure,Servicing & Repairs V&P,P LEEK COMMERCIAL REPAIRS LTD,15/06/2016,297.5
Commercial Services,Sport & Leisure,ETAG,Transport-Related Expenditure,Servicing & Repairs V&P,P LEEK COMMERCIAL REPAIRS LTD,15/06/2016,122.5
Commercial Services,Sport & Leisure,ETAG,Transport-Related Expenditure,Servicing & Repairs V&P,T J VICKERS & SONS LTD,15/06/2016,135
Commercial Services,Sport & Leisure,ETAG,Transport-Related Expenditure,Servicing & Repairs V&P,FTA,02/06/2016,151.7
Commercial Services,Sport & Leisure,ETAG,Transport-Related Expenditure,Servicing & Repairs V&P,AUTO MECHANICAL & GAILEY RECOVERY,02/06/2016,150
Commercial Services,Sport & Leisure,ETAG,Transport-Related Expenditure,Servicing & Repairs V&P,P LEEK COMMERCIAL REPAIRS LTD,02/06/2016,157.5
Commercial Services,Sport & Leisure,ETAG,Transport-Related Expenditure,Servicing & Repairs V&P,P LEEK COMMERCIAL REPAIRS LTD,02/06/2016,157.5
Commercial Services,Sport & Leisure,ETAG,Transport-Related Expenditure,Servicing & Repairs V&P,P LEEK COMMERCIAL REPAIRS LTD,02/06/2016,105
Commercial Services,Sport & Leisure,ETAG,Transport-Related Expenditure,Servicing & Repairs V&P,AEM GROUP LTD,02/06/2016,460
Commercial Services,Sport & Leisure,ETAG,Transport-Related Expenditure,Fuel,ALLSTAR BUSINESS SOLUTIONS LTD,28/06/2016,5753.97
